Organisation Code,Organisation Label,Effective Date,Organisational Unit,Service Division Label,Category Internal Name,Purpose,Detailed Expenditure Code,Payment Date,Transaction Number,Irrecoverable VAT Amount,Amount,Capital Or Revenue,Beneficiary Name,Procurement Card
Http://opendatacommunities.org/id/metropolitan-district-council/leeds,Leeds City Council,30/06/2023,Children and Families,Social Care,Supplies and Services,Consultancy Services,259,16/06/2023,2306-00001,0.00,8550.00,R,A & F Lloyd Training Limited,No
Http://opendatacommunities.org/id/metropolitan-district-council/leeds,Leeds City Council,30/06/2023,Children and Families,Social Care,Supplies and Services,Consultancy Services,259,16/06/2023,2306-00002,0.00,5700.00,R,A & F Lloyd Training Limited,No
Http://opendatacommunities.org/id/metropolitan-district-council/leeds,Leeds City Council,30/06/2023,Adults and Health,Services For Older People Under 65 P/Dis,Agency Payments,Sheltered Accommodation,569,21/06/2023,2306-00003,0.00,5400.00,R,A & V TRANSITIONAL HOMES,No
Http://opendatacommunities.org/id/metropolitan-district-council/leeds,Leeds City Council,30/06/2023,Strategic Landlord,HRA Housing Leeds,Capital,OTHER COSTS,7,09/06/2023,2306-00004,0.00,100.00,C,REDACTED PERSONAL DATA,No
Http://opendatacommunities.org/id/metropolitan-district-council/leeds,Leeds City Council,30/06/2023,Strategy and Resources,Leeds Building Services,Supplies and Services,Operational Materials,205,14/06/2023,2306-00005,0.00,227.43,R,A ANDREWS & SONS (MARBLES & TILES),No
Http://opendatacommunities.org/id/metropolitan-district-council/leeds,Leeds City Council,30/06/2023,City Development,Libraries Arts & Heritage,Supplies and Services,Operational Furniture And Equipment,203,09/06/2023,2306-00006,0.00,285.00,R,A C Entertainment Technologies Ltd,No
Http://opendatacommunities.org/id/metropolitan-district-council/leeds,Leeds City Council,30/06/2023,City Development,Libraries Arts & Heritage,Supplies and Services,Operational Furniture And Equipment,203,21/06/2023,2306-00007,0.00,9346.34,R,A C Entertainment Technologies Ltd,No
Http://opendatacommunities.org/id/metropolitan-district-council/leeds,Leeds City Council,30/06/2023,Children and Families,Social Care,Agency Payments,Section 17,551,22/06/2023,2306-00008,0.00,250.00,R,REDACTED PERSONAL DATA,No
Http://opendatacommunities.org/id/metropolitan-district-council/leeds,Leeds City Council,30/06/2023,Strategic Landlord,HRA Housing Leeds,Capital,CONSTRUCTION,3,08/06/2023,2306-00009,0.00,48727.68,C,A Connolly Limited,No
Http://opendatacommunities.org/id/metropolitan-district-council/leeds,Leeds City Council,30/06/2023,Strategic Landlord,HRA Housing Leeds,Capital,CONSTRUCTION,3,29/06/2023,2306-00010,0.00,148580.92,C,A Connolly Limited,No
Http://opendatacommunities.org/id/metropolitan-district-council/leeds,Leeds City Council,30/06/2023,Strategy and Resources,Leeds Building Services,Supplies and Services,Other Hired And Contracted Services,265,02/06/2023,2306-00011,0.00,4165.59,R,A Coole Electrical Ltd,No
Http://opendatacommunities.org/id/metropolitan-district-council/leeds,Leeds City Council,30/06/2023,Strategy and Resources,Leeds Building Services,Supplies and Services,Other Hired And Contracted Services,265,08/06/2023,2306-00012,0.00,11114.31,R,A Coole Electrical Ltd,No
Http://opendatacommunities.org/id/metropolitan-district-council/leeds,Leeds City Council,30/06/2023,Strategy and Resources,Leeds Building Services,Supplies and Services,Other Hired And Contracted Services,265,08/06/2023,2306-00013,0.00,120.00,R,A Coole Electrical Ltd,No
Http://opendatacommunities.org/id/metropolitan-district-council/leeds,Leeds City Council,30/06/2023,Strategy and Resources,Leeds Building Services,Supplies and Services,Other Hired And Contracted Services,265,09/06/2023,2306-00014,0.00,105.00,R,A Coole Electrical Ltd,No
Http://opendatacommunities.org/id/metropolitan-district-council/leeds,Leeds City Council,30/06/2023,Strategy and Resources,Leeds Building Services,Supplies and Services,Other Hired And Contracted Services,265,16/06/2023,2306-00015,0.00,19825.54,R,A Coole Electrical Ltd,No
Http://opendatacommunities.org/id/metropolitan-district-council/leeds,Leeds City Council,30/06/2023,Strategy and Resources,Leeds Building Services,Supplies and Services,Other Hired And Contracted Services,265,30/06/2023,2306-00016,0.00,27933.97,R,A Coole Electrical Ltd,No
Http://opendatacommunities.org/id/metropolitan-district-council/leeds,Leeds City Council,30/06/2023,Strategy and Resources,Leeds Building Services,Supplies and Services,Other Hired And Contracted Services,265,30/06/2023,2306-00017,0.00,9333.97,R,A Coole Electrical Ltd,No
Http://opendatacommunities.org/id/metropolitan-district-council/leeds,Leeds City Council,30/06/2023,Strategy and Resources,Leeds Building Services,Supplies and Services,Other Hired And Contracted Services,265,30/06/2023,2306-00018,0.00,1546.39,R,A Coole Electrical Ltd,No
Http://opendatacommunities.org/id/metropolitan-district-council/leeds,Leeds City Council,30/06/2023,Communities Housing and Environment,Customer Access,Supplies and Services,Bought In Professional Services,277,02/06/2023,2306-00019,0.00,50.25,R,REDACTED COMMERCIAL CONFIDENTIALITY,No
Http://opendatacommunities.org/id/metropolitan-district-council/leeds,Leeds City Council,30/06/2023,Communities Housing and Environment,Customer Access,Supplies and Services,Bought In Professional Services,277,02/06/2023,2306-00020,0.00,18.00,R,REDACTED COMMERCIAL CONFIDENTIALITY,No
Http://opendatacommunities.org/id/metropolitan-district-council/leeds,Leeds City Council,30/06/2023,Communities Housing and Environment,Customer Access,Supplies and Services,Bought In Professional Services,277,02/06/2023,2306-00021,0.00,36.00,R,REDACTED COMMERCIAL CONFIDENTIALITY,No
Http://opendatacommunities.org/id/metropolitan-district-council/leeds,Leeds City Council,30/06/2023,Communities Housing and Environment,Customer Access,Supplies and Services,Bought In Professional Services,277,02/06/2023,2306-00022,0.00,9.00,R,REDACTED COMMERCIAL CONFIDENTIALITY,No
Http://opendatacommunities.org/id/metropolitan-district-council/leeds,Leeds City Council,30/06/2023,Communities Housing and Environment,Customer Access,Supplies and Services,Bought In Professional Services,277,02/06/2023,2306-00023,0.00,18.00,R,REDACTED COMMERCIAL CONFIDENTIALITY,No
Http://opendatacommunities.org/id/metropolitan-district-council/leeds,Leeds City Council,30/06/2023,Communities Housing and Environment,Customer Access,Supplies and Services,Bought In Professional Services,277,07/06/2023,2306-00024,0.00,39.00,R,REDACTED COMMERCIAL CONFIDENTIALITY,No
Http://opendatacommunities.org/id/metropolitan-district-council/leeds,Leeds City Council,30/06/2023,Communities Housing and Environment,Customer Access,Supplies and Services,Bought In Professional Services,277,07/06/2023,2306-00025,0.00,27.00,R,REDACTED COMMERCIAL CONFIDENTIALITY,No
Http://opendatacommunities.org/id/metropolitan-district-council/leeds,Leeds City Council,30/06/2023,Communities Housing and Environment,Customer Access,Supplies and Services,Bought In Professional Services,277,07/06/2023,2306-00026,0.00,18.00,R,REDACTED COMMERCIAL CONFIDENTIALITY,No
Http://opendatacommunities.org/id/metropolitan-district-council/leeds,Leeds City Council,30/06/2023,Communities Housing and Environment,Customer Access,Supplies and Services,Bought In Professional Services,277,21/06/2023,2306-00027,0.00,22.80,R,REDACTED COMMERCIAL CONFIDENTIALITY,No
Http://opendatacommunities.org/id/metropolitan-district-council/leeds,Leeds City Council,30/06/2023,Communities Housing and Environment,Customer Access,Supplies and Services,Bought In Professional Services,277,28/06/2023,2306-00028,0.00,18.00,R,REDACTED COMMERCIAL CONFIDENTIALITY,No
Http://opendatacommunities.org/id/metropolitan-district-council/leeds,Leeds City Council,30/06/2023,Communities Housing and Environment,Customer Access,Supplies and Services,Bought In Professional Services,277,28/06/2023,2306-00029,0.00,27.00,R,REDACTED COMMERCIAL CONFIDENTIALITY,No
Http://opendatacommunities.org/id/metropolitan-district-council/leeds,Leeds City Council,30/06/2023,Communities Housing and Environment,Customer Access,Supplies and Services,Bought In Professional Services,277,28/06/2023,2306-00030,0.00,18.00,R,REDACTED COMMERCIAL CONFIDENTIALITY,No
Http://opendatacommunities.org/id/metropolitan-district-council/leeds,Leeds City Council,30/06/2023,Strategic Landlord,HRA Housing Leeds,Capital,OTHER COSTS,7,26/06/2023,2306-00031,0.00,100.00,C,REDACTED PERSONAL DATA,No
Http://opendatacommunities.org/id/metropolitan-district-council/leeds,Leeds City Council,30/06/2023,Children and Families,Social Care,Agency Payments,Services Rendered By Voluntary Sector,505,02/06/2023,2306-00032,0.00,8788.10,R,REDACTED PERSONAL DATA,No
Http://opendatacommunities.org/id/metropolitan-district-council/leeds,Leeds City Council,30/06/2023,Children and Families,Social Care,Agency Payments,Services Rendered By Voluntary Sector,505,07/06/2023,2306-00033,0.00,1144.65,R,REDACTED PERSONAL DATA,No
Http://opendatacommunities.org/id/metropolitan-district-council/leeds,Leeds City Council,30/06/2023,Children and Families,Social Care,Agency Payments,Services Rendered By Other Organisations,511,07/06/2023,2306-00034,0.00,228.93,R,REDACTED PERSONAL DATA,No
Http://opendatacommunities.org/id/metropolitan-district-council/leeds,Leeds City Council,30/06/2023,Children and Families,Social Care,Agency Payments,Services Rendered By Other Organisations,511,02/06/2023,2306-00035,0.00,147.60,R,REDACTED PERSONAL DATA,No
Http://opendatacommunities.org/id/metropolitan-district-council/leeds,Leeds City Council,30/06/2023,Children and Families,Social Care,Agency Payments,Services Rendered By Other Organisations,511,02/06/2023,2306-00036,0.00,530.87,R,REDACTED PERSONAL DATA,No
Http://opendatacommunities.org/id/metropolitan-district-council/leeds,Leeds City Council,30/06/2023,Adults and Health,Other Generic Services,Agency Payments,Fees To Carers,563,02/06/2023,2306-00037,0.00,140.73,R,REDACTED PERSONAL DATA,No
Http://opendatacommunities.org/id/metropolitan-district-council/leeds,Leeds City Council,30/06/2023,Adults and Health,Other Generic Services,Agency Payments,Fees To Carers,563,02/06/2023,2306-00038,0.00,46.91,R,REDACTED PERSONAL DATA,No
Http://opendatacommunities.org/id/metropolitan-district-council/leeds,Leeds City Council,30/06/2023,Adults and Health,Other Generic Services,Agency Payments,Fees To Carers,563,16/06/2023,2306-00039,0.00,46.91,R,REDACTED PERSONAL DATA,No
Http://opendatacommunities.org/id/metropolitan-district-council/leeds,Leeds City Council,30/06/2023,Adults and Health,Other Generic Services,Agency Payments,Fees To Carers,563,21/06/2023,2306-00040,0.00,406.80,R,REDACTED PERSONAL DATA,No
Http://opendatacommunities.org/id/metropolitan-district-council/leeds,Leeds City Council,30/06/2023,Adults and Health,Other Generic Services,Agency Payments,Fees To Carers,563,21/06/2023,2306-00041,0.00,37.80,R,REDACTED PERSONAL DATA,No
Http://opendatacommunities.org/id/metropolitan-district-council/leeds,Leeds City Council,30/06/2023,Adults and Health,Other Generic Services,Agency Payments,Fees To Carers,563,23/06/2023,2306-00042,0.00,46.91,R,REDACTED PERSONAL DATA,No
Http://opendatacommunities.org/id/metropolitan-district-council/leeds,Leeds City Council,30/06/2023,Adults and Health,Other Generic Services,Agency Payments,Fees To Carers,563,30/06/2023,2306-00043,0.00,140.73,R,REDACTED PERSONAL DATA,No
Http://opendatacommunities.org/id/metropolitan-district-council/leeds,Leeds City Council,30/06/2023,Strategy and Resources,Leeds Building Services,Supplies and Services,Operational Materials,205,09/06/2023,2306-00044,0.00,875.00,R,A J H  Pump Supply & Repair Ltd,No
Http://opendatacommunities.org/id/metropolitan-district-council/leeds,Leeds City Council,30/06/2023,Strategy and Resources,Leeds Building Services,Supplies and Services,Operational Materials,205,27/06/2023,2306-00045,0.00,446.00,R,A J H  Pump Supply & Repair Ltd,No
Http://opendatacommunities.org/id/metropolitan-district-council/leeds,Leeds City Council,30/06/2023,Communities Housing and Environment,Customer Access,Supplies and Services,Resaleable Materials,204,21/06/2023,2306-00046,0.00,32.40,R,A J PROMOTIONS,No
Http://opendatacommunities.org/id/metropolitan-district-council/leeds,Leeds City Council,30/06/2023,Communities Housing and Environment,Climate Energy & Greenspaces,Supplies and Services,Resaleable Materials,204,27/06/2023,2306-00047,0.00,1417.50,R,A J PROMOTIONS,No
Http://opendatacommunities.org/id/metropolitan-district-council/leeds,Leeds City Council,30/06/2023,Communities Housing and Environment,Climate Energy & Greenspaces,Supplies and Services,Resaleable Materials,204,27/06/2023,2306-00048,0.00,967.50,R,A J PROMOTIONS,No
Http://opendatacommunities.org/id/metropolitan-district-council/leeds,Leeds City Council,30/06/2023,Children and Families,Social Care,Agency Payments,Services Rendered By Other Organisations,511,02/06/2023,2306-00049,0.00,1151.28,R,REDACTED PERSONAL DATA,No
Http://opendatacommunities.org/id/metropolitan-district-council/leeds,Leeds City Council,30/06/2023,Communities Housing and Environment,Strategic Housing Partnership & Support,Supplies and Services,Other Hired And Contracted Services,265,20/06/2023,2306-00050,0.00,865.38,R,A Kundra,No
Http://opendatacommunities.org/id/metropolitan-district-council/leeds,Leeds City Council,30/06/2023,Children and Families,Social Care,Employees,Agency Staff,8,02/06/2023,2306-00051,0.00,858.00,R,A Little Something Extra Ltd,No
Http://opendatacommunities.org/id/metropolitan-district-council/leeds,Leeds City Council,30/06/2023,Children and Families,Social Care,Employees,Agency Staff,8,15/06/2023,2306-00052,0.00,1023.75,R,A Little Something Extra Ltd,No
Http://opendatacommunities.org/id/metropolitan-district-council/leeds,Leeds City Council,30/06/2023,Communities Housing and Environment,Customer Access,Supplies and Services,Bought In Professional Services,277,08/06/2023,2306-00053,0.00,27.00,R,A MUSALAM,No
Http://opendatacommunities.org/id/metropolitan-district-council/leeds,Leeds City Council,30/06/2023,Strategic Landlord,HRA Housing Leeds,Capital,OTHER COSTS,7,26/06/2023,2306-00054,0.00,80.00,C,REDACTED PERSONAL DATA,No
Http://opendatacommunities.org/id/metropolitan-district-council/leeds,Leeds City Council,30/06/2023,Children and Families,Social Care,Agency Payments,Services Rendered By Other Organisations,511,02/06/2023,2306-00055,0.00,1535.04,R,REDACTED PERSONAL DATA,No
Http://opendatacommunities.org/id/metropolitan-district-council/leeds,Leeds City Council,30/06/2023,Children and Families,Social Care,Agency Payments,Services Rendered By Other Organisations,511,07/06/2023,2306-00056,0.00,686.79,R,REDACTED PERSONAL DATA,No
Http://opendatacommunities.org/id/metropolitan-district-council/leeds,Leeds City Council,30/06/2023,Communities Housing and Environment,Customer Access,Supplies and Services,Bought In Professional Services,277,02/06/2023,2306-00057,0.00,31.50,R,A NAMAKI,No
Http://opendatacommunities.org/id/metropolitan-district-council/leeds,Leeds City Council,30/06/2023,Communities Housing and Environment,Customer Access,Supplies and Services,Bought In Professional Services,277,02/06/2023,2306-00058,0.00,18.00,R,A NAMAKI,No
Http://opendatacommunities.org/id/metropolitan-district-council/leeds,Leeds City Council,30/06/2023,Communities Housing and Environment,Customer Access,Supplies and Services,Bought In Professional Services,277,02/06/2023,2306-00059,0.00,54.00,R,A NAMAKI,No
Http://opendatacommunities.org/id/metropolitan-district-council/leeds,Leeds City Council,30/06/2023,Communities Housing and Environment,Customer Access,Supplies and Services,Bought In Professional Services,277,02/06/2023,2306-00060,0.00,108.00,R,A NAMAKI,No
Http://opendatacommunities.org/id/metropolitan-district-council/leeds,Leeds City Council,30/06/2023,Communities Housing and Environment,Customer Access,Supplies and Services,Bought In Professional Services,277,02/06/2023,2306-00061,0.00,27.00,R,A NAMAKI,No
Http://opendatacommunities.org/id/metropolitan-district-council/leeds,Leeds City Council,30/06/2023,Communities Housing and Environment,Customer Access,Supplies and Services,Bought In Professional Services,277,02/06/2023,2306-00062,0.00,54.00,R,A NAMAKI,No
Http://opendatacommunities.org/id/metropolitan-district-council/leeds,Leeds City Council,30/06/2023,Communities Housing and Environment,Customer Access,Supplies and Services,Bought In Professional Services,277,02/06/2023,2306-00063,0.00,27.00,R,A NAMAKI,No
Http://opendatacommunities.org/id/metropolitan-district-council/leeds,Leeds City Council,30/06/2023,Communities Housing and Environment,Customer Access,Supplies and Services,Bought In Professional Services,277,07/06/2023,2306-00064,0.00,108.00,R,A NAMAKI,No
Http://opendatacommunities.org/id/metropolitan-district-council/leeds,Leeds City Council,30/06/2023,Communities Housing and Environment,Customer Access,Supplies and Services,Bought In Professional Services,277,07/06/2023,2306-00065,0.00,108.00,R,A NAMAKI,No
Http://opendatacommunities.org/id/metropolitan-district-council/leeds,Leeds City Council,30/06/2023,Communities Housing and Environment,Customer Access,Supplies and Services,Bought In Professional Services,277,07/06/2023,2306-00066,0.00,18.00,R,A NAMAKI,No
Http://opendatacommunities.org/id/metropolitan-district-council/leeds,Leeds City Council,30/06/2023,Communities Housing and Environment,Customer Access,Supplies and Services,Bought In Professional Services,277,07/06/2023,2306-00067,0.00,18.00,R,A NAMAKI,No
Http://opendatacommunities.org/id/metropolitan-district-council/leeds,Leeds City Council,30/06/2023,Communities Housing and Environment,Customer Access,Supplies and Services,Bought In Professional Services,277,07/06/2023,2306-00068,0.00,18.00,R,A NAMAKI,No
Http://opendatacommunities.org/id/metropolitan-district-council/leeds,Leeds City Council,30/06/2023,Communities Housing and Environment,Customer Access,Supplies and Services,Bought In Professional Services,277,07/06/2023,2306-00069,0.00,54.00,R,A NAMAKI,No
Http://opendatacommunities.org/id/metropolitan-district-council/leeds,Leeds City Council,30/06/2023,Communities Housing and Environment,Customer Access,Supplies and Services,Bought In Professional Services,277,07/06/2023,2306-00070,0.00,18.00,R,A NAMAKI,No
Http://opendatacommunities.org/id/metropolitan-district-council/leeds,Leeds City Council,30/06/2023,Communities Housing and Environment,Customer Access,Supplies and Services,Bought In Professional Services,277,14/06/2023,2306-00071,0.00,108.00,R,A NAMAKI,No
Http://opendatacommunities.org/id/metropolitan-district-council/leeds,Leeds City Council,30/06/2023,Communities Housing and Environment,Customer Access,Supplies and Services,Bought In Professional Services,277,14/06/2023,2306-00072,0.00,108.00,R,A NAMAKI,No
Http://opendatacommunities.org/id/metropolitan-district-council/leeds,Leeds City Council,30/06/2023,Communities Housing and Environment,Customer Access,Supplies and Services,Bought In Professional Services,277,14/06/2023,2306-00073,0.00,22.50,R,A NAMAKI,No
Http://opendatacommunities.org/id/metropolitan-district-council/leeds,Leeds City Council,30/06/2023,Communities Housing and Environment,Customer Access,Supplies and Services,Bought In Professional Services,277,14/06/2023,2306-00074,0.00,108.00,R,A NAMAKI,No
Http://opendatacommunities.org/id/metropolitan-district-council/leeds,Leeds City Council,30/06/2023,Communities Housing and Environment,Customer Access,Supplies and Services,Bought In Professional Services,277,14/06/2023,2306-00075,0.00,18.00,R,A NAMAKI,No
Http://opendatacommunities.org/id/metropolitan-district-council/leeds,Leeds City Council,30/06/2023,Communities Housing and Environment,Customer Access,Supplies and Services,Bought In Professional Services,277,14/06/2023,2306-00076,0.00,18.00,R,A NAMAKI,No
Http://opendatacommunities.org/id/metropolitan-district-council/leeds,Leeds City Council,30/06/2023,Communities Housing and Environment,Customer Access,Supplies and Services,Bought In Professional Services,277,14/06/2023,2306-00077,0.00,18.00,R,A NAMAKI,No
Http://opendatacommunities.org/id/metropolitan-district-council/leeds,Leeds City Council,30/06/2023,Communities Housing and Environment,Customer Access,Supplies and Services,Bought In Professional Services,277,14/06/2023,2306-00078,0.00,22.50,R,A NAMAKI,No
Http://opendatacommunities.org/id/metropolitan-district-council/leeds,Leeds City Council,30/06/2023,Communities Housing and Environment,Customer Access,Supplies and Services,Bought In Professional Services,277,21/06/2023,2306-00079,0.00,108.00,R,A NAMAKI,No
Http://opendatacommunities.org/id/metropolitan-district-council/leeds,Leeds City Council,30/06/2023,Communities Housing and Environment,Customer Access,Supplies and Services,Bought In Professional Services,277,21/06/2023,2306-00080,0.00,18.00,R,A NAMAKI,No
Http://opendatacommunities.org/id/metropolitan-district-council/leeds,Leeds City Council,30/06/2023,Communities Housing and Environment,Customer Access,Supplies and Services,Bought In Professional Services,277,21/06/2023,2306-00081,0.00,108.00,R,A NAMAKI,No
Http://opendatacommunities.org/id/metropolitan-district-council/leeds,Leeds City Council,30/06/2023,Communities Housing and Environment,Customer Access,Supplies and Services,Bought In Professional Services,277,21/06/2023,2306-00082,0.00,18.00,R,A NAMAKI,No
Http://opendatacommunities.org/id/metropolitan-district-council/leeds,Leeds City Council,30/06/2023,Communities Housing and Environment,Customer Access,Supplies and Services,Bought In Professional Services,277,21/06/2023,2306-00083,0.00,18.00,R,A NAMAKI,No
Http://opendatacommunities.org/id/metropolitan-district-council/leeds,Leeds City Council,30/06/2023,Communities Housing and Environment,Customer Access,Supplies and Services,Bought In Professional Services,277,21/06/2023,2306-00084,0.00,18.00,R,A NAMAKI,No
Http://opendatacommunities.org/id/metropolitan-district-council/leeds,Leeds City Council,30/06/2023,Communities Housing and Environment,Customer Access,Supplies and Services,Bought In Professional Services,277,21/06/2023,2306-00085,0.00,54.00,R,A NAMAKI,No
Http://opendatacommunities.org/id/metropolitan-district-council/leeds,Leeds City Council,30/06/2023,Communities Housing and Environment,Customer Access,Supplies and Services,Bought In Professional Services,277,21/06/2023,2306-00086,0.00,18.00,R,A NAMAKI,No
Http://opendatacommunities.org/id/metropolitan-district-council/leeds,Leeds City Council,30/06/2023,Communities Housing and Environment,Customer Access,Supplies and Services,Bought In Professional Services,277,28/06/2023,2306-00087,0.00,108.00,R,A NAMAKI,No
Http://opendatacommunities.org/id/metropolitan-district-council/leeds,Leeds City Council,30/06/2023,Communities Housing and Environment,Customer Access,Supplies and Services,Bought In Professional Services,277,28/06/2023,2306-00088,0.00,108.00,R,A NAMAKI,No
Http://opendatacommunities.org/id/metropolitan-district-council/leeds,Leeds City Council,30/06/2023,Communities Housing and Environment,Customer Access,Supplies and Services,Bought In Professional Services,277,28/06/2023,2306-00089,0.00,18.00,R,A NAMAKI,No
Http://opendatacommunities.org/id/metropolitan-district-council/leeds,Leeds City Council,30/06/2023,Communities Housing and Environment,Customer Access,Supplies and Services,Bought In Professional Services,277,28/06/2023,2306-00090,0.00,99.00,R,A NAMAKI,No
Http://opendatacommunities.org/id/metropolitan-district-council/leeds,Leeds City Council,30/06/2023,Communities Housing and Environment,Customer Access,Supplies and Services,Bought In Professional Services,277,28/06/2023,2306-00091,0.00,18.00,R,A NAMAKI,No
Http://opendatacommunities.org/id/metropolitan-district-council/leeds,Leeds City Council,30/06/2023,Communities Housing and Environment,Customer Access,Supplies and Services,Bought In Professional Services,277,28/06/2023,2306-00092,0.00,18.00,R,A NAMAKI,No
Http://opendatacommunities.org/id/metropolitan-district-council/leeds,Leeds City Council,30/06/2023,Children and Families,Social Care,Agency Payments,Services Rendered By Other Organisations,511,02/06/2023,2306-00093,0.00,383.76,R,REDACTED PERSONAL DATA,No
Http://opendatacommunities.org/id/metropolitan-district-council/leeds,Leeds City Council,30/06/2023,Children and Families,Social Care,Agency Payments,Services Rendered By Other Organisations,511,07/06/2023,2306-00094,0.00,457.86,R,REDACTED PERSONAL DATA,No
Http://opendatacommunities.org/id/metropolitan-district-council/leeds,Leeds City Council,30/06/2023,Strategy and Resources,Shared Services,Supplies and Services,Other Hired And Contracted Services,265,09/06/2023,2306-00095,0.00,40.00,R,A Star Couriers Ltd,No
Http://opendatacommunities.org/id/metropolitan-district-council/leeds,Leeds City Council,30/06/2023,Communities Housing and Environment,Waste Management,Employees,Training & Development,70,16/06/2023,2306-00096,0.00,227.80,R,A T Nerac Ltd,No
Http://opendatacommunities.org/id/metropolitan-district-council/leeds,Leeds City Council,30/06/2023,Communities Housing and Environment,Waste Management,Employees,Training & Development,70,29/06/2023,2306-00097,0.00,339.80,R,A T Nerac Ltd,No
Http://opendatacommunities.org/id/metropolitan-district-council/leeds,Leeds City Council,30/06/2023,Strategic Landlord,HRA Housing Leeds,Capital,OTHER COSTS,7,05/06/2023,2306-00098,0.00,100.00,C,REDACTED PERSONAL DATA,No
Http://opendatacommunities.org/id/metropolitan-district-council/leeds,Leeds City Council,30/06/2023,Children and Families,Social Care,Agency Payments,Services Rendered By Other Organisations,511,07/06/2023,2306-00099,0.00,228.93,R,REDACTED PERSONAL DATA,No
Http://opendatacommunities.org/id/metropolitan-district-council/leeds,Leeds City Council,30/06/2023,Communities Housing and Environment,Communities  ,Supplies and Services,Operational Materials,205,28/04/2023,2306-00100,0.00,24.90,R,A&h Bros Ltd,Yes
Http://opendatacommunities.org/id/metropolitan-district-council/leeds,Leeds City Council,30/06/2023,Strategy and Resources,Leeds Building Services,Supplies and Services,Operational Materials,205,20/06/2023,2306-00101,0.00,150.00,R,A1 STAIR LIFT SERVICES,No
Http://opendatacommunities.org/id/metropolitan-district-council/leeds,Leeds City Council,30/06/2023,Strategy and Resources,Leeds Building Services,Supplies and Services,Operational Materials,205,23/06/2023,2306-00102,0.00,122.99,R,A1 STAIR LIFT SERVICES,No
Http://opendatacommunities.org/id/metropolitan-district-council/leeds,Leeds City Council,30/06/2023,Strategy and Resources,Leeds Building Services,Supplies and Services,Other Hired And Contracted Services,265,23/06/2023,2306-00103,0.00,295.00,R,A1 STAIR LIFT SERVICES,No
Http://opendatacommunities.org/id/metropolitan-district-council/leeds,Leeds City Council,30/06/2023,Children and Families,Social Care,Appropriations,Leaving Care Allowances,634,09/06/2023,2306-00104,0.00,48.38,R,REDACTED PERSONAL DATA,No
Http://opendatacommunities.org/id/metropolitan-district-council/leeds,Leeds City Council,30/06/2023,Children and Families,Social Care,Internal Recharges,Legal Disbursements,411,16/06/2023,2306-00105,0.00,575.00,R,Aaqib Javed,No
Http://opendatacommunities.org/id/metropolitan-district-council/leeds,Leeds City Council,30/06/2023,Children and Families,Social Care,Internal Recharges,Legal Disbursements,411,16/06/2023,2306-00106,0.00,375.00,R,Aaqib Javed,No
Http://opendatacommunities.org/id/metropolitan-district-council/leeds,Leeds City Council,30/06/2023,Adults and Health,Services For Older People - 65 And Over,Agency Payments,Residential Care Dementia,571,21/06/2023,2306-00107,0.00,2469.52,R,Aaron Court Care Home,No
Http://opendatacommunities.org/id/metropolitan-district-council/leeds,Leeds City Council as Accountable Body ,30/06/2023,Social Services Pooled Budgets,Jcs For People With Learning Disabilitie,Supplies and Services,Other Equipment,203,16/06/2023,2306-00108,0.00,155.00,R,AAT (GB) LTD,No
Http://opendatacommunities.org/id/metropolitan-district-council/leeds,Leeds City Council as Accountable Body ,30/06/2023,Social Services Pooled Budgets,Leeds Community Equip Store Pooled Budgt,Supplies and Services,Other Equipment,203,23/06/2023,2306-00109,0.00,1264.00,R,AAT (GB) LTD,No
Http://opendatacommunities.org/id/metropolitan-district-council/leeds,Leeds City Council,30/06/2023,Communities Housing and Environment,Customer Access,Supplies and Services,Bought In Professional Services,277,07/06/2023,2306-00110,0.00,18.00,R,Abadit Kiros,No
Http://opendatacommunities.org/id/metropolitan-district-council/leeds,Leeds City Council,30/06/2023,Communities Housing and Environment,Customer Access,Supplies and Services,Bought In Professional Services,277,07/06/2023,2306-00111,0.00,18.00,R,Abadit Kiros,No
Http://opendatacommunities.org/id/metropolitan-district-council/leeds,Leeds City Council,30/06/2023,Communities Housing and Environment,Customer Access,Supplies and Services,Bought In Professional Services,277,14/06/2023,2306-00112,0.00,18.00,R,Abadit Kiros,No
Http://opendatacommunities.org/id/metropolitan-district-council/leeds,Leeds City Council,30/06/2023,Communities Housing and Environment,Customer Access,Supplies and Services,Bought In Professional Services,277,14/06/2023,2306-00113,0.00,45.00,R,Abadit Kiros,No
Http://opendatacommunities.org/id/metropolitan-district-council/leeds,Leeds City Council,30/06/2023,Communities Housing and Environment,Customer Access,Supplies and Services,Bought In Professional Services,277,14/06/2023,2306-00114,0.00,18.00,R,Abadit Kiros,No
Http://opendatacommunities.org/id/metropolitan-district-council/leeds,Leeds City Council,30/06/2023,Communities Housing and Environment,Customer Access,Supplies and Services,Bought In Professional Services,277,14/06/2023,2306-00115,0.00,18.00,R,Abadit Kiros,No
Http://opendatacommunities.org/id/metropolitan-district-council/leeds,Leeds City Council,30/06/2023,Communities Housing and Environment,Customer Access,Supplies and Services,Bought In Professional Services,277,28/06/2023,2306-00116,0.00,27.00,R,Abadit Kiros,No
Http://opendatacommunities.org/id/metropolitan-district-council/leeds,Leeds City Council,30/06/2023,Communities Housing and Environment,Customer Access,Supplies and Services,Bought In Professional Services,277,28/06/2023,2306-00117,0.00,18.00,R,Abadit Kiros,No
Http://opendatacommunities.org/id/metropolitan-district-council/leeds,Leeds City Council,30/06/2023,Communities Housing and Environment,Customer Access,Supplies and Services,Bought In Professional Services,277,28/06/2023,2306-00118,0.00,40.50,R,Abadit Kiros,No
Http://opendatacommunities.org/id/metropolitan-district-council/leeds,Leeds City Council,30/06/2023,Communities Housing and Environment,Customer Access,Supplies and Services,Bought In Professional Services,277,28/06/2023,2306-00119,0.00,18.00,R,Abadit Kiros,No
Http://opendatacommunities.org/id/metropolitan-district-council/leeds,Leeds City Council,30/06/2023,Communities Housing and Environment,Customer Access,Supplies and Services,Bought In Professional Services,277,28/06/2023,2306-00120,0.00,18.00,R,Abadit Kiros,No
Http://opendatacommunities.org/id/metropolitan-district-council/leeds,Leeds City Council,30/06/2023,Strategy and Resources,Human Resources,Employees,Occupational Health,85,12/06/2023,2306-00121,0.00,40.00,R,Abbey Grange Medical Practice,No
Http://opendatacommunities.org/id/metropolitan-district-council/leeds,Leeds City Council,30/06/2023,Children and Families,Learning,Supplies and Services,Other Hired And Contracted Services,265,07/06/2023,2306-00122,0.00,1050.00,R,Abbey Multi Academy Trust,No
Http://opendatacommunities.org/id/metropolitan-district-council/leeds,Leeds City Council,30/06/2023,Adults and Health,Services For Adults Under 65 Mental/Dis,Agency Payments,Home Care,568,09/06/2023,2306-00123,0.00,252.00,R,Abbeyfield The Dales Limited,No
Http://opendatacommunities.org/id/metropolitan-district-council/leeds,Leeds City Council,30/06/2023,Adults and Health,Services For Adults Under 65 Mental/Dis,Agency Payments,Home Care,568,15/06/2023,2306-00124,0.00,252.00,R,Abbeyfield The Dales Limited,No
Http://opendatacommunities.org/id/metropolitan-district-council/leeds,Leeds City Council,30/06/2023,Adults and Health,Services For Adults Under 65 Mental/Dis,Agency Payments,Home Care,568,29/06/2023,2306-00125,0.00,276.00,R,Abbeyfield The Dales Limited,No
Http://opendatacommunities.org/id/metropolitan-district-council/leeds,Leeds City Council,30/06/2023,Adults and Health,Social Services Support Services,Employees,Training & Development,70,29/06/2023,2306-00126,0.00,4950.00,R,Abbeyfield The Dales Limited,No
Http://opendatacommunities.org/id/metropolitan-district-council/leeds,Leeds City Council,30/06/2023,Children and Families,Social Care,Agency Payments,Placement Support,550,09/06/2023,2306-00127,0.00,71.68,R,REDACTED PERSONAL DATA,No
Http://opendatacommunities.org/id/metropolitan-district-council/leeds,Leeds City Council,30/06/2023,Children and Families,Social Care,Agency Payments,Allowances,546,07/06/2023,2306-00128,0.00,617.35,R,Abbie O Mahony,No
Http://opendatacommunities.org/id/metropolitan-district-council/leeds,Leeds City Council,30/06/2023,Children and Families,Social Care,Agency Payments,Allowances,546,27/06/2023,2306-00129,0.00,621.20,R,Abbie O Mahony,No
Http://opendatacommunities.org/id/metropolitan-district-council/leeds,Leeds City Council,30/06/2023,Children and Families,Social Care,Agency Payments,Services Rendered By Other Organisations,511,02/06/2023,2306-00130,0.00,1343.16,R,REDACTED PERSONAL DATA,No
Http://opendatacommunities.org/id/metropolitan-district-council/leeds,Leeds City Council,30/06/2023,Communities Housing and Environment,Parks and Countryside  ,Supplies and Services,Other Hired And Contracted Services,265,04/05/2023,2306-00131,0.00,1200.00,R,Abbotts Memorial Compa,Yes
Http://opendatacommunities.org/id/metropolitan-district-council/leeds,Leeds City Council,30/06/2023,Communities Housing and Environment,Parks and Countryside  ,Supplies and Services,Other Hired And Contracted Services,265,10/05/2023,2306-00132,0.00,6000.00,R,Abbotts Memorial Compa,Yes
Http://opendatacommunities.org/id/metropolitan-district-council/leeds,Leeds City Council,30/06/2023,Communities Housing and Environment,Parks and Countryside  ,Supplies and Services,Other Hired And Contracted Services,265,26/05/2023,2306-00133,0.00,1200.00,R,Abbotts Memorial Compa,Yes
Http://opendatacommunities.org/id/metropolitan-district-council/leeds,Leeds City Council,30/06/2023,Children and Families,Social Care,Agency Payments,General External Residential Placements,507,08/06/2023,2306-00134,0.00,21357.27,R,Abc Care And Education Ltd,No
Http://opendatacommunities.org/id/metropolitan-district-council/leeds,Leeds City Council,30/06/2023,Children and Families,Social Care,Agency Payments,General External Residential Placements,507,19/06/2023,2306-00135,0.00,16928.70,R,Abc Care And Education Ltd,No
Http://opendatacommunities.org/id/metropolitan-district-council/leeds,Leeds City Council,30/06/2023,Children and Families,Social Care,Agency Payments,General External Residential Placements,507,26/06/2023,2306-00136,0.00,33827.52,R,Abc Care And Education Ltd,No
Http://opendatacommunities.org/id/metropolitan-district-council/leeds,Leeds City Council,30/06/2023,Children and Families,Social Care  ,Transport,Public Transport Expenses,310,04/05/2023,2306-00137,0.00,11.80,R,Abc Coaches Limited,Yes
Http://opendatacommunities.org/id/metropolitan-district-council/leeds,Leeds City Council,30/06/2023,Children and Families,Social Care,Agency Payments,Services Rendered By Other Organisations,511,02/06/2023,2306-00138,0.00,8826.48,R,ABC NURSERY AT LUFC,No
Http://opendatacommunities.org/id/metropolitan-district-council/leeds,Leeds City Council,30/06/2023,Children and Families,Social Care,Agency Payments,Services Rendered By Other Organisations,511,07/06/2023,2306-00139,0.00,2747.16,R,ABC NURSERY AT LUFC,No
Http://opendatacommunities.org/id/metropolitan-district-council/leeds,Leeds City Council,30/06/2023,Children and Families,Social Care,Agency Payments,Services Rendered By Other Organisations,511,02/06/2023,2306-00140,0.00,7291.44,R,Abc@D'S Childcare,No
Http://opendatacommunities.org/id/metropolitan-district-council/leeds,Leeds City Council,30/06/2023,Children and Families,Social Care,Agency Payments,Services Rendered By Other Organisations,511,07/06/2023,2306-00141,0.00,915.72,R,Abc@D'S Childcare,No
Http://opendatacommunities.org/id/metropolitan-district-council/leeds,Leeds City Council,30/06/2023,Communities Housing and Environment,Customer Access,Supplies and Services,Bought In Professional Services,277,02/06/2023,2306-00142,0.00,25.50,R,Abdalla Ahmed,No
Http://opendatacommunities.org/id/metropolitan-district-council/leeds,Leeds City Council,30/06/2023,Communities Housing and Environment,Customer Access,Supplies and Services,Bought In Professional Services,277,02/06/2023,2306-00143,0.00,31.50,R,Abdalla Ahmed,No
Http://opendatacommunities.org/id/metropolitan-district-council/leeds,Leeds City Council,30/06/2023,Communities Housing and Environment,Customer Access,Supplies and Services,Bought In Professional Services,277,07/06/2023,2306-00144,0.00,64.50,R,Abdalla Ahmed,No
Http://opendatacommunities.org/id/metropolitan-district-council/leeds,Leeds City Council,30/06/2023,Communities Housing and Environment,Customer Access,Supplies and Services,Bought In Professional Services,277,07/06/2023,2306-00145,0.00,36.00,R,Abdalla Ahmed,No
Http://opendatacommunities.org/id/metropolitan-district-council/leeds,Leeds City Council,30/06/2023,Communities Housing and Environment,Customer Access,Supplies and Services,Bought In Professional Services,277,07/06/2023,2306-00146,0.00,25.50,R,Abdalla Ahmed,No
Http://opendatacommunities.org/id/metropolitan-district-council/leeds,Leeds City Council,30/06/2023,Communities Housing and Environment,Customer Access,Supplies and Services,Bought In Professional Services,277,14/06/2023,2306-00147,0.00,29.70,R,Abdalla Ahmed,No
Http://opendatacommunities.org/id/metropolitan-district-council/leeds,Leeds City Council,30/06/2023,Communities Housing and Environment,Customer Access,Supplies and Services,Bought In Professional Services,277,14/06/2023,2306-00148,0.00,43.50,R,Abdalla Ahmed,No
Http://opendatacommunities.org/id/metropolitan-district-council/leeds,Leeds City Council,30/06/2023,Communities Housing and Environment,Customer Access,Supplies and Services,Bought In Professional Services,277,21/06/2023,2306-00149,0.00,18.00,R,Abdalla Ahmed,No
Http://opendatacommunities.org/id/metropolitan-district-council/leeds,Leeds City Council,30/06/2023,Communities Housing and Environment,Customer Access,Supplies and Services,Bought In Professional Services,277,21/06/2023,2306-00150,0.00,18.00,R,Abdalla Ahmed,No
Http://opendatacommunities.org/id/metropolitan-district-council/leeds,Leeds City Council,30/06/2023,Communities Housing and Environment,Customer Access,Supplies and Services,Bought In Professional Services,277,21/06/2023,2306-00151,0.00,18.00,R,Abdalla Ahmed,No
Http://opendatacommunities.org/id/metropolitan-district-council/leeds,Leeds City Council,30/06/2023,Communities Housing and Environment,Customer Access,Supplies and Services,Bought In Professional Services,277,21/06/2023,2306-00152,0.00,43.50,R,Abdalla Ahmed,No
Http://opendatacommunities.org/id/metropolitan-district-council/leeds,Leeds City Council,30/06/2023,Communities Housing and Environment,Customer Access,Supplies and Services,Bought In Professional Services,277,28/06/2023,2306-00153,0.00,54.00,R,Abdalla Ahmed,No
Http://opendatacommunities.org/id/metropolitan-district-council/leeds,Leeds City Council,30/06/2023,Communities Housing and Environment,Customer Access,Supplies and Services,Bought In Professional Services,277,28/06/2023,2306-00154,0.00,25.50,R,Abdalla Ahmed,No
Http://opendatacommunities.org/id/metropolitan-district-council/leeds,Leeds City Council,30/06/2023,Communities Housing and Environment,Customer Access,Supplies and Services,Bought In Professional Services,277,14/06/2023,2306-00155,0.00,18.00,R,Abdul Kalam,No
Http://opendatacommunities.org/id/metropolitan-district-council/leeds,Leeds City Council,30/06/2023,Communities Housing and Environment,Customer Access,Supplies and Services,Bought In Professional Services,277,14/06/2023,2306-00156,0.00,27.00,R,Abdul Kalam,No
Http://opendatacommunities.org/id/metropolitan-district-council/leeds,Leeds City Council,30/06/2023,Communities Housing and Environment,Customer Access,Supplies and Services,Bought In Professional Services,277,14/06/2023,2306-00157,0.00,18.00,R,Abdul Kalam,No
Http://opendatacommunities.org/id/metropolitan-district-council/leeds,Leeds City Council,30/06/2023,Communities Housing and Environment,Customer Access,Supplies and Services,Bought In Professional Services,277,21/06/2023,2306-00158,0.00,27.00,R,Abdul Kalam,No
Http://opendatacommunities.org/id/metropolitan-district-council/leeds,Leeds City Council,30/06/2023,Communities Housing and Environment,Customer Access,Supplies and Services,Bought In Professional Services,277,28/06/2023,2306-00159,0.00,18.00,R,Abdul Kalam,No
Http://opendatacommunities.org/id/metropolitan-district-council/leeds,Leeds City Council,30/06/2023,Communities Housing and Environment,Customer Access,Supplies and Services,Bought In Professional Services,277,28/06/2023,2306-00160,0.00,18.00,R,Abdul Kalam,No
Http://opendatacommunities.org/id/metropolitan-district-council/leeds,Leeds City Council,30/06/2023,Communities Housing and Environment,Customer Access,Supplies and Services,Bought In Professional Services,277,28/06/2023,2306-00161,0.00,18.00,R,Abdul Kalam,No
Http://opendatacommunities.org/id/metropolitan-district-council/leeds,Leeds City Council,30/06/2023,Children and Families,Social Care,Agency Payments,Placement Support,550,22/06/2023,2306-00162,0.00,100.00,R,REDACTED PERSONAL DATA,No
Http://opendatacommunities.org/id/metropolitan-district-council/leeds,Leeds City Council,30/06/2023,Communities Housing and Environment,Customer Access,Supplies and Services,Bought In Professional Services,277,14/06/2023,2306-00163,0.00,27.00,R,Abdulahad Denha,No
Http://opendatacommunities.org/id/metropolitan-district-council/leeds,Leeds City Council,30/06/2023,Communities Housing and Environment,Customer Access,Supplies and Services,Bought In Professional Services,277,14/06/2023,2306-00164,0.00,18.00,R,Abdulahad Denha,No
Http://opendatacommunities.org/id/metropolitan-district-council/leeds,Leeds City Council,30/06/2023,Communities Housing and Environment,Customer Access,Supplies and Services,Bought In Professional Services,277,21/06/2023,2306-00165,0.00,18.00,R,Abdulahad Denha,No
Http://opendatacommunities.org/id/metropolitan-district-council/leeds,Leeds City Council,30/06/2023,Communities Housing and Environment,Customer Access,Supplies and Services,Bought In Professional Services,277,28/06/2023,2306-00166,0.00,27.00,R,Abdulahad Denha,No
Http://opendatacommunities.org/id/metropolitan-district-council/leeds,Leeds City Council,30/06/2023,Strategic Landlord,HRA Housing Leeds,Capital,LAND,1,26/06/2023,2306-00167,0.00,6514.80,C,REDACTED PERSONAL DATA,No
Http://opendatacommunities.org/id/metropolitan-district-council/leeds,Leeds City Council,30/06/2023,Communities Housing and Environment,Customer Access,Supplies and Services,Bought In Professional Services,277,02/06/2023,2306-00168,0.00,9.00,R,Abdulrahim Dastyar,No
Http://opendatacommunities.org/id/metropolitan-district-council/leeds,Leeds City Council,30/06/2023,Communities Housing and Environment,Customer Access,Supplies and Services,Bought In Professional Services,277,02/06/2023,2306-00169,0.00,16.50,R,Abdulrahim Dastyar,No
Http://opendatacommunities.org/id/metropolitan-district-council/leeds,Leeds City Council,30/06/2023,Communities Housing and Environment,Customer Access,Supplies and Services,Bought In Professional Services,277,07/06/2023,2306-00170,0.00,27.00,R,Abdulrahim Dastyar,No
Http://opendatacommunities.org/id/metropolitan-district-council/leeds,Leeds City Council,30/06/2023,Communities Housing and Environment,Customer Access,Supplies and Services,Bought In Professional Services,277,14/06/2023,2306-00171,0.00,18.00,R,Abdulrahim Dastyar,No
Http://opendatacommunities.org/id/metropolitan-district-council/leeds,Leeds City Council,30/06/2023,Communities Housing and Environment,Customer Access,Supplies and Services,Bought In Professional Services,277,21/06/2023,2306-00172,0.00,18.00,R,Abdulrahim Dastyar,No
Http://opendatacommunities.org/id/metropolitan-district-council/leeds,Leeds City Council,30/06/2023,Communities Housing and Environment,Customer Access,Supplies and Services,Bought In Professional Services,277,21/06/2023,2306-00173,0.00,18.00,R,Abdulrahim Dastyar,No
Http://opendatacommunities.org/id/metropolitan-district-council/leeds,Leeds City Council,30/06/2023,Communities Housing and Environment,Customer Access,Supplies and Services,Bought In Professional Services,277,28/06/2023,2306-00174,0.00,18.00,R,Abdulrahim Dastyar,No
Http://opendatacommunities.org/id/metropolitan-district-council/leeds,Leeds City Council,30/06/2023,Communities Housing and Environment,Customer Access,Supplies and Services,Bought In Professional Services,277,28/06/2023,2306-00175,0.00,18.00,R,Abdulrahim Dastyar,No
Http://opendatacommunities.org/id/metropolitan-district-council/leeds,Leeds City Council,30/06/2023,Communities Housing and Environment,Customer Access,Supplies and Services,Bought In Professional Services,277,28/06/2023,2306-00176,0.00,9.00,R,Abdulrahim Dastyar,No
Http://opendatacommunities.org/id/metropolitan-district-council/leeds,Leeds City Council,30/06/2023,Communities Housing and Environment,Car Parking Services,External Income,Penalties Fines & Car Parking Charges,934,14/06/2023,2306-00177,0.00,4.30,R,REDACTED PERSONAL DATA,No
Http://opendatacommunities.org/id/metropolitan-district-council/leeds,Leeds City Council,30/06/2023,Communities Housing and Environment,Climate Energy & Greenspaces,Supplies and Services,Non-Recurring Grants,227,01/06/2023,2306-00178,0.00,605.00,R,ABERFORD AND DISTRICT PARISH COUNCIL,No
Http://opendatacommunities.org/id/metropolitan-district-council/leeds,Leeds City Council,30/06/2023,Adults and Health,Services For Older People - 65 And Over,Agency Payments,Nursing Home,570,21/06/2023,2306-00179,0.00,37006.24,R,Aberford Hall,No
Http://opendatacommunities.org/id/metropolitan-district-council/leeds,Leeds City Council,30/06/2023,Adults and Health,Services For Older People Under 65 P/Dis,Agency Payments,Nursing Home,570,21/06/2023,2306-00180,0.00,3016.00,R,Aberford Hall,No
Http://opendatacommunities.org/id/metropolitan-district-council/leeds,Leeds City Council,30/06/2023,Communities Housing and Environment,Communities,Supplies and Services,'Well Being' Large Grants Projects,230,19/06/2023,2306-00181,0.00,300.00,R,Aberford Horticultural Society,No
Http://opendatacommunities.org/id/metropolitan-district-council/leeds,Leeds City Council,30/06/2023,Strategy and Resources,Leeds Building Services,Supplies and Services,Operational Materials,205,02/06/2023,2306-00182,0.00,390.88,R,ABI GARAGE DOORS LTD,No
Http://opendatacommunities.org/id/metropolitan-district-council/leeds,Leeds City Council,30/06/2023,Strategy and Resources,Leeds Building Services,Supplies and Services,Operational Materials,205,08/06/2023,2306-00183,0.00,8.75,R,ABI GARAGE DOORS LTD,No
Http://opendatacommunities.org/id/metropolitan-district-council/leeds,Leeds City Council,30/06/2023,Strategy and Resources,Leeds Building Services,Supplies and Services,Operational Materials,205,08/06/2023,2306-00184,0.00,46.75,R,ABI GARAGE DOORS LTD,No
Http://opendatacommunities.org/id/metropolitan-district-council/leeds,Leeds City Council,30/06/2023,Strategy and Resources,Leeds Building Services,Supplies and Services,Operational Materials,205,16/06/2023,2306-00185,0.00,390.88,R,ABI GARAGE DOORS LTD,No
Http://opendatacommunities.org/id/metropolitan-district-council/leeds,Leeds City Council,30/06/2023,Strategy and Resources,Leeds Building Services,Supplies and Services,Operational Materials,205,20/06/2023,2306-00186,0.00,452.64,R,ABI GARAGE DOORS LTD,No
Http://opendatacommunities.org/id/metropolitan-district-council/leeds,Leeds City Council,30/06/2023,Adults and Health,Social Services Support Services,Employees,Training & Development,70,16/06/2023,2306-00187,0.00,13.00,R,REDACTED PERSONAL DATA,No
Http://opendatacommunities.org/id/metropolitan-district-council/leeds,Leeds City Council,30/06/2023,Children and Families,Social Care,Agency Payments, Direct Work,549,05/06/2023,2306-00188,0.00,27.85,R,REDACTED PERSONAL DATA,No
Http://opendatacommunities.org/id/metropolitan-district-council/leeds,Leeds City Council,30/06/2023,Communities Housing and Environment,Strategic Housing Partnership & Support,Capital,CONSTRUCTION,3,09/06/2023,2306-00189,0.00,5800.00,C,Ability Wetrooms Limited,No
Http://opendatacommunities.org/id/metropolitan-district-council/leeds,Leeds City Council,30/06/2023,Children and Families,Social Care  ,Supplies and Services,Office Consumables,210,09/05/2023,2306-00190,0.00,166.43,R,Absolute,Yes
Http://opendatacommunities.org/id/metropolitan-district-council/leeds,Leeds City Council,30/06/2023,Children and Families,Social Care,Agency Payments,General External Residential Placements,507,29/06/2023,2306-00191,0.00,17692.01,R,Absolute Children's Services Ltd,No
Http://opendatacommunities.org/id/metropolitan-district-council/leeds,Leeds City Council,30/06/2023,City Development,Economic Development,Supplies and Services,Grants To Businesses,243,26/06/2023,2306-00192,0.00,10397.96,R,Abstract Tech Limited,No
Http://opendatacommunities.org/id/metropolitan-district-council/leeds,Leeds City Council,30/06/2023,Adults and Health,Service Strategy,Supplies and Services,Consultancy Services,259,30/06/2023,2306-00193,0.00,4550.00,R,Acainn Ltd,No
Http://opendatacommunities.org/id/metropolitan-district-council/leeds,Leeds City Council,30/06/2023,Resources,Finance  ,Employees,Training & Development,70,16/05/2023,2306-00194,0.00,115.00,R,Acas,Yes
Http://opendatacommunities.org/id/metropolitan-district-council/leeds,Leeds City Council,30/06/2023,City Development,Economic Development  ,Supplies and Services,Food & Drink,231,24/05/2023,2306-00195,0.00,12.03,R,Accente Gastro. Service,Yes
Http://opendatacommunities.org/id/metropolitan-district-council/leeds,Leeds City Council,30/06/2023,City Development,Economic Development  ,Supplies and Services,Subsistence,256,23/05/2023,2306-00196,0.00,11.14,R,Accente Gastronomie Servi,Yes
Http://opendatacommunities.org/id/metropolitan-district-council/leeds,Leeds City Council,30/06/2023,City Development,Economic Development  ,Supplies and Services,Subsistence,256,25/05/2023,2306-00197,0.00,5.66,R,Accente Gastronomie Servi,Yes
Http://opendatacommunities.org/id/metropolitan-district-council/leeds,Leeds City Council,30/06/2023,Insurance,Insurance,Supplies and Services,Insurance Claims,248,19/06/2023,2306-00198,0.00,3048.50,R,Accident Exchange Ltd,No
Http://opendatacommunities.org/id/metropolitan-district-council/leeds,Leeds City Council as Accountable Body ,30/06/2023,Social Services Pooled Budgets,Leeds Community Equip Store Pooled Budgt,Supplies and Services,Other Equipment,203,02/06/2023,2306-00199,0.00,58.00,R,Accora,No
Http://opendatacommunities.org/id/metropolitan-district-council/leeds,Leeds City Council,30/06/2023,City Development,Recreation,Transport,External Hire -Occasional,304,01/06/2023,2306-00200,0.00,128.65,R,ACE CONTAINER SERVICES LIMITED,No
Http://opendatacommunities.org/id/metropolitan-district-council/leeds,Leeds City Council,30/06/2023,City Development,Recreation,Transport,External Hire -Occasional,304,30/06/2023,2306-00201,0.00,124.50,R,ACE CONTAINER SERVICES LIMITED,No
Http://opendatacommunities.org/id/metropolitan-district-council/leeds,Leeds City Council,30/06/2023,Children and Families,Learning,Agency Payments,SEN Placements,566,15/06/2023,2306-00202,0.00,20455.00,R,ACKWORTH SCHOOL,No
Http://opendatacommunities.org/id/metropolitan-district-council/leeds,Leeds City Council,30/06/2023,Children and Families,Learning,Agency Payments,SEN Placements,566,15/06/2023,2306-00203,0.00,20455.00,R,ACKWORTH SCHOOL,No
Http://opendatacommunities.org/id/metropolitan-district-council/leeds,Leeds City Council,30/06/2023,Children and Families,Learning,Agency Payments,SEN Placements,566,15/06/2023,2306-00204,0.00,20455.00,R,ACKWORTH SCHOOL,No
Http://opendatacommunities.org/id/metropolitan-district-council/leeds,Leeds City Council,30/06/2023,Children and Families,Learning,Agency Payments,SEN Placements,566,15/06/2023,2306-00205,0.00,20455.00,R,ACKWORTH SCHOOL,No
Http://opendatacommunities.org/id/metropolitan-district-council/leeds,Leeds City Council,30/06/2023,Communities Housing and Environment,Parks and Countryside  ,Supplies and Services,Other Hired And Contracted Services,265,05/05/2023,2306-00206,0.00,101.25,R,Acme Facilities Group,Yes
Http://opendatacommunities.org/id/metropolitan-district-council/leeds,Leeds City Council,30/06/2023,Communities Housing and Environment,Parks and Countryside  ,Supplies and Services,Other Hired And Contracted Services,265,10/05/2023,2306-00207,0.00,207.89,R,Acme Facilities Group,Yes
Http://opendatacommunities.org/id/metropolitan-district-council/leeds,Leeds City Council,30/06/2023,Strategy and Resources,Leeds Building Services,Supplies and Services,Other Hired And Contracted Services,265,16/06/2023,2306-00208,0.00,364.00,R,Acorn Analytical Services Limited,No
Http://opendatacommunities.org/id/metropolitan-district-council/leeds,Leeds City Council as Accountable Body ,30/06/2023,Social Services Pooled Budgets,Jcs For People With Learning Disabilitie,Agency Payments,Residential,580,21/06/2023,2306-00209,0.00,55436.00,R,Acorn Care & Education Limited,No
Http://opendatacommunities.org/id/metropolitan-district-council/leeds,Leeds City Council as Accountable Body ,30/06/2023,Social Services Pooled Budgets,Jcs For People With Learning Disabilitie,Agency Payments,Residential,580,21/06/2023,2306-00210,0.00,103912.96,R,Acorn Care & Education Limited,No
Http://opendatacommunities.org/id/metropolitan-district-council/leeds,Leeds City Council as Accountable Body ,30/06/2023,Social Services Pooled Budgets,Jcs For People With Learning Disabilitie,Agency Payments,Residential,580,21/06/2023,2306-00211,0.00,48457.80,R,Acorn Care & Education Limited (Ofg),No
Http://opendatacommunities.org/id/metropolitan-district-council/leeds,Leeds City Council,30/06/2023,Children and Families,Social Care,Agency Payments,General External Residential Placements,507,09/06/2023,2306-00212,0.00,16692.86,R,Acorn Care & Education Ltd (Sales),No
Http://opendatacommunities.org/id/metropolitan-district-council/leeds,Leeds City Council,30/06/2023,Children and Families,Social Care,Agency Payments,General External Residential Placements,507,09/06/2023,2306-00213,0.00,18257.14,R,Acorn Care & Education Ltd (Sales),No
Http://opendatacommunities.org/id/metropolitan-district-council/leeds,Leeds City Council,30/06/2023,Children and Families,Social Care,Agency Payments,General External Residential Placements,507,30/06/2023,2306-00214,0.00,19048.75,R,Acorn Care & Education Ltd (Sales),No
Http://opendatacommunities.org/id/metropolitan-district-council/leeds,Leeds City Council,30/06/2023,Children and Families,Social Care,Agency Payments,General External Residential Placements,507,30/06/2023,2306-00215,0.00,13387.57,R,Acorn Care & Education Ltd (Sales),No
Http://opendatacommunities.org/id/metropolitan-district-council/leeds,Leeds City Council,30/06/2023,Children and Families,Social Care,Agency Payments,General External Residential Placements,507,30/06/2023,2306-00216,0.00,9517.00,R,Acorn Care & Education Ltd (Sales),No
Http://opendatacommunities.org/id/metropolitan-district-council/leeds,Leeds City Council,30/06/2023,Children and Families,Social Care,Agency Payments,General External Residential Placements,507,30/06/2023,2306-00217,0.00,18635.34,R,Acorn Care & Education Ltd (Sales),No
Http://opendatacommunities.org/id/metropolitan-district-council/leeds,Leeds City Council,30/06/2023,Children and Families,Social Care,Agency Payments,General External Residential Placements,507,30/06/2023,2306-00218,0.00,18434.27,R,Acorn Care & Education Ltd (Sales),No
Http://opendatacommunities.org/id/metropolitan-district-council/leeds,Leeds City Council,30/06/2023,Children and Families,Social Care,Agency Payments,General External Residential Placements,507,30/06/2023,2306-00219,0.00,12955.71,R,Acorn Care & Education Ltd (Sales),No
Http://opendatacommunities.org/id/metropolitan-district-council/leeds,Leeds City Council,30/06/2023,Children and Families,Social Care,Agency Payments,General External Residential Placements,507,30/06/2023,2306-00220,0.00,9210.00,R,Acorn Care & Education Ltd (Sales),No
Http://opendatacommunities.org/id/metropolitan-district-council/leeds,Leeds City Council,30/06/2023,Children and Families,Social Care,Agency Payments,General External Residential Placements,507,30/06/2023,2306-00221,0.00,18034.20,R,Acorn Care & Education Ltd (Sales),No
Http://opendatacommunities.org/id/metropolitan-district-council/leeds,Leeds City Council,30/06/2023,Adults and Health,Services For Older People Under 65 P/Dis,Agency Payments,Nursing Home,570,21/06/2023,2306-00222,0.00,3500.00,R,Acorn Care Home,No
Http://opendatacommunities.org/id/metropolitan-district-council/leeds,Leeds City Council,30/06/2023,Children and Families,Social Care,Agency Payments,Services Rendered By Other Organisations,511,02/06/2023,2306-00223,0.00,11129.04,R,ACORNS NURSERY,No
Http://opendatacommunities.org/id/metropolitan-district-council/leeds,Leeds City Council,30/06/2023,Children and Families,Social Care,Agency Payments,Services Rendered By Other Organisations,511,07/06/2023,2306-00224,0.00,457.86,R,ACORNS NURSERY,No
Http://opendatacommunities.org/id/metropolitan-district-council/leeds,Leeds City Council,30/06/2023,Communities Housing and Environment,Environmental Health,Supplies and Services,Other Hired And Contracted Services,265,05/06/2023,2306-00225,0.00,553.00,R,Acoustic Calibration Services Limited,No
Http://opendatacommunities.org/id/metropolitan-district-council/leeds,Leeds City Council,30/06/2023,Adults and Health,Services For Older People - 65 And Over,Agency Payments,Nursing Home,570,21/06/2023,2306-00226,0.00,49211.20,R,Acre Green,No
Http://opendatacommunities.org/id/metropolitan-district-council/leeds,Leeds City Council,30/06/2023,Adults and Health,Services For Older People - 65 And Over,Agency Payments,Residential,580,21/06/2023,2306-00227,0.00,4548.80,R,Acre Green,No
Http://opendatacommunities.org/id/metropolitan-district-council/leeds,Leeds City Council,30/06/2023,Adults and Health,Services For Older People Under 65 P/Dis,Agency Payments,Nursing Home,570,21/06/2023,2306-00228,0.00,12241.85,R,Acre Green,No
Http://opendatacommunities.org/id/metropolitan-district-council/leeds,Leeds City Council,30/06/2023,Adults and Health,Services For Older People Under 65 P/Dis,Agency Payments,Residential,580,21/06/2023,2306-00229,0.00,2071.00,R,Acre Green,No
Http://opendatacommunities.org/id/metropolitan-district-council/leeds,Leeds City Council,30/06/2023,Children and Families,Social Care,Agency Payments,Services Rendered By Other Organisations,511,02/06/2023,2306-00230,0.00,13239.72,R,Acre Wood Day Nursery,No
Http://opendatacommunities.org/id/metropolitan-district-council/leeds,Leeds City Council,30/06/2023,Children and Families,Social Care,Agency Payments,Services Rendered By Other Organisations,511,07/06/2023,2306-00231,0.00,915.72,R,Acre Wood Day Nursery,No
Http://opendatacommunities.org/id/metropolitan-district-council/leeds,Leeds City Council,30/06/2023,City Development,Highways,Premises,General Maintenance,104,16/06/2023,2306-00232,0.00,3235.00,R,ACSOFT LIMITED,No
Http://opendatacommunities.org/id/metropolitan-district-council/leeds,Leeds City Council,30/06/2023,Adults and Health,Services For Adults Under 65 Mental/Dis,Agency Payments,Fees - Level 4,520,09/06/2023,2306-00233,0.00,360.00,R,Action First Assessments Ltd,No
Http://opendatacommunities.org/id/metropolitan-district-council/leeds,Leeds City Council,30/06/2023,Adults and Health,Services For Adults Under 65 Mental/Dis,Agency Payments,Fees - Level 4,520,16/06/2023,2306-00234,0.00,3410.00,R,Action First Assessments Ltd,No
Http://opendatacommunities.org/id/metropolitan-district-council/leeds,Leeds City Council as Accountable Body ,30/06/2023,Social Services Pooled Budgets,Jcs For People With Learning Disabilitie,Agency Payments,Residential,580,21/06/2023,2306-00235,0.00,14117.95,R,Action For Care Contracts Limited,No
Http://opendatacommunities.org/id/metropolitan-district-council/leeds,Leeds City Council,30/06/2023,Children and Families,Social Care,Agency Payments,Independent Fostering Agencies,509,02/06/2023,2306-00236,0.00,5060.44,R,Action For Children Services Ltd,No
Http://opendatacommunities.org/id/metropolitan-district-council/leeds,Leeds City Council,30/06/2023,Children and Families,Social Care,Agency Payments,Independent Fostering Agencies,509,30/06/2023,2306-00237,0.00,4897.20,R,Action For Children Services Ltd,No
Http://opendatacommunities.org/id/metropolitan-district-council/leeds,Leeds City Council,30/06/2023,Children and Families,Social Care,Agency Payments,Independent Fostering Agencies,509,30/06/2023,2306-00238,0.00,5060.44,R,Action For Children Services Ltd,No
Http://opendatacommunities.org/id/metropolitan-district-council/leeds,Leeds City Council,30/06/2023,Adults and Health,Services For Older People - 65 And Over,Agency Payments,Payments To Voluntary Organisations,561,30/06/2023,2306-00239,0.00,45009.02,R,ACTION FOR GIPTON ELDERLY,No
Http://opendatacommunities.org/id/metropolitan-district-council/leeds,Leeds City Council,30/06/2023,Strategic Landlord,Housing Management,Supplies and Services,Grants To Voluntary Organisations,293,16/06/2023,2306-00240,0.00,500.00,R,Action For Seacroft,No
Http://opendatacommunities.org/id/metropolitan-district-council/leeds,Leeds City Council,30/06/2023,Children and Families,Social Care,Agency Payments,Services Rendered By Other Organisations,511,02/06/2023,2306-00241,0.00,7214.69,R,ACTIVE KIDS YEADON LLP,No
Http://opendatacommunities.org/id/metropolitan-district-council/leeds,Leeds City Council,30/06/2023,Children and Families,Social Care,Agency Payments,Services Rendered By Other Organisations,511,07/06/2023,2306-00242,0.00,915.72,R,ACTIVE KIDS YEADON LLP,No
Http://opendatacommunities.org/id/metropolitan-district-council/leeds,Leeds City Council,30/06/2023,Adults and Health,Services For Adults Under 65 Mental/Dis,Agency Payments,Sheltered Accommodation,569,21/06/2023,2306-00243,0.00,5112.42,R,Active Pathways,No
Http://opendatacommunities.org/id/metropolitan-district-council/leeds,Leeds City Council,30/06/2023,Adults and Health,Services For Older People - 65 And Over,Agency Payments,Sheltered Accommodation,569,21/06/2023,2306-00244,0.00,4150.84,R,Active Pathways,No
Http://opendatacommunities.org/id/metropolitan-district-council/leeds,Leeds City Council as Accountable Body ,30/06/2023,Social Services Pooled Budgets,Jcs For People With Learning Disabilitie,Agency Payments,Sheltered Accommodation,569,21/06/2023,2306-00245,0.00,8301.68,R,Active Pathways,No
Http://opendatacommunities.org/id/metropolitan-district-council/leeds,Leeds City Council,30/06/2023,Adults and Health,Services For Adults Under 65 Mental/Dis,Agency Payments,Residential,580,21/06/2023,2306-00246,0.00,12973.80,R,Active Pathways Limited,No
Http://opendatacommunities.org/id/metropolitan-district-council/leeds,Leeds City Council,30/06/2023,Communities Housing and Environment,Waste Management,Supplies and Services,Recycling & Reuse Charges,234,01/06/2023,2306-00247,0.00,8695.44,R,Acumen Waste Services Ltd,No
Http://opendatacommunities.org/id/metropolitan-district-council/leeds,Leeds City Council,30/06/2023,Communities Housing and Environment,Waste Management,Supplies and Services,Waste Disposal Charges,236,02/06/2023,2306-00248,0.00,854.50,R,Acumen Waste Services Ltd,No
Http://opendatacommunities.org/id/metropolitan-district-council/leeds,Leeds City Council,30/06/2023,Communities Housing and Environment,Waste Management,Supplies and Services,Waste Disposal Charges,236,02/06/2023,2306-00249,0.00,1090.70,R,Acumen Waste Services Ltd,No
Http://opendatacommunities.org/id/metropolitan-district-council/leeds,Leeds City Council,30/06/2023,Communities Housing and Environment,Waste Management,Supplies and Services,Waste Disposal Charges,236,02/06/2023,2306-00250,0.00,454.30,R,Acumen Waste Services Ltd,No
Http://opendatacommunities.org/id/metropolitan-district-council/leeds,Leeds City Council,30/06/2023,Communities Housing and Environment,Waste Management,Supplies and Services,Waste Disposal Charges,236,02/06/2023,2306-00251,0.00,1051.70,R,Acumen Waste Services Ltd,No
Http://opendatacommunities.org/id/metropolitan-district-council/leeds,Leeds City Council,30/06/2023,Communities Housing and Environment,Waste Management,Supplies and Services,Recycling & Reuse Charges,234,14/06/2023,2306-00252,0.00,9395.28,R,Acumen Waste Services Ltd,No
Http://opendatacommunities.org/id/metropolitan-district-council/leeds,Leeds City Council,30/06/2023,Communities Housing and Environment,Waste Management,Supplies and Services,Recycling & Reuse Charges,234,14/06/2023,2306-00253,0.00,7590.24,R,Acumen Waste Services Ltd,No
Http://opendatacommunities.org/id/metropolitan-district-council/leeds,Leeds City Council,30/06/2023,Communities Housing and Environment,Waste Management,Supplies and Services,Recycling & Reuse Charges,234,21/06/2023,2306-00254,0.00,7557.12,R,Acumen Waste Services Ltd,No
Http://opendatacommunities.org/id/metropolitan-district-council/leeds,Leeds City Council,30/06/2023,Communities Housing and Environment,Waste Management,Supplies and Services,Recycling & Reuse Charges,234,23/06/2023,2306-00255,0.00,8617.68,R,Acumen Waste Services Ltd,No
Http://opendatacommunities.org/id/metropolitan-district-council/leeds,Leeds City Council,30/06/2023,Communities Housing and Environment,Waste Management,Supplies and Services,Waste Disposal Charges,236,30/06/2023,2306-00256,0.00,275.00,R,Acumen Waste Services Ltd,No
Http://opendatacommunities.org/id/metropolitan-district-council/leeds,Leeds City Council,30/06/2023,Communities Housing and Environment,Waste Management,Supplies and Services,Waste Disposal Charges,236,30/06/2023,2306-00257,0.00,275.00,R,Acumen Waste Services Ltd,No
Http://opendatacommunities.org/id/metropolitan-district-council/leeds,Leeds City Council,30/06/2023,Communities Housing and Environment,Waste Management,Supplies and Services,Waste Disposal Charges,236,30/06/2023,2306-00258,0.00,927.25,R,Acumen Waste Services Ltd,No
Http://opendatacommunities.org/id/metropolitan-district-council/leeds,Leeds City Council,30/06/2023,Communities Housing and Environment,Waste Management,Supplies and Services,Waste Disposal Charges,236,30/06/2023,2306-00259,0.00,275.00,R,Acumen Waste Services Ltd,No
Http://opendatacommunities.org/id/metropolitan-district-council/leeds,Leeds City Council,30/06/2023,Communities Housing and Environment,Waste Management,Supplies and Services,Waste Disposal Charges,236,30/06/2023,2306-00260,0.00,1227.10,R,Acumen Waste Services Ltd,No
Http://opendatacommunities.org/id/metropolitan-district-council/leeds,Leeds City Council,30/06/2023,Communities Housing and Environment,Waste Management,Supplies and Services,Waste Disposal Charges,236,30/06/2023,2306-00261,0.00,275.00,R,Acumen Waste Services Ltd,No
Http://opendatacommunities.org/id/metropolitan-district-council/leeds,Leeds City Council,30/06/2023,Communities Housing and Environment,Waste Management,Supplies and Services,Waste Disposal Charges,236,30/06/2023,2306-00262,0.00,784.85,R,Acumen Waste Services Ltd,No
Http://opendatacommunities.org/id/metropolitan-district-council/leeds,Leeds City Council,30/06/2023,Communities Housing and Environment,Waste Management,Supplies and Services,Waste Disposal Charges,236,30/06/2023,2306-00263,0.00,906.95,R,Acumen Waste Services Ltd,No
Http://opendatacommunities.org/id/metropolitan-district-council/leeds,Leeds City Council,30/06/2023,Communities Housing and Environment,Waste Management,Supplies and Services,Waste Disposal Charges,236,30/06/2023,2306-00264,0.00,104.50,R,Acumen Waste Services Ltd,No
Http://opendatacommunities.org/id/metropolitan-district-council/leeds,Leeds City Council,30/06/2023,Communities Housing and Environment,Waste Management,Supplies and Services,Waste Disposal Charges,236,30/06/2023,2306-00265,0.00,275.00,R,Acumen Waste Services Ltd,No
Http://opendatacommunities.org/id/metropolitan-district-council/leeds,Leeds City Council,30/06/2023,Communities Housing and Environment,Waste Management,Supplies and Services,Recycling & Reuse Charges,234,30/06/2023,2306-00266,0.00,1959.12,R,Acumen Waste Services Ltd,No
Http://opendatacommunities.org/id/metropolitan-district-council/leeds,Leeds City Council,30/06/2023,Strategy and Resources,Shared Services,Supplies and Services,Operational Materials,205,16/06/2023,2306-00267,0.00,215.40,R,AD3 Envelope Printers Limited,No
Http://opendatacommunities.org/id/metropolitan-district-council/leeds,Leeds City Council,30/06/2023,Strategy and Resources,Shared Services,Supplies and Services,Operational Materials,205,16/06/2023,2306-00268,0.00,283.50,R,AD3 Envelope Printers Limited,No
Http://opendatacommunities.org/id/metropolitan-district-council/leeds,Leeds City Council,30/06/2023,Strategy and Resources,Shared Services,Supplies and Services,Operational Materials,205,16/06/2023,2306-00269,0.00,1497.00,R,AD3 Envelope Printers Limited,No
Http://opendatacommunities.org/id/metropolitan-district-council/leeds,Leeds City Council,30/06/2023,Strategy and Resources,Shared Services,Supplies and Services,Other Hired And Contracted Services,265,30/06/2023,2306-00270,0.00,285.95,R,AD3 Envelope Printers Limited,No
Http://opendatacommunities.org/id/metropolitan-district-council/leeds,Leeds City Council,30/06/2023,City Development,Highways,Internal Recharges,Legal Disbursements,411,15/06/2023,2306-00271,0.00,38362.50,R,Adam Aldred,No
Http://opendatacommunities.org/id/metropolitan-district-council/leeds,Leeds City Council,30/06/2023,Children and Families,Social Care,Agency Payments,Allowances,546,01/06/2023,2306-00272,0.00,60.00,R,REDACTED PERSONAL DATA,No
Http://opendatacommunities.org/id/metropolitan-district-council/leeds,Leeds City Council,30/06/2023,Children and Families,Social Care,Appropriations,Leaving Care Allowances,634,01/06/2023,2306-00273,0.00,23.00,R,REDACTED PERSONAL DATA,No
Http://opendatacommunities.org/id/metropolitan-district-council/leeds,Leeds City Council,30/06/2023,Children and Families,Social Care,Appropriations,Leaving Care Allowances,634,16/06/2023,2306-00274,0.00,40.00,R,REDACTED PERSONAL DATA,No
Http://opendatacommunities.org/id/metropolitan-district-council/leeds,Leeds City Council,30/06/2023,Communities Housing and Environment,Strategic Housing Partnership & Support,Capital,CONSTRUCTION,3,09/06/2023,2306-00275,0.00,3000.00,C,Adam'S Gas Services,No
Http://opendatacommunities.org/id/metropolitan-district-council/leeds,Leeds City Council,30/06/2023,Children and Families,Resources & Strategy,Supplies and Services,Other Hired And Contracted Services,265,15/06/2023,2306-00276,0.00,7762.50,R,Adda Hotels Ltd,No
Http://opendatacommunities.org/id/metropolitan-district-council/leeds,Leeds City Council,30/06/2023,Children and Families,Resources & Strategy,Supplies and Services,Other Hired And Contracted Services,265,15/06/2023,2306-00277,0.00,7941.67,R,Adda Hotels Ltd,No
Http://opendatacommunities.org/id/metropolitan-district-council/leeds,Leeds City Council,30/06/2023,Children and Families,Resources & Strategy,Supplies and Services,Conference Meetings,253,28/06/2023,2306-00278,0.00,2489.17,R,Adda Hotels Ltd,No
Http://opendatacommunities.org/id/metropolitan-district-council/leeds,Leeds City Council,30/06/2023,City Development,Economic Development,Supplies and Services,Grants To Businesses,243,02/06/2023,2306-00279,0.00,1858.40,R,Addictive Media,No
Http://opendatacommunities.org/id/metropolitan-district-council/leeds,Leeds City Council,30/06/2023,City Development,Asset Management Services,Supplies and Services,Consultancy Services,259,02/06/2023,2306-00280,0.00,7527.00,R,Addleshaw Goddard LLP,No
Http://opendatacommunities.org/id/metropolitan-district-council/leeds,Leeds City Council,30/06/2023,Communities Housing and Environment,Climate Energy & Greenspaces,Internal Recharges,Professional Legal Services Charges,410,09/06/2023,2306-00281,0.00,8406.00,R,Addleshaw Goddard LLP,No
Http://opendatacommunities.org/id/metropolitan-district-council/leeds,Leeds City Council,30/06/2023,Adults and Health,Services For Older People - 65 And Over,Agency Payments,Residential,580,21/06/2023,2306-00282,0.00,448.55,R,Adel Manor Care Centre,No
Http://opendatacommunities.org/id/metropolitan-district-council/leeds,Leeds City Council,30/06/2023,Strategic Accounts,Miscellaneous,Supplies and Services,Non-Recurring Grants,227,05/06/2023,2306-00283,0.00,350.00,R,Adel Neighbourhood Forum,No
Http://opendatacommunities.org/id/metropolitan-district-council/leeds,Leeds City Council,30/06/2023,Children and Families,Social Care,Agency Payments,Services Rendered By Voluntary Sector,505,02/06/2023,2306-00284,0.00,3453.84,R,ADEL PRE SCHOOL,No
Http://opendatacommunities.org/id/metropolitan-district-council/leeds,Leeds City Council,30/06/2023,Children and Families,Social Care,Agency Payments,Services Rendered By Voluntary Sector,505,07/06/2023,2306-00285,0.00,1373.58,R,ADEL PRE SCHOOL,No
Http://opendatacommunities.org/id/metropolitan-district-council/leeds,Leeds City Council,30/06/2023,City Development,Recreation,Supplies and Services,Bought In Professional Services,277,01/06/2023,2306-00286,0.00,80.00,R,Adele Battersby,No
Http://opendatacommunities.org/id/metropolitan-district-council/leeds,Leeds City Council,30/06/2023,City Development,Recreation,Supplies and Services,Bought In Professional Services,277,29/06/2023,2306-00287,0.00,200.00,R,Adele Battersby,No
Http://opendatacommunities.org/id/metropolitan-district-council/leeds,Leeds City Council,30/06/2023,City Development,Recreation,Supplies and Services,Bought In Professional Services,277,29/06/2023,2306-00288,0.00,60.00,R,Adele Battersby,No
Http://opendatacommunities.org/id/metropolitan-district-council/leeds,Leeds City Council,30/06/2023,City Development,Recreation,Supplies and Services,Bought In Professional Services,277,29/06/2023,2306-00289,0.00,20.00,R,Adele Battersby,No
Http://opendatacommunities.org/id/metropolitan-district-council/leeds,Leeds City Council,30/06/2023,City Development,Recreation,Supplies and Services,Bought In Professional Services,277,30/06/2023,2306-00290,0.00,120.00,R,Adele Battersby,No
Http://opendatacommunities.org/id/metropolitan-district-council/leeds,Leeds City Council,30/06/2023,Children and Families,Social Care,Agency Payments,Services Rendered By Other Organisations,511,02/06/2023,2306-00291,0.00,1343.16,R,REDACTED PERSONAL DATA,No
Http://opendatacommunities.org/id/metropolitan-district-council/leeds,Leeds City Council,30/06/2023,Children and Families,Social Care,Agency Payments,Services Rendered By Other Organisations,511,07/06/2023,2306-00292,0.00,228.93,R,REDACTED PERSONAL DATA,No
Http://opendatacommunities.org/id/metropolitan-district-council/leeds,Leeds City Council,30/06/2023,Children and Families,Social Care,Agency Payments,Contact,548,02/06/2023,2306-00293,0.00,32.00,R,REDACTED PERSONAL DATA,No
Http://opendatacommunities.org/id/metropolitan-district-council/leeds,Leeds City Council,30/06/2023,Communities Housing and Environment,Elections Licensing and Registration  ,Supplies and Services,Operational Furniture And Equipment,203,22/05/2023,2306-00294,0.00,202.25,R,Adexa.Co.Uk,Yes
Http://opendatacommunities.org/id/metropolitan-district-council/leeds,Leeds City Council,30/06/2023,City Development,Libraries Arts & Heritage,Supplies and Services,Other Hired And Contracted Services,265,21/06/2023,2306-00295,0.00,19742.30,R,ADI UK LTD,No
Http://opendatacommunities.org/id/metropolitan-district-council/leeds,Leeds City Council,30/06/2023,Resources,Technology  ,Supplies and Services,Other Hired And Contracted Services,265,18/05/2023,2306-00296,0.00,41.27,R,Adi-Gardiner Ltd,Yes
Http://opendatacommunities.org/id/metropolitan-district-council/leeds,Leeds City Council,30/06/2023,Strategy and Resources,Leeds Building Services,Supplies and Services,Operational Materials,205,02/06/2023,2306-00297,0.00,40.07,R,ADI-Gardiner Ltd,No
Http://opendatacommunities.org/id/metropolitan-district-council/leeds,Leeds City Council,30/06/2023,Strategy and Resources,Leeds Building Services,Supplies and Services,Operational Materials,205,02/06/2023,2306-00298,0.00,69.85,R,ADI-Gardiner Ltd,No
Http://opendatacommunities.org/id/metropolitan-district-council/leeds,Leeds City Council,30/06/2023,Strategy and Resources,Leeds Building Services,Supplies and Services,Operational Materials,205,02/06/2023,2306-00299,0.00,96.91,R,ADI-Gardiner Ltd,No
Http://opendatacommunities.org/id/metropolitan-district-council/leeds,Leeds City Council,30/06/2023,Strategy and Resources,Leeds Building Services,Supplies and Services,Operational Materials,205,02/06/2023,2306-00300,0.00,70.20,R,ADI-Gardiner Ltd,No
Http://opendatacommunities.org/id/metropolitan-district-council/leeds,Leeds City Council,30/06/2023,Strategy and Resources,Leeds Building Services,Supplies and Services,Operational Materials,205,08/06/2023,2306-00301,0.00,40.07,R,ADI-Gardiner Ltd,No
Http://opendatacommunities.org/id/metropolitan-district-council/leeds,Leeds City Council,30/06/2023,Strategy and Resources,Leeds Building Services,Supplies and Services,Operational Materials,205,08/06/2023,2306-00302,0.00,40.07,R,ADI-Gardiner Ltd,No
Http://opendatacommunities.org/id/metropolitan-district-council/leeds,Leeds City Council,30/06/2023,Strategy and Resources,Leeds Building Services,Supplies and Services,Operational Materials,205,08/06/2023,2306-00303,0.00,23.65,R,ADI-Gardiner Ltd,No
Http://opendatacommunities.org/id/metropolitan-district-council/leeds,Leeds City Council,30/06/2023,Strategy and Resources,Leeds Building Services,Supplies and Services,Operational Materials,205,08/06/2023,2306-00304,0.00,150.00,R,ADI-Gardiner Ltd,No
Http://opendatacommunities.org/id/metropolitan-district-council/leeds,Leeds City Council,30/06/2023,Strategy and Resources,Leeds Building Services,Supplies and Services,Operational Materials,205,08/06/2023,2306-00305,0.00,211.31,R,ADI-Gardiner Ltd,No
Http://opendatacommunities.org/id/metropolitan-district-council/leeds,Leeds City Council,30/06/2023,Strategy and Resources,Leeds Building Services,Supplies and Services,Operational Materials,205,08/06/2023,2306-00306,0.00,5690.71,R,ADI-Gardiner Ltd,No
Http://opendatacommunities.org/id/metropolitan-district-council/leeds,Leeds City Council,30/06/2023,Strategy and Resources,Leeds Building Services,Supplies and Services,Operational Materials,205,09/06/2023,2306-00307,0.00,257.38,R,ADI-Gardiner Ltd,No
Http://opendatacommunities.org/id/metropolitan-district-council/leeds,Leeds City Council,30/06/2023,Strategy and Resources,Leeds Building Services,Supplies and Services,Operational Materials,205,09/06/2023,2306-00308,0.00,12.86,R,ADI-Gardiner Ltd,No
Http://opendatacommunities.org/id/metropolitan-district-council/leeds,Leeds City Council,30/06/2023,Strategy and Resources,Leeds Building Services,Supplies and Services,Operational Materials,205,15/06/2023,2306-00309,0.00,6.43,R,ADI-Gardiner Ltd,No
Http://opendatacommunities.org/id/metropolitan-district-council/leeds,Leeds City Council,30/06/2023,Strategy and Resources,Leeds Building Services,Supplies and Services,Operational Materials,205,15/06/2023,2306-00310,0.00,12.86,R,ADI-Gardiner Ltd,No
Http://opendatacommunities.org/id/metropolitan-district-council/leeds,Leeds City Council,30/06/2023,Strategy and Resources,Leeds Building Services,Supplies and Services,Operational Materials,205,15/06/2023,2306-00311,0.00,9.89,R,ADI-Gardiner Ltd,No
Http://opendatacommunities.org/id/metropolitan-district-council/leeds,Leeds City Council,30/06/2023,Strategy and Resources,Leeds Building Services,Supplies and Services,Operational Materials,205,16/06/2023,2306-00312,0.00,17.38,R,ADI-Gardiner Ltd,No
Http://opendatacommunities.org/id/metropolitan-district-council/leeds,Leeds City Council,30/06/2023,Strategy and Resources,Leeds Building Services,Supplies and Services,Operational Materials,205,16/06/2023,2306-00313,0.00,30.40,R,ADI-Gardiner Ltd,No
Http://opendatacommunities.org/id/metropolitan-district-council/leeds,Leeds City Council,30/06/2023,Strategy and Resources,Leeds Building Services,Supplies and Services,Operational Materials,205,16/06/2023,2306-00314,0.00,12.86,R,ADI-Gardiner Ltd,No
Http://opendatacommunities.org/id/metropolitan-district-council/leeds,Leeds City Council,30/06/2023,Strategy and Resources,Leeds Building Services,Supplies and Services,Operational Materials,205,16/06/2023,2306-00315,0.00,7.72,R,ADI-Gardiner Ltd,No
Http://opendatacommunities.org/id/metropolitan-district-council/leeds,Leeds City Council,30/06/2023,Strategy and Resources,Leeds Building Services,Supplies and Services,Operational Materials,205,16/06/2023,2306-00316,0.00,222.69,R,ADI-Gardiner Ltd,No
Http://opendatacommunities.org/id/metropolitan-district-council/leeds,Leeds City Council,30/06/2023,Strategy and Resources,Leeds Building Services,Supplies and Services,Operational Materials,205,20/06/2023,2306-00317,0.00,400.00,R,ADI-Gardiner Ltd,No
Http://opendatacommunities.org/id/metropolitan-district-council/leeds,Leeds City Council,30/06/2023,Strategy and Resources,Leeds Building Services,Supplies and Services,Operational Materials,205,20/06/2023,2306-00318,0.00,127.31,R,ADI-Gardiner Ltd,No
Http://opendatacommunities.org/id/metropolitan-district-council/leeds,Leeds City Council,30/06/2023,Strategy and Resources,Leeds Building Services,Supplies and Services,Operational Materials,205,22/06/2023,2306-00319,0.00,6.08,R,ADI-Gardiner Ltd,No
Http://opendatacommunities.org/id/metropolitan-district-council/leeds,Leeds City Council,30/06/2023,Strategy and Resources,Leeds Building Services,Supplies and Services,Operational Materials,205,22/06/2023,2306-00320,0.00,9.96,R,ADI-Gardiner Ltd,No
Http://opendatacommunities.org/id/metropolitan-district-council/leeds,Leeds City Council,30/06/2023,Strategy and Resources,Leeds Building Services,Supplies and Services,Operational Materials,205,22/06/2023,2306-00321,0.00,11.33,R,ADI-Gardiner Ltd,No
Http://opendatacommunities.org/id/metropolitan-district-council/leeds,Leeds City Council,30/06/2023,Strategy and Resources,Leeds Building Services,Supplies and Services,Operational Materials,205,22/06/2023,2306-00322,0.00,381.93,R,ADI-Gardiner Ltd,No
Http://opendatacommunities.org/id/metropolitan-district-council/leeds,Leeds City Council,30/06/2023,Strategy and Resources,Leeds Building Services,Supplies and Services,Operational Materials,205,23/06/2023,2306-00323,0.00,61.82,R,ADI-Gardiner Ltd,No
Http://opendatacommunities.org/id/metropolitan-district-council/leeds,Leeds City Council,30/06/2023,Strategy and Resources,Leeds Building Services,Supplies and Services,Operational Materials,205,23/06/2023,2306-00324,0.00,12.95,R,ADI-Gardiner Ltd,No
Http://opendatacommunities.org/id/metropolitan-district-council/leeds,Leeds City Council,30/06/2023,Strategy and Resources,Leeds Building Services,Supplies and Services,Operational Materials,205,23/06/2023,2306-00325,0.00,61.82,R,ADI-Gardiner Ltd,No
Http://opendatacommunities.org/id/metropolitan-district-council/leeds,Leeds City Council,30/06/2023,Strategy and Resources,Leeds Building Services,Supplies and Services,Operational Materials,205,23/06/2023,2306-00326,0.00,11.47,R,ADI-Gardiner Ltd,No
Http://opendatacommunities.org/id/metropolitan-district-council/leeds,Leeds City Council,30/06/2023,Strategy and Resources,Leeds Building Services,Supplies and Services,Operational Materials,205,23/06/2023,2306-00327,0.00,14.02,R,ADI-Gardiner Ltd,No
Http://opendatacommunities.org/id/metropolitan-district-council/leeds,Leeds City Council,30/06/2023,Strategy and Resources,Leeds Building Services,Supplies and Services,Operational Materials,205,23/06/2023,2306-00328,0.00,47.30,R,ADI-Gardiner Ltd,No
Http://opendatacommunities.org/id/metropolitan-district-council/leeds,Leeds City Council,30/06/2023,Strategy and Resources,Leeds Building Services,Supplies and Services,Operational Materials,205,23/06/2023,2306-00329,0.00,25.02,R,ADI-Gardiner Ltd,No
Http://opendatacommunities.org/id/metropolitan-district-council/leeds,Leeds City Council,30/06/2023,Strategy and Resources,Leeds Building Services,Supplies and Services,Operational Materials,205,23/06/2023,2306-00330,0.00,28.04,R,ADI-Gardiner Ltd,No
Http://opendatacommunities.org/id/metropolitan-district-council/leeds,Leeds City Council,30/06/2023,Strategy and Resources,Leeds Building Services,Supplies and Services,Operational Materials,205,23/06/2023,2306-00331,0.00,12.86,R,ADI-Gardiner Ltd,No
Http://opendatacommunities.org/id/metropolitan-district-council/leeds,Leeds City Council,30/06/2023,Strategy and Resources,Leeds Building Services,Supplies and Services,Operational Materials,205,30/06/2023,2306-00332,0.00,35.10,R,ADI-Gardiner Ltd,No
Http://opendatacommunities.org/id/metropolitan-district-council/leeds,Leeds City Council,30/06/2023,Strategy and Resources,Leeds Building Services,Supplies and Services,Operational Materials,205,30/06/2023,2306-00333,0.00,21.36,R,ADI-Gardiner Ltd,No
Http://opendatacommunities.org/id/metropolitan-district-council/leeds,Leeds City Council,30/06/2023,Strategy and Resources,Leeds Building Services,Supplies and Services,Operational Materials,205,30/06/2023,2306-00334,0.00,38.71,R,ADI-Gardiner Ltd,No
Http://opendatacommunities.org/id/metropolitan-district-council/leeds,Leeds City Council,30/06/2023,City Development,Libraries Arts & Heritage  ,Supplies and Services,Publication And Promotion,267,07/05/2023,2306-00335,0.00,43.32,R,Adobe Creative Cloud,Yes
Http://opendatacommunities.org/id/metropolitan-district-council/leeds,Leeds City Council,30/06/2023,Children and Families,Social Care,Agency Payments,Independent Fostering Agencies,509,08/06/2023,2306-00336,0.00,3630.00,R,Adolescent And Childrens Trust,No
Http://opendatacommunities.org/id/metropolitan-district-council/leeds,Leeds City Council,30/06/2023,Children and Families,Social Care,Agency Payments,Independent Fostering Agencies,509,08/06/2023,2306-00337,0.00,3630.00,R,Adolescent And Childrens Trust,No
Http://opendatacommunities.org/id/metropolitan-district-council/leeds,Leeds City Council,30/06/2023,Children and Families,Social Care,Agency Payments,Independent Fostering Agencies,509,08/06/2023,2306-00338,0.00,3159.00,R,Adolescent And Childrens Trust,No
Http://opendatacommunities.org/id/metropolitan-district-council/leeds,Leeds City Council,30/06/2023,Children and Families,Social Care,Agency Payments,Independent Fostering Agencies,509,08/06/2023,2306-00339,0.00,3797.10,R,Adolescent And Childrens Trust,No
Http://opendatacommunities.org/id/metropolitan-district-council/leeds,Leeds City Council,30/06/2023,Children and Families,Social Care,Agency Payments,Independent Fostering Agencies,509,08/06/2023,2306-00340,0.00,3630.00,R,Adolescent And Childrens Trust,No
Http://opendatacommunities.org/id/metropolitan-district-council/leeds,Leeds City Council,30/06/2023,Children and Families,Social Care,Agency Payments,Independent Fostering Agencies,509,08/06/2023,2306-00341,0.00,3510.00,R,Adolescent And Childrens Trust,No
Http://opendatacommunities.org/id/metropolitan-district-council/leeds,Leeds City Council,30/06/2023,Children and Families,Social Care,Agency Payments,Independent Fostering Agencies,509,22/06/2023,2306-00342,0.00,3551.67,R,Adolescent And Childrens Trust,No
Http://opendatacommunities.org/id/metropolitan-district-council/leeds,Leeds City Council,30/06/2023,Children and Families,Social Care,Agency Payments,Independent Fostering Agencies,509,30/06/2023,2306-00343,0.00,3450.00,R,Adolescent And Childrens Trust,No
Http://opendatacommunities.org/id/metropolitan-district-council/leeds,Leeds City Council,30/06/2023,Children and Families,Social Care,Agency Payments,Independent Fostering Agencies,509,30/06/2023,2306-00344,0.00,3450.00,R,Adolescent And Childrens Trust,No
Http://opendatacommunities.org/id/metropolitan-district-council/leeds,Leeds City Council,30/06/2023,Children and Families,Social Care,Agency Payments,Independent Fostering Agencies,509,30/06/2023,2306-00345,0.00,3630.00,R,Adolescent And Childrens Trust,No
Http://opendatacommunities.org/id/metropolitan-district-council/leeds,Leeds City Council,30/06/2023,Children and Families,Social Care,Agency Payments,Independent Fostering Agencies,509,30/06/2023,2306-00346,0.00,3630.00,R,Adolescent And Childrens Trust,No
Http://opendatacommunities.org/id/metropolitan-district-council/leeds,Leeds City Council,30/06/2023,Children and Families,Social Care,Agency Payments,Independent Fostering Agencies,509,30/06/2023,2306-00347,0.00,506.28,R,Adolescent And Childrens Trust,No
Http://opendatacommunities.org/id/metropolitan-district-council/leeds,Leeds City Council,30/06/2023,Adults and Health,Services For Adults Under 65 Mental/Dis,Agency Payments,Home Care,568,07/06/2023,2306-00348,0.00,681.66,R,Adopt Healthcare Ltd,No
Http://opendatacommunities.org/id/metropolitan-district-council/leeds,Leeds City Council,30/06/2023,Adults and Health,Services For Adults Under 65 Mental/Dis,Agency Payments,Home Care,568,07/06/2023,2306-00349,0.00,201.15,R,Adopt Healthcare Ltd,No
Http://opendatacommunities.org/id/metropolitan-district-council/leeds,Leeds City Council,30/06/2023,Adults and Health,Services For Adults Under 65 Mental/Dis,Agency Payments,Home Care,568,14/06/2023,2306-00350,0.00,681.66,R,Adopt Healthcare Ltd,No
Http://opendatacommunities.org/id/metropolitan-district-council/leeds,Leeds City Council,30/06/2023,Adults and Health,Services For Adults Under 65 Mental/Dis,Agency Payments,Home Care,568,14/06/2023,2306-00351,0.00,201.15,R,Adopt Healthcare Ltd,No
Http://opendatacommunities.org/id/metropolitan-district-council/leeds,Leeds City Council,30/06/2023,Adults and Health,Services For Adults Under 65 Mental/Dis,Agency Payments,Home Care,568,21/06/2023,2306-00352,0.00,681.66,R,Adopt Healthcare Ltd,No
Http://opendatacommunities.org/id/metropolitan-district-council/leeds,Leeds City Council,30/06/2023,Adults and Health,Services For Adults Under 65 Mental/Dis,Agency Payments,Home Care,568,21/06/2023,2306-00353,0.00,201.15,R,Adopt Healthcare Ltd,No
Http://opendatacommunities.org/id/metropolitan-district-council/leeds,Leeds City Council,30/06/2023,Children and Families,Social Care,Agency Payments,Placement Support,550,15/06/2023,2306-00354,0.00,40.00,R,REDACTED PERSONAL DATA,No
Http://opendatacommunities.org/id/metropolitan-district-council/leeds,Leeds City Council,30/06/2023,Children and Families,Social Care,Agency Payments,Placement Support,550,23/06/2023,2306-00355,0.00,20.00,R,REDACTED PERSONAL DATA,No
Http://opendatacommunities.org/id/metropolitan-district-council/leeds,Leeds City Council,30/06/2023,Children and Families,Social Care,Agency Payments,Placement Support,550,30/06/2023,2306-00356,0.00,20.00,R,REDACTED PERSONAL DATA,No
Http://opendatacommunities.org/id/metropolitan-district-council/leeds,Leeds City Council,30/06/2023,Children and Families,Social Care,Agency Payments,Allowances,546,30/06/2023,2306-00357,0.00,450.36,R,REDACTED PERSONAL DATA,No
Http://opendatacommunities.org/id/metropolitan-district-council/leeds,Leeds City Council as Accountable Body ,30/06/2023,Social Services Pooled Budgets,Jcs For People With Learning Disabilitie,Agency Payments,Residential,580,21/06/2023,2306-00358,0.00,2609.36,R,ADRIAN HOUSE,No
Http://opendatacommunities.org/id/metropolitan-district-council/leeds,Leeds City Council,30/06/2023,City Development,Libraries Arts & Heritage,Supplies and Services,Food & Drink,231,01/06/2023,2306-00359,0.00,100.00,R,ADVANCE STOCKS LTD,No
Http://opendatacommunities.org/id/metropolitan-district-council/leeds,Leeds City Council,30/06/2023,City Development,Libraries Arts & Heritage,Supplies and Services,External Audit Fees,261,01/06/2023,2306-00360,0.00,0.00,R,ADVANCE STOCKS LTD,No
Http://opendatacommunities.org/id/metropolitan-district-council/leeds,Leeds City Council,30/06/2023,City Development,Libraries Arts & Heritage,Supplies and Services,Food & Drink,231,08/06/2023,2306-00361,0.00,100.00,R,ADVANCE STOCKS LTD,No
Http://opendatacommunities.org/id/metropolitan-district-council/leeds,Leeds City Council,30/06/2023,City Development,Recreation,Supplies and Services,External Audit Fees,261,08/06/2023,2306-00362,0.00,140.00,R,ADVANCE STOCKS LTD,No
Http://opendatacommunities.org/id/metropolitan-district-council/leeds,Leeds City Council,30/06/2023,Children and Families,Social Care,Internal Recharges,Legal Disbursements,411,02/06/2023,2306-00363,0.00,66.00,R,ADVANCED CHILD CARE ASSESSMENTS LTD,No
Http://opendatacommunities.org/id/metropolitan-district-council/leeds,Leeds City Council,30/06/2023,Children and Families,Social Care,Internal Recharges,Legal Disbursements,411,30/06/2023,2306-00364,0.00,245.00,R,ADVANCED CHILD CARE ASSESSMENTS LTD,No
Http://opendatacommunities.org/id/metropolitan-district-council/leeds,Leeds City Council,30/06/2023,Adults and Health,Services For Adults Under 65 Learn/Dis,Agency Payments,Home Care,568,14/06/2023,2306-00365,0.00,612.78,R,Advanced Medcare Ltd,No
Http://opendatacommunities.org/id/metropolitan-district-council/leeds,Leeds City Council,30/06/2023,Adults and Health,Services For Older People - 65 And Over,Agency Payments,Home Care,568,14/06/2023,2306-00366,0.00,4289.46,R,Advanced Medcare Ltd,No
Http://opendatacommunities.org/id/metropolitan-district-council/leeds,Leeds City Council,30/06/2023,Adults and Health,Assessment And Care Management,Agency Payments,Home Care,568,14/06/2023,2306-00367,0.00,625.80,R,Advanced Medcare Ltd,No
Http://opendatacommunities.org/id/metropolitan-district-council/leeds,Leeds City Council,30/06/2023,Adults and Health,Services For Adults Under 65 Learn/Dis,Agency Payments,Home Care,568,14/06/2023,2306-00368,0.00,625.80,R,Advanced Medcare Ltd,No
Http://opendatacommunities.org/id/metropolitan-district-council/leeds,Leeds City Council,30/06/2023,Adults and Health,Services For Adults Under 65 Mental/Dis,Agency Payments,Home Care,568,14/06/2023,2306-00369,0.00,318.49,R,Advanced Medcare Ltd,No
Http://opendatacommunities.org/id/metropolitan-district-council/leeds,Leeds City Council,30/06/2023,Adults and Health,Services For Older People - 65 And Over,Agency Payments,Home Care,568,14/06/2023,2306-00370,0.00,45722.44,R,Advanced Medcare Ltd,No
Http://opendatacommunities.org/id/metropolitan-district-council/leeds,Leeds City Council,30/06/2023,Adults and Health,Services For Older People - 65 And Over,Agency Payments,HCAIT Community Support,575,14/06/2023,2306-00371,0.00,1028.13,R,Advanced Medcare Ltd,No
Http://opendatacommunities.org/id/metropolitan-district-council/leeds,Leeds City Council,30/06/2023,Adults and Health,Services For Older People Under 65 P/Dis,Agency Payments,Home Care,568,14/06/2023,2306-00372,0.00,24221.86,R,Advanced Medcare Ltd,No
Http://opendatacommunities.org/id/metropolitan-district-council/leeds,Leeds City Council as Accountable Body ,30/06/2023,Social Services Pooled Budgets,Jcs For People With Learning Disabilitie,Agency Payments,Nursing Home - Physical Disabl,575,14/06/2023,2306-00373,0.00,178.80,R,Advanced Medcare Ltd,No
Http://opendatacommunities.org/id/metropolitan-district-council/leeds,Leeds City Council as Accountable Body ,30/06/2023,Social Services Pooled Budgets,Jcs For People With Learning Disabilitie,Agency Payments,Home Care,568,13/06/2023,2306-00374,0.00,6848.70,R,Advantage Healthcare Ltd,No
Http://opendatacommunities.org/id/metropolitan-district-council/leeds,Leeds City Council,30/06/2023,Adults and Health,Services For Older People - 65 And Over,Agency Payments,Payments To Voluntary Organisations,561,22/06/2023,2306-00375,0.00,101941.67,R,Advonet,No
Http://opendatacommunities.org/id/metropolitan-district-council/leeds,Leeds City Council,30/06/2023,Adults and Health,Services For Older People - 65 And Over,Agency Payments,Payments To Voluntary Organisations,561,22/06/2023,2306-00376,0.00,101941.67,R,Advonet,No
Http://opendatacommunities.org/id/metropolitan-district-council/leeds,Leeds City Council,30/06/2023,City Development,Highways,Capital,OTHER COSTS,7,26/06/2023,2306-00377,0.00,87867.96,C,Aecom Limited,No
Http://opendatacommunities.org/id/metropolitan-district-council/leeds,Leeds City Council,30/06/2023,Adults and Health,Services For Adults Under 65 Mental/Dis,Agency Payments,Home Care,568,02/06/2023,2306-00378,0.00,712.00,R,Aegis Care Solutions Ltd,No
Http://opendatacommunities.org/id/metropolitan-district-council/leeds,Leeds City Council,30/06/2023,Adults and Health,Services For Adults Under 65 Mental/Dis,Agency Payments,Home Care,568,02/06/2023,2306-00379,0.00,611.80,R,Aegis Care Solutions Ltd,No
Http://opendatacommunities.org/id/metropolitan-district-council/leeds,Leeds City Council,30/06/2023,Adults and Health,Services For Adults Under 65 Mental/Dis,Agency Payments,Home Care,568,02/06/2023,2306-00380,0.00,1192.60,R,Aegis Care Solutions Ltd,No
Http://opendatacommunities.org/id/metropolitan-district-council/leeds,Leeds City Council,30/06/2023,Adults and Health,Services For Adults Under 65 Mental/Dis,Agency Payments,Home Care,568,02/06/2023,2306-00381,0.00,4432.00,R,Aegis Care Solutions Ltd,No
Http://opendatacommunities.org/id/metropolitan-district-council/leeds,Leeds City Council,30/06/2023,Adults and Health,Services For Adults Under 65 Mental/Dis,Agency Payments,Home Care,568,02/06/2023,2306-00382,0.00,1275.00,R,Aegis Care Solutions Ltd,No
Http://opendatacommunities.org/id/metropolitan-district-council/leeds,Leeds City Council,30/06/2023,Adults and Health,Services For Adults Under 65 Mental/Dis,Agency Payments,Home Care,568,02/06/2023,2306-00383,0.00,2128.45,R,Aegis Care Solutions Ltd,No
Http://opendatacommunities.org/id/metropolitan-district-council/leeds,Leeds City Council,30/06/2023,Adults and Health,Services For Adults Under 65 Mental/Dis,Agency Payments,Home Care,568,02/06/2023,2306-00384,0.00,1649.55,R,Aegis Care Solutions Ltd,No
Http://opendatacommunities.org/id/metropolitan-district-council/leeds,Leeds City Council,30/06/2023,Adults and Health,Services For Adults Under 65 Mental/Dis,Agency Payments,Home Care,568,02/06/2023,2306-00385,0.00,1404.00,R,Aegis Care Solutions Ltd,No
Http://opendatacommunities.org/id/metropolitan-district-council/leeds,Leeds City Council,30/06/2023,Adults and Health,Services For Adults Under 65 Mental/Dis,Agency Payments,Home Care,568,02/06/2023,2306-00386,0.00,569.60,R,Aegis Care Solutions Ltd,No
Http://opendatacommunities.org/id/metropolitan-district-council/leeds,Leeds City Council,30/06/2023,Adults and Health,Services For Adults Under 65 Mental/Dis,Agency Payments,Home Care,568,02/06/2023,2306-00387,0.00,1108.00,R,Aegis Care Solutions Ltd,No
Http://opendatacommunities.org/id/metropolitan-district-council/leeds,Leeds City Council,30/06/2023,Adults and Health,Services For Adults Under 65 Mental/Dis,Agency Payments,Home Care,568,02/06/2023,2306-00388,0.00,284.80,R,Aegis Care Solutions Ltd,No
Http://opendatacommunities.org/id/metropolitan-district-council/leeds,Leeds City Council,30/06/2023,Adults and Health,Services For Adults Under 65 Mental/Dis,Agency Payments,Home Care,568,02/06/2023,2306-00389,0.00,418.30,R,Aegis Care Solutions Ltd,No
Http://opendatacommunities.org/id/metropolitan-district-council/leeds,Leeds City Council as Accountable Body ,30/06/2023,Social Services Pooled Budgets,Jcs For People With Learning Disabilitie,Agency Payments,Home Care,568,02/06/2023,2306-00390,0.00,1215.90,R,Aegis Care Solutions Ltd,No
Http://opendatacommunities.org/id/metropolitan-district-council/leeds,Leeds City Council,30/06/2023,Adults and Health,Services For Adults Under 65 Mental/Dis,Agency Payments,HCAIT Community Support,575,14/06/2023,2306-00391,0.00,128.52,R,Aegis Care Solutions Ltd,No
Http://opendatacommunities.org/id/metropolitan-district-council/leeds,Leeds City Council,30/06/2023,Adults and Health,Services For Older People - 65 And Over,Agency Payments,Home Care,568,14/06/2023,2306-00392,0.00,44282.26,R,Aegis Care Solutions Ltd,No
Http://opendatacommunities.org/id/metropolitan-district-council/leeds,Leeds City Council,30/06/2023,Adults and Health,Services For Older People - 65 And Over,Agency Payments,HCAIT Community Support,575,14/06/2023,2306-00393,0.00,350.16,R,Aegis Care Solutions Ltd,No
Http://opendatacommunities.org/id/metropolitan-district-council/leeds,Leeds City Council,30/06/2023,Adults and Health,Services For Older People - 65 And Over,Agency Payments,HCAIT Other,577,14/06/2023,2306-00394,0.00,2243.72,R,Aegis Care Solutions Ltd,No
Http://opendatacommunities.org/id/metropolitan-district-council/leeds,Leeds City Council,30/06/2023,Adults and Health,Services For Older People Under 65 P/Dis,Agency Payments,Home Care,568,14/06/2023,2306-00395,0.00,9400.19,R,Aegis Care Solutions Ltd,No
Http://opendatacommunities.org/id/metropolitan-district-council/leeds,Leeds City Council as Accountable Body ,30/06/2023,Social Services Pooled Budgets,Jcs For People With Learning Disabilitie,Agency Payments,Home Care,568,14/06/2023,2306-00396,0.00,5249.63,R,Aegis Care Solutions Ltd,No
Http://opendatacommunities.org/id/metropolitan-district-council/leeds,Leeds City Council,30/06/2023,Adults and Health,Services For Adults Under 65 Mental/Dis,Agency Payments,HCAIT Community Support,575,28/06/2023,2306-00397,0.00,134.10,R,Aegis Care Solutions Ltd,No
Http://opendatacommunities.org/id/metropolitan-district-council/leeds,Leeds City Council,30/06/2023,Adults and Health,Services For Older People - 65 And Over,Agency Payments,Home Care,568,28/06/2023,2306-00398,0.00,41757.76,R,Aegis Care Solutions Ltd,No
Http://opendatacommunities.org/id/metropolitan-district-council/leeds,Leeds City Council,30/06/2023,Adults and Health,Services For Older People - 65 And Over,Agency Payments,HCAIT Community Support,575,28/06/2023,2306-00399,0.00,357.60,R,Aegis Care Solutions Ltd,No
Http://opendatacommunities.org/id/metropolitan-district-council/leeds,Leeds City Council,30/06/2023,Adults and Health,Services For Older People - 65 And Over,Agency Payments,HCAIT Other,577,28/06/2023,2306-00400,0.00,1914.59,R,Aegis Care Solutions Ltd,No
Http://opendatacommunities.org/id/metropolitan-district-council/leeds,Leeds City Council,30/06/2023,Adults and Health,Services For Older People Under 65 P/Dis,Agency Payments,Home Care,568,28/06/2023,2306-00401,0.00,9188.91,R,Aegis Care Solutions Ltd,No
Http://opendatacommunities.org/id/metropolitan-district-council/leeds,Leeds City Council as Accountable Body ,30/06/2023,Social Services Pooled Budgets,Jcs For People With Learning Disabilitie,Agency Payments,Home Care,568,28/06/2023,2306-00402,0.00,5364.02,R,Aegis Care Solutions Ltd,No
Http://opendatacommunities.org/id/metropolitan-district-council/leeds,Leeds City Council,30/06/2023,Adults and Health,Services For Adults Under 65 Mental/Dis,Agency Payments,Home Care,568,30/06/2023,2306-00403,0.00,1028.10,R,Aegis Care Solutions Ltd,No
Http://opendatacommunities.org/id/metropolitan-district-council/leeds,Leeds City Council,30/06/2023,Adults and Health,Services For Adults Under 65 Mental/Dis,Agency Payments,Home Care,568,30/06/2023,2306-00404,0.00,553.16,R,Aegis Care Solutions Ltd,No
Http://opendatacommunities.org/id/metropolitan-district-council/leeds,Leeds City Council,30/06/2023,Adults and Health,Services For Adults Under 65 Mental/Dis,Agency Payments,Home Care,568,30/06/2023,2306-00405,0.00,1379.55,R,Aegis Care Solutions Ltd,No
Http://opendatacommunities.org/id/metropolitan-district-council/leeds,Leeds City Council,30/06/2023,Adults and Health,Services For Adults Under 65 Mental/Dis,Agency Payments,Home Care,568,30/06/2023,2306-00406,0.00,5542.80,R,Aegis Care Solutions Ltd,No
Http://opendatacommunities.org/id/metropolitan-district-council/leeds,Leeds City Council,30/06/2023,Adults and Health,Services For Adults Under 65 Mental/Dis,Agency Payments,Home Care,568,30/06/2023,2306-00407,0.00,1174.50,R,Aegis Care Solutions Ltd,No
Http://opendatacommunities.org/id/metropolitan-district-council/leeds,Leeds City Council,30/06/2023,Adults and Health,Services For Adults Under 65 Mental/Dis,Agency Payments,Home Care,568,30/06/2023,2306-00408,0.00,2409.02,R,Aegis Care Solutions Ltd,No
Http://opendatacommunities.org/id/metropolitan-district-council/leeds,Leeds City Council,30/06/2023,Adults and Health,Services For Adults Under 65 Mental/Dis,Agency Payments,Home Care,568,30/06/2023,2306-00409,0.00,2106.65,R,Aegis Care Solutions Ltd,No
Http://opendatacommunities.org/id/metropolitan-district-council/leeds,Leeds City Council,30/06/2023,Adults and Health,Services For Adults Under 65 Mental/Dis,Agency Payments,Home Care,568,30/06/2023,2306-00410,0.00,1529.85,R,Aegis Care Solutions Ltd,No
Http://opendatacommunities.org/id/metropolitan-district-council/leeds,Leeds City Council,30/06/2023,Adults and Health,Services For Adults Under 65 Mental/Dis,Agency Payments,Home Care,568,30/06/2023,2306-00411,0.00,1095.15,R,Aegis Care Solutions Ltd,No
Http://opendatacommunities.org/id/metropolitan-district-council/leeds,Leeds City Council,30/06/2023,Adults and Health,Services For Adults Under 65 Mental/Dis,Agency Payments,Home Care,568,30/06/2023,2306-00412,0.00,402.30,R,Aegis Care Solutions Ltd,No
Http://opendatacommunities.org/id/metropolitan-district-council/leeds,Leeds City Council,30/06/2023,Adults and Health,Services For Adults Under 65 Mental/Dis,Agency Payments,Home Care,568,30/06/2023,2306-00413,0.00,508.47,R,Aegis Care Solutions Ltd,No
Http://opendatacommunities.org/id/metropolitan-district-council/leeds,Leeds City Council as Accountable Body ,30/06/2023,Social Services Pooled Budgets,Jcs For People With Learning Disabilitie,Agency Payments,Home Care,568,30/06/2023,2306-00414,0.00,1452.75,R,Aegis Care Solutions Ltd,No
Http://opendatacommunities.org/id/metropolitan-district-council/leeds,Leeds City Council,30/06/2023,City Development,Economic Development,Supplies and Services,Grants To Businesses,243,14/06/2023,2306-00415,0.00,5265.00,R,Aegis Property Consultancy Limited,No
Http://opendatacommunities.org/id/metropolitan-district-council/leeds,Leeds City Council,30/06/2023,Children and Families,Social Care  ,Supplies and Services,Operational Materials,205,10/05/2023,2306-00416,0.00,90.00,R,Aerial Services Scotla Ls,Yes
Http://opendatacommunities.org/id/metropolitan-district-council/leeds,Leeds City Council,30/06/2023,City Development,Economic Development,Supplies and Services,Grants To Businesses,243,02/06/2023,2306-00417,0.00,4200.00,R,AF IT Consulting Ltd,No
Http://opendatacommunities.org/id/metropolitan-district-council/leeds,Leeds City Council as Accountable Body ,30/06/2023,Social Services Pooled Budgets,Jcs For People With Learning Disabilitie,Agency Payments,Day Centre,564,16/06/2023,2306-00418,0.00,10128.78,R,Affinity Trust,No
Http://opendatacommunities.org/id/metropolitan-district-council/leeds,Leeds City Council as Accountable Body ,30/06/2023,Social Services Pooled Budgets,Jcs For People With Learning Disabilitie,Agency Payments,Day Centre,564,16/06/2023,2306-00419,0.00,5631.44,R,Affinity Trust,No
Http://opendatacommunities.org/id/metropolitan-district-council/leeds,Leeds City Council as Accountable Body ,30/06/2023,Social Services Pooled Budgets,Jcs For People With Learning Disabilitie,Agency Payments,Sheltered Accommodation,569,21/06/2023,2306-00420,0.00,117005.60,R,Affinity Trust North Divisional Office,No
Http://opendatacommunities.org/id/metropolitan-district-council/leeds,Leeds City Council,30/06/2023,Insurance,Insurance,Supplies and Services,Insurance Claims,248,13/06/2023,2306-00421,0.00,1275.00,R,Affirm Legal,No
Http://opendatacommunities.org/id/metropolitan-district-council/leeds,Leeds City Council,30/06/2023,Adults and Health,Services For Older People - 65 And Over,Agency Payments,Payments To Voluntary Organisations,561,30/06/2023,2306-00422,0.00,9539.75,R,Age Uk Leeds,No
Http://opendatacommunities.org/id/metropolitan-district-council/leeds,Leeds City Council,30/06/2023,City Development,Highways,Supplies and Services,Operational Materials,205,21/06/2023,2306-00423,0.00,3313.05,R,AGGREGATE INDUSTRIES UK LTD,No
Http://opendatacommunities.org/id/metropolitan-district-council/leeds,Leeds City Council,30/06/2023,City Development,Highways,Supplies and Services,Operational Materials,205,21/06/2023,2306-00424,0.00,2717.20,R,AGGREGATE INDUSTRIES UK LTD,No
Http://opendatacommunities.org/id/metropolitan-district-council/leeds,Leeds City Council,30/06/2023,City Development,Highways,Supplies and Services,Operational Materials,205,21/06/2023,2306-00425,0.00,1000.00,R,AGGREGATE INDUSTRIES UK LTD,No
Http://opendatacommunities.org/id/metropolitan-district-council/leeds,Leeds City Council,30/06/2023,City Development,Highways,Supplies and Services,Operational Materials,205,23/06/2023,2306-00426,0.00,550.00,R,AGGREGATE INDUSTRIES UK LTD,No
Http://opendatacommunities.org/id/metropolitan-district-council/leeds,Leeds City Council,30/06/2023,City Development,Highways,Supplies and Services,Operational Materials,205,23/06/2023,2306-00427,0.00,621.63,R,AGGREGATE INDUSTRIES UK LTD,No
Http://opendatacommunities.org/id/metropolitan-district-council/leeds,Leeds City Council,30/06/2023,City Development,Highways,Supplies and Services,Operational Materials,205,23/06/2023,2306-00428,0.00,1670.12,R,AGGREGATE INDUSTRIES UK LTD,No
Http://opendatacommunities.org/id/metropolitan-district-council/leeds,Leeds City Council,30/06/2023,City Development,Highways,Supplies and Services,Operational Materials,205,23/06/2023,2306-00429,0.00,2223.17,R,AGGREGATE INDUSTRIES UK LTD,No
Http://opendatacommunities.org/id/metropolitan-district-council/leeds,Leeds City Council,30/06/2023,City Development,Highways,Supplies and Services,Operational Materials,205,28/06/2023,2306-00430,0.00,2724.97,R,AGGREGATE INDUSTRIES UK LTD,No
Http://opendatacommunities.org/id/metropolitan-district-council/leeds,Leeds City Council,30/06/2023,City Development,Highways,Capital,CONSTRUCTION,3,29/06/2023,2306-00431,0.00,280901.67,C,AGGREGATE INDUSTRIES UK LTD,No
Http://opendatacommunities.org/id/metropolitan-district-council/leeds,Leeds City Council,30/06/2023,Communities Housing and Environment,Customer Access,Supplies and Services,Bought In Professional Services,277,02/06/2023,2306-00432,0.00,23.50,R,Agnieszka J Collier,No
Http://opendatacommunities.org/id/metropolitan-district-council/leeds,Leeds City Council,30/06/2023,Communities Housing and Environment,Customer Access,Supplies and Services,Bought In Professional Services,277,02/06/2023,2306-00433,0.00,18.00,R,Agnieszka J Collier,No
Http://opendatacommunities.org/id/metropolitan-district-council/leeds,Leeds City Council,30/06/2023,Communities Housing and Environment,Customer Access,Supplies and Services,Bought In Professional Services,277,19/06/2023,2306-00434,0.00,18.00,R,REDACTED PERSONAL DATA,No
Http://opendatacommunities.org/id/metropolitan-district-council/leeds,Leeds City Council,30/06/2023,Communities Housing and Environment,Customer Access,Supplies and Services,Bought In Professional Services,277,21/06/2023,2306-00435,0.00,18.00,R,REDACTED PERSONAL DATA,No
Http://opendatacommunities.org/id/metropolitan-district-council/leeds,Leeds City Council,30/06/2023,Communities Housing and Environment,Customer Access,Supplies and Services,Bought In Professional Services,277,21/06/2023,2306-00436,0.00,18.00,R,REDACTED PERSONAL DATA,No
Http://opendatacommunities.org/id/metropolitan-district-council/leeds,Leeds City Council,30/06/2023,Communities Housing and Environment,Customer Access,Supplies and Services,Bought In Professional Services,277,28/06/2023,2306-00437,0.00,18.00,R,REDACTED PERSONAL DATA,No
Http://opendatacommunities.org/id/metropolitan-district-council/leeds,Leeds City Council,30/06/2023,Communities Housing and Environment,Customer Access,Supplies and Services,Bought In Professional Services,277,28/06/2023,2306-00438,0.00,18.00,R,REDACTED PERSONAL DATA,No
Http://opendatacommunities.org/id/metropolitan-district-council/leeds,Leeds City Council,30/06/2023,City Development,Recreation  ,Supplies and Services,Operational Furniture And Equipment,203,17/05/2023,2306-00439,0.00,600.00,R,Agpc Hygiene Ltd,Yes
Http://opendatacommunities.org/id/metropolitan-district-council/leeds,Leeds City Council,30/06/2023,Communities Housing and Environment,Customer Access,Supplies and Services,Bought In Professional Services,277,07/06/2023,2306-00440,0.00,18.00,R,Ahamat Hassan,No
Http://opendatacommunities.org/id/metropolitan-district-council/leeds,Leeds City Council,30/06/2023,Communities Housing and Environment,Customer Access,Supplies and Services,Bought In Professional Services,277,28/06/2023,2306-00441,0.00,18.00,R,Ahamat Hassan,No
Http://opendatacommunities.org/id/metropolitan-district-council/leeds,Leeds City Council,30/06/2023,City Development,Economic Development,Supplies and Services,Grants To Businesses,243,09/06/2023,2306-00442,0.00,7920.00,R,Ahead Partnership Limited,No
Http://opendatacommunities.org/id/metropolitan-district-council/leeds,Leeds City Council,30/06/2023,Strategic Landlord,HRA Housing Leeds,Capital,LAND,1,30/06/2023,2306-00443,0.00,7800.00,C,REDACTED PERSONAL DATA,No
Http://opendatacommunities.org/id/metropolitan-district-council/leeds,Leeds City Council,30/06/2023,Communities Housing and Environment,Customer Access,Supplies and Services,Bought In Professional Services,277,02/06/2023,2306-00444,0.00,22.50,R,Ahmed Moustafa Moustafa Mousa,No
Http://opendatacommunities.org/id/metropolitan-district-council/leeds,Leeds City Council,30/06/2023,Communities Housing and Environment,Customer Access,Supplies and Services,Bought In Professional Services,277,02/06/2023,2306-00445,0.00,9.00,R,Ahmed Moustafa Moustafa Mousa,No
Http://opendatacommunities.org/id/metropolitan-district-council/leeds,Leeds City Council,30/06/2023,Communities Housing and Environment,Customer Access,Supplies and Services,Bought In Professional Services,277,14/06/2023,2306-00446,0.00,22.50,R,Ahmed Moustafa Moustafa Mousa,No
Http://opendatacommunities.org/id/metropolitan-district-council/leeds,Leeds City Council,30/06/2023,Communities Housing and Environment,Customer Access,Supplies and Services,Bought In Professional Services,277,14/06/2023,2306-00447,0.00,18.00,R,Ahmed Moustafa Moustafa Mousa,No
Http://opendatacommunities.org/id/metropolitan-district-council/leeds,Leeds City Council,30/06/2023,Communities Housing and Environment,Customer Access,Supplies and Services,Bought In Professional Services,277,14/06/2023,2306-00448,0.00,10.90,R,Ahmed T. Al-Hamdi,No
Http://opendatacommunities.org/id/metropolitan-district-council/leeds,Leeds City Council,30/06/2023,Strategic Landlord,Property and Contracts,Appropriations,Disrepair Provision,644,15/06/2023,2306-00449,0.00,1320.00,R,AHR Building Consultancy Ltd,No
Http://opendatacommunities.org/id/metropolitan-district-council/leeds,Leeds City Council,30/06/2023,Communities Housing and Environment,Elections Licensing and Registration,External Income,Admissions Booking Fees & Ticket Sales,933,15/06/2023,2306-00450,0.00,240.00,R,REDACTED PERSONAL DATA,No
Http://opendatacommunities.org/id/metropolitan-district-council/leeds,Leeds City Council as Accountable Body ,30/06/2023,Social Services Pooled Budgets,Leeds Community Equip Store Pooled Budgt,Supplies and Services,Other Equipment,203,02/06/2023,2306-00451,0.00,650.00,R,AIDAPT BATHROOMS LTD,No
Http://opendatacommunities.org/id/metropolitan-district-council/leeds,Leeds City Council as Accountable Body ,30/06/2023,Social Services Pooled Budgets,Leeds Community Equip Store Pooled Budgt,Supplies and Services,Other Equipment,203,02/06/2023,2306-00452,0.00,1625.00,R,AIDAPT BATHROOMS LTD,No
Http://opendatacommunities.org/id/metropolitan-district-council/leeds,Leeds City Council as Accountable Body ,30/06/2023,Social Services Pooled Budgets,Leeds Community Equip Store Pooled Budgt,Supplies and Services,Other Equipment,203,23/06/2023,2306-00453,0.00,3990.00,R,AIDAPT BATHROOMS LTD,No
Http://opendatacommunities.org/id/metropolitan-district-council/leeds,Leeds City Council as Accountable Body ,30/06/2023,Social Services Pooled Budgets,Leeds Community Equip Store Pooled Budgt,Supplies and Services,Other Equipment,203,23/06/2023,2306-00454,0.00,4041.50,R,AIDAPT BATHROOMS LTD,No
Http://opendatacommunities.org/id/metropolitan-district-council/leeds,Leeds City Council,30/06/2023,Children and Families,Social Care  ,Transport,Public Transport Expenses,310,19/05/2023,2306-00455,0.00,588.33,R,Airbnb * Hm3j9jskdx,Yes
Http://opendatacommunities.org/id/metropolitan-district-council/leeds,Leeds City Council,30/06/2023,Children and Families,Social Care  ,Transport,Public Transport Expenses,310,29/05/2023,2306-00456,0.00,134.87,R,Airbnb * Hm49yycnwp,Yes
Http://opendatacommunities.org/id/metropolitan-district-council/leeds,Leeds City Council,30/06/2023,Children and Families,Social Care  ,Agency Payments,Placement Support,550,10/05/2023,2306-00457,0.00,1209.18,R,Airbnb * Hm5xnnyfbb,Yes
Http://opendatacommunities.org/id/metropolitan-district-council/leeds,Leeds City Council,30/06/2023,Children and Families,Social Care  ,Agency Payments,Placement Support,550,25/05/2023,2306-00458,0.00,798.70,R,Airbnb * Hmcdpjhdm10,Yes
Http://opendatacommunities.org/id/metropolitan-district-council/leeds,Leeds City Council,30/06/2023,Children and Families,Social Care  ,Supplies and Services,Holidays-  Service Users,284,06/05/2023,2306-00459,0.00,280.66,R,Airbnb * Hmd58etc8a,Yes
Http://opendatacommunities.org/id/metropolitan-district-council/leeds,Leeds City Council,30/06/2023,Children and Families,Social Care  ,Transport,Public Transport Expenses,310,15/05/2023,2306-00460,0.00,2342.54,R,Airbnb * Hmhtfdyazd,Yes
Http://opendatacommunities.org/id/metropolitan-district-council/leeds,Leeds City Council,30/06/2023,Children and Families,Social Care  ,Agency Payments,Section 17,551,03/05/2023,2306-00461,0.00,-3359.69,R,Airbnb * Hmjhsqftxx,Yes
Http://opendatacommunities.org/id/metropolitan-district-council/leeds,Leeds City Council,30/06/2023,Children and Families,Social Care  ,Agency Payments,Section 17,551,03/05/2023,2306-00462,0.00,3359.69,R,Airbnb * Hmjhsqftxx,Yes
Http://opendatacommunities.org/id/metropolitan-district-council/leeds,Leeds City Council,30/06/2023,Children and Families,Social Care  ,Transport,Public Transport Expenses,310,03/05/2023,2306-00463,0.00,245.58,R,Airbnb * Hmqb3tpnqs,Yes
Http://opendatacommunities.org/id/metropolitan-district-council/leeds,Leeds City Council,30/06/2023,Communities Housing and Environment,Climate Energy & Greenspaces,Supplies and Services,Other Hired And Contracted Services,265,02/06/2023,2306-00464,0.00,2128.00,R,Aire Valley Tree Services Ltd,No
Http://opendatacommunities.org/id/metropolitan-district-council/leeds,Leeds City Council,30/06/2023,Communities Housing and Environment,Climate Energy & Greenspaces,Supplies and Services,Other Hired And Contracted Services,265,02/06/2023,2306-00465,0.00,431.00,R,Aire Valley Tree Services Ltd,No
Http://opendatacommunities.org/id/metropolitan-district-council/leeds,Leeds City Council,30/06/2023,Communities Housing and Environment,Climate Energy & Greenspaces,Supplies and Services,Other Hired And Contracted Services,265,19/06/2023,2306-00466,0.00,510.00,R,Aire Valley Tree Services Ltd,No
Http://opendatacommunities.org/id/metropolitan-district-council/leeds,Leeds City Council,30/06/2023,Communities Housing and Environment,Climate Energy and Greenspaces,Capital,OTHER COSTS,7,21/06/2023,2306-00467,0.00,3700.00,C,Aire Valley Tree Services Ltd,No
Http://opendatacommunities.org/id/metropolitan-district-council/leeds,Leeds City Council,30/06/2023,Communities Housing and Environment,Climate Energy and Greenspaces,Capital,OTHER COSTS,7,21/06/2023,2306-00468,0.00,5210.00,C,Aire Valley Tree Services Ltd,No
Http://opendatacommunities.org/id/metropolitan-district-council/leeds,Leeds City Council,30/06/2023,Adults and Health,Services For Older People - 65 And Over,Agency Payments,Residential Care Dementia,571,21/06/2023,2306-00469,0.00,116568.24,R,Aire View Residential Home,No
Http://opendatacommunities.org/id/metropolitan-district-council/leeds,Leeds City Council,30/06/2023,Adults and Health,Services For Older People - 65 And Over,Agency Payments,Residential,580,21/06/2023,2306-00470,0.00,18899.09,R,Aire View Residential Home,No
Http://opendatacommunities.org/id/metropolitan-district-council/leeds,Leeds City Council,30/06/2023,City Development,Recreation  ,Supplies and Services,Hospitality,255,19/05/2023,2306-00471,0.00,5.00,R,Aireborough Leisure Centr,Yes
Http://opendatacommunities.org/id/metropolitan-district-council/leeds,Leeds City Council,30/06/2023,Adults and Health,Services For Older People - 65 And Over,Agency Payments,Residential Care Dementia,571,21/06/2023,2306-00472,0.00,26315.30,R,Airedale Residential Home,No
Http://opendatacommunities.org/id/metropolitan-district-council/leeds,Leeds City Council,30/06/2023,Adults and Health,Services For Older People - 65 And Over,Agency Payments,Residential,580,21/06/2023,2306-00473,0.00,26012.16,R,Airedale Residential Home,No
Http://opendatacommunities.org/id/metropolitan-district-council/leeds,Leeds City Council,30/06/2023,Adults and Health,Services For Older People Under 65 P/Dis,Agency Payments,Residential Care Dementia,571,21/06/2023,2306-00474,0.00,2621.89,R,Airedale Residential Home,No
Http://opendatacommunities.org/id/metropolitan-district-council/leeds,Leeds City Council,30/06/2023,Strategic Landlord,Housing Management  ,Transport,Public Transport Expenses,310,10/05/2023,2306-00475,0.00,6.20,R,Airpay 42410357-Roadrunne,Yes
Http://opendatacommunities.org/id/metropolitan-district-council/leeds,Leeds City Council,30/06/2023,Children and Families,Social Care  ,Appropriations,Leaving Care Allowances,634,28/04/2023,2306-00476,0.00,9.85,R,Airpay 46444758-Amber Car,Yes
Http://opendatacommunities.org/id/metropolitan-district-council/leeds,Leeds City Council,30/06/2023,Children and Families,Social Care  ,Appropriations,Leaving Care Allowances,634,28/04/2023,2306-00477,0.00,9.45,R,Airpay 46448506-Amber Car,Yes
Http://opendatacommunities.org/id/metropolitan-district-council/leeds,Leeds City Council,30/06/2023,Children and Families,Social Care  ,Agency Payments,Placement Support,550,02/05/2023,2306-00478,0.00,15.45,R,Airpay 46496441-Amber Car,Yes
Http://opendatacommunities.org/id/metropolitan-district-council/leeds,Leeds City Council,30/06/2023,Adults and Health,Services For Adults Under 65 Learn/Dis  ,Transport,Public Transport Expenses,310,03/05/2023,2306-00479,0.00,11.55,R,Airpay 46504974-Amber Car,Yes
Http://opendatacommunities.org/id/metropolitan-district-council/leeds,Leeds City Council,30/06/2023,Children and Families,Social Care  ,Agency Payments,Placement Support,550,02/05/2023,2306-00480,0.00,27.65,R,Airpay 46505981-Amber Car,Yes
Http://opendatacommunities.org/id/metropolitan-district-council/leeds,Leeds City Council,30/06/2023,Children and Families,Social Care  ,Agency Payments,Placement Support,550,02/05/2023,2306-00481,0.00,28.95,R,Airpay 46505982-Amber Car,Yes
Http://opendatacommunities.org/id/metropolitan-district-council/leeds,Leeds City Council,30/06/2023,Children and Families,Social Care  ,Transport,Public Transport Expenses,310,03/05/2023,2306-00482,0.00,8.71,R,Airpay 46513458-Amber Car,Yes
Http://opendatacommunities.org/id/metropolitan-district-council/leeds,Leeds City Council,30/06/2023,Children and Families,Social Care  ,Agency Payments,Placement Support,550,03/05/2023,2306-00483,0.00,14.05,R,Airpay 46513646-Amber Car,Yes
Http://opendatacommunities.org/id/metropolitan-district-council/leeds,Leeds City Council,30/06/2023,Children and Families,Social Care  ,Transport,Public Transport Expenses,310,03/05/2023,2306-00484,0.00,6.54,R,Airpay 46517669-Amber Car,Yes
Http://opendatacommunities.org/id/metropolitan-district-council/leeds,Leeds City Council,30/06/2023,Children and Families,Social Care  ,Transport,Public Transport Expenses,310,04/05/2023,2306-00485,0.00,7.37,R,Airpay 46527136-Amber Car,Yes
Http://opendatacommunities.org/id/metropolitan-district-council/leeds,Leeds City Council,30/06/2023,Adults and Health,Services For Adults Under 65 Learn/Dis  ,Transport,Public Transport Expenses,310,05/05/2023,2306-00486,0.00,11.55,R,Airpay 46539323-Amber Car,Yes
Http://opendatacommunities.org/id/metropolitan-district-council/leeds,Leeds City Council,30/06/2023,Children and Families,Social Care  ,Appropriations,Leaving Care Grants,635,09/05/2023,2306-00487,0.00,15.35,R,Airpay 46598564-Amber Car,Yes
Http://opendatacommunities.org/id/metropolitan-district-council/leeds,Leeds City Council,30/06/2023,Children and Families,Social Care  ,Appropriations,Leaving Care Grants,635,09/05/2023,2306-00488,0.00,14.95,R,Airpay 46598567-Amber Car,Yes
Http://opendatacommunities.org/id/metropolitan-district-council/leeds,Leeds City Council,30/06/2023,Children and Families,Social Care  ,Agency Payments,Placement Support,550,09/05/2023,2306-00489,0.00,28.75,R,Airpay 46599123-Amber Car,Yes
Http://opendatacommunities.org/id/metropolitan-district-council/leeds,Leeds City Council,30/06/2023,Adults and Health,Services For Adults Under 65 Learn/Dis  ,Transport,Public Transport Expenses,310,09/05/2023,2306-00490,0.00,18.05,R,Airpay 46600540-Amber Car,Yes
Http://opendatacommunities.org/id/metropolitan-district-council/leeds,Leeds City Council,30/06/2023,Adults and Health,Services For Adults Under 65 Learn/Dis  ,Transport,Public Transport Expenses,310,10/05/2023,2306-00491,0.00,11.55,R,Airpay 46605342-Amber Car,Yes
Http://opendatacommunities.org/id/metropolitan-district-council/leeds,Leeds City Council,30/06/2023,Adults and Health,Services For Adults Under 65 Learn/Dis  ,Transport,Public Transport Expenses,310,11/05/2023,2306-00492,0.00,12.55,R,Airpay 46617846-Amber Car,Yes
Http://opendatacommunities.org/id/metropolitan-district-council/leeds,Leeds City Council,30/06/2023,Children and Families,Social Care  ,Agency Payments,Placement Support,550,15/05/2023,2306-00493,0.00,8.55,R,Airpay 46672300-Amber Car,Yes
Http://opendatacommunities.org/id/metropolitan-district-council/leeds,Leeds City Council,30/06/2023,Children and Families,Social Care  ,Appropriations,Leaving Care Grants,635,16/05/2023,2306-00494,0.00,14.95,R,Airpay 46690891-Amber Car,Yes
Http://opendatacommunities.org/id/metropolitan-district-council/leeds,Leeds City Council,30/06/2023,Adults and Health,Services For Adults Under 65 Learn/Dis  ,Transport,Public Transport Expenses,310,17/05/2023,2306-00495,0.00,12.35,R,Airpay 46696541-Amber Car,Yes
Http://opendatacommunities.org/id/metropolitan-district-council/leeds,Leeds City Council,30/06/2023,Children and Families,Social Care  ,Transport,Public Transport Expenses,310,17/05/2023,2306-00496,0.00,5.71,R,Airpay 46699026-Amber Car,Yes
Http://opendatacommunities.org/id/metropolitan-district-council/leeds,Leeds City Council,30/06/2023,Children and Families,Social Care  ,Transport,Public Transport Expenses,310,17/05/2023,2306-00497,0.00,7.29,R,Airpay 46699038-Amber Car,Yes
Http://opendatacommunities.org/id/metropolitan-district-council/leeds,Leeds City Council,30/06/2023,Children and Families,Social Care  ,Transport,Public Transport Expenses,310,17/05/2023,2306-00498,0.00,5.62,R,Airpay 46699043-Amber Car,Yes
Http://opendatacommunities.org/id/metropolitan-district-council/leeds,Leeds City Council,30/06/2023,Children and Families,Social Care  ,Transport,Public Transport Expenses,310,17/05/2023,2306-00499,0.00,5.87,R,Airpay 46706304-Amber Car,Yes
Http://opendatacommunities.org/id/metropolitan-district-council/leeds,Leeds City Council,30/06/2023,Children and Families,Social Care  ,Transport,Public Transport Expenses,310,17/05/2023,2306-00500,0.00,5.29,R,Airpay 46706308-Amber Car,Yes
Http://opendatacommunities.org/id/metropolitan-district-council/leeds,Leeds City Council,30/06/2023,Children and Families,Social Care  ,Transport,Public Transport Expenses,310,17/05/2023,2306-00501,0.00,6.71,R,Airpay 46706309-Amber Car,Yes
Http://opendatacommunities.org/id/metropolitan-district-council/leeds,Leeds City Council,30/06/2023,Adults and Health,Services For Adults Under 65 Learn/Dis  ,Transport,Public Transport Expenses,310,18/05/2023,2306-00502,0.00,17.45,R,Airpay 46709661-Amber Car,Yes
Http://opendatacommunities.org/id/metropolitan-district-council/leeds,Leeds City Council,30/06/2023,Children and Families,Social Care  ,Agency Payments,Placement Support,550,18/05/2023,2306-00503,0.00,11.25,R,Airpay 46714479-Amber Car,Yes
Http://opendatacommunities.org/id/metropolitan-district-council/leeds,Leeds City Council,30/06/2023,Children and Families,Social Care  ,Transport,Public Transport Expenses,310,21/05/2023,2306-00504,0.00,13.46,R,Airpay 46757528-Amber Car,Yes
Http://opendatacommunities.org/id/metropolitan-district-council/leeds,Leeds City Council,30/06/2023,Children and Families,Social Care  ,Transport,Public Transport Expenses,310,22/05/2023,2306-00505,0.00,11.21,R,Airpay 46765880-Amber Car,Yes
Http://opendatacommunities.org/id/metropolitan-district-council/leeds,Leeds City Council,30/06/2023,Children and Families,Social Care  ,Agency Payments,Placement Support,550,30/05/2023,2306-00506,0.00,73.15,R,Airpay 46873765-Amber Car,Yes
Http://opendatacommunities.org/id/metropolitan-district-council/leeds,Leeds City Council,30/06/2023,Children and Families,Social Care  ,Supplies and Services,Subsistence,256,04/05/2023,2306-00507,0.00,12.17,R,Aishas Cafe,Yes
Http://opendatacommunities.org/id/metropolitan-district-council/leeds,Leeds City Council,30/06/2023,Adults and Health,Services For Adults Under 65 Mental/Dis,Internal Recharges,Legal Disbursements,411,09/06/2023,2306-00508,0.00,887.50,R,Aisling Campbell,No
Http://opendatacommunities.org/id/metropolitan-district-council/leeds,Leeds City Council,30/06/2023,Adults and Health,Services For Adults Under 65 Mental/Dis,Internal Recharges,Legal Disbursements,411,30/06/2023,2306-00509,0.00,1400.00,R,Aisling Campbell,No
Http://opendatacommunities.org/id/metropolitan-district-council/leeds,Leeds City Council as Accountable Body ,30/06/2023,Social Services Pooled Budgets,Jcs For People With Learning Disabilitie,Agency Payments,Residential,580,21/06/2023,2306-00510,0.00,9437.95,R,AITCH care homes,No
Http://opendatacommunities.org/id/metropolitan-district-council/leeds,Leeds City Council,30/06/2023,Communities Housing and Environment,Parks and Countryside  ,Supplies and Services,Operational Materials,205,12/05/2023,2306-00511,0.00,266.46,R,Aitkens Sportsturf Limite,Yes
Http://opendatacommunities.org/id/metropolitan-district-council/leeds,Leeds City Council,30/06/2023,Strategy and Resources,Leeds Building Services,Supplies and Services,Operational Furniture And Equipment,203,01/06/2023,2306-00512,0.00,2161.64,R,AJM FIXINGS & POWER TOOLS LTD,No
Http://opendatacommunities.org/id/metropolitan-district-council/leeds,Leeds City Council,30/06/2023,Strategy and Resources,Leeds Building Services,Supplies and Services,Operational Furniture And Equipment,203,01/06/2023,2306-00513,0.00,408.50,R,AJM FIXINGS & POWER TOOLS LTD,No
Http://opendatacommunities.org/id/metropolitan-district-council/leeds,Leeds City Council,30/06/2023,Strategy and Resources,Leeds Building Services,Supplies and Services,Operational Furniture And Equipment,203,01/06/2023,2306-00514,0.00,54.64,R,AJM FIXINGS & POWER TOOLS LTD,No
Http://opendatacommunities.org/id/metropolitan-district-council/leeds,Leeds City Council,30/06/2023,Strategy and Resources,Leeds Building Services,Premises,Cleaning Maintenance & Toiletries,127,01/06/2023,2306-00515,0.00,139.90,R,AJM FIXINGS & POWER TOOLS LTD,No
Http://opendatacommunities.org/id/metropolitan-district-council/leeds,Leeds City Council,30/06/2023,Strategy and Resources,Leeds Building Services,Premises,Cleaning Maintenance & Toiletries,127,02/06/2023,2306-00516,0.00,790.68,R,AJM FIXINGS & POWER TOOLS LTD,No
Http://opendatacommunities.org/id/metropolitan-district-council/leeds,Leeds City Council,30/06/2023,Strategy and Resources,Leeds Building Services,Premises,Cleaning Maintenance & Toiletries,127,02/06/2023,2306-00517,0.00,94.35,R,AJM FIXINGS & POWER TOOLS LTD,No
Http://opendatacommunities.org/id/metropolitan-district-council/leeds,Leeds City Council,30/06/2023,Strategy and Resources,Leeds Building Services,Supplies and Services,Operational Furniture And Equipment,203,02/06/2023,2306-00518,0.00,259.00,R,AJM FIXINGS & POWER TOOLS LTD,No
Http://opendatacommunities.org/id/metropolitan-district-council/leeds,Leeds City Council,30/06/2023,Strategy and Resources,Leeds Building Services,Supplies and Services,Operational Furniture And Equipment,203,02/06/2023,2306-00519,0.00,99.00,R,AJM FIXINGS & POWER TOOLS LTD,No
Http://opendatacommunities.org/id/metropolitan-district-council/leeds,Leeds City Council,30/06/2023,Strategy and Resources,Leeds Building Services,Supplies and Services,Operational Furniture And Equipment,203,02/06/2023,2306-00520,0.00,359.19,R,AJM FIXINGS & POWER TOOLS LTD,No
Http://opendatacommunities.org/id/metropolitan-district-council/leeds,Leeds City Council,30/06/2023,Strategy and Resources,Leeds Building Services,Supplies and Services,Operational Furniture And Equipment,203,02/06/2023,2306-00521,0.00,358.72,R,AJM FIXINGS & POWER TOOLS LTD,No
Http://opendatacommunities.org/id/metropolitan-district-council/leeds,Leeds City Council,30/06/2023,Strategy and Resources,Leeds Building Services,Premises,Cleaning Maintenance & Toiletries,127,02/06/2023,2306-00522,0.00,329.50,R,AJM FIXINGS & POWER TOOLS LTD,No
Http://opendatacommunities.org/id/metropolitan-district-council/leeds,Leeds City Council,30/06/2023,Strategy and Resources,Leeds Building Services,Supplies and Services,Operational Furniture And Equipment,203,02/06/2023,2306-00523,0.00,43.00,R,AJM FIXINGS & POWER TOOLS LTD,No
Http://opendatacommunities.org/id/metropolitan-district-council/leeds,Leeds City Council,30/06/2023,Strategy and Resources,Leeds Building Services,Supplies and Services,Operational Furniture And Equipment,203,02/06/2023,2306-00524,0.00,152.96,R,AJM FIXINGS & POWER TOOLS LTD,No
Http://opendatacommunities.org/id/metropolitan-district-council/leeds,Leeds City Council,30/06/2023,Strategy and Resources,Leeds Building Services,Premises,Cleaning Maintenance & Toiletries,127,02/06/2023,2306-00525,0.00,1026.37,R,AJM FIXINGS & POWER TOOLS LTD,No
Http://opendatacommunities.org/id/metropolitan-district-council/leeds,Leeds City Council,30/06/2023,Strategy and Resources,Leeds Building Services,Supplies and Services,Operational Furniture And Equipment,203,02/06/2023,2306-00526,0.00,1732.22,R,AJM FIXINGS & POWER TOOLS LTD,No
Http://opendatacommunities.org/id/metropolitan-district-council/leeds,Leeds City Council,30/06/2023,Strategy and Resources,Leeds Building Services,Premises,Cleaning Maintenance & Toiletries,127,02/06/2023,2306-00527,0.00,27.65,R,AJM FIXINGS & POWER TOOLS LTD,No
Http://opendatacommunities.org/id/metropolitan-district-council/leeds,Leeds City Council,30/06/2023,Strategy and Resources,Leeds Building Services,Supplies and Services,Operational Furniture And Equipment,203,08/06/2023,2306-00528,0.00,11.60,R,AJM FIXINGS & POWER TOOLS LTD,No
Http://opendatacommunities.org/id/metropolitan-district-council/leeds,Leeds City Council,30/06/2023,Strategy and Resources,Leeds Building Services,Supplies and Services,Operational Furniture And Equipment,203,08/06/2023,2306-00529,0.00,359.19,R,AJM FIXINGS & POWER TOOLS LTD,No
Http://opendatacommunities.org/id/metropolitan-district-council/leeds,Leeds City Council,30/06/2023,Strategy and Resources,Leeds Building Services,Supplies and Services,Operational Furniture And Equipment,203,08/06/2023,2306-00530,0.00,359.19,R,AJM FIXINGS & POWER TOOLS LTD,No
Http://opendatacommunities.org/id/metropolitan-district-council/leeds,Leeds City Council,30/06/2023,Strategy and Resources,Leeds Building Services,Supplies and Services,Operational Furniture And Equipment,203,08/06/2023,2306-00531,0.00,72.99,R,AJM FIXINGS & POWER TOOLS LTD,No
Http://opendatacommunities.org/id/metropolitan-district-council/leeds,Leeds City Council,30/06/2023,Strategy and Resources,Leeds Building Services,Supplies and Services,Operational Furniture And Equipment,203,08/06/2023,2306-00532,0.00,270.79,R,AJM FIXINGS & POWER TOOLS LTD,No
Http://opendatacommunities.org/id/metropolitan-district-council/leeds,Leeds City Council,30/06/2023,Strategy and Resources,Leeds Building Services,Premises,Cleaning Maintenance & Toiletries,127,14/06/2023,2306-00533,0.00,1764.00,R,AJM FIXINGS & POWER TOOLS LTD,No
Http://opendatacommunities.org/id/metropolitan-district-council/leeds,Leeds City Council,30/06/2023,Strategy and Resources,Leeds Building Services,Supplies and Services,Operational Furniture And Equipment,203,14/06/2023,2306-00534,0.00,50.00,R,AJM FIXINGS & POWER TOOLS LTD,No
Http://opendatacommunities.org/id/metropolitan-district-council/leeds,Leeds City Council,30/06/2023,Strategy and Resources,Leeds Building Services,Premises,Cleaning Maintenance & Toiletries,127,14/06/2023,2306-00535,0.00,61.66,R,AJM FIXINGS & POWER TOOLS LTD,No
Http://opendatacommunities.org/id/metropolitan-district-council/leeds,Leeds City Council,30/06/2023,Strategy and Resources,Leeds Building Services,Supplies and Services,Operational Furniture And Equipment,203,14/06/2023,2306-00536,0.00,2145.00,R,AJM FIXINGS & POWER TOOLS LTD,No
Http://opendatacommunities.org/id/metropolitan-district-council/leeds,Leeds City Council,30/06/2023,Strategy and Resources,Leeds Building Services,Supplies and Services,Operational Furniture And Equipment,203,14/06/2023,2306-00537,0.00,667.00,R,AJM FIXINGS & POWER TOOLS LTD,No
Http://opendatacommunities.org/id/metropolitan-district-council/leeds,Leeds City Council,30/06/2023,Strategy and Resources,Leeds Building Services,Supplies and Services,Operational Furniture And Equipment,203,14/06/2023,2306-00538,0.00,359.16,R,AJM FIXINGS & POWER TOOLS LTD,No
Http://opendatacommunities.org/id/metropolitan-district-council/leeds,Leeds City Council,30/06/2023,Strategy and Resources,Leeds Building Services,Supplies and Services,Operational Furniture And Equipment,203,14/06/2023,2306-00539,0.00,47.30,R,AJM FIXINGS & POWER TOOLS LTD,No
Http://opendatacommunities.org/id/metropolitan-district-council/leeds,Leeds City Council,30/06/2023,Strategy and Resources,Leeds Building Services,Supplies and Services,Operational Furniture And Equipment,203,14/06/2023,2306-00540,0.00,42.50,R,AJM FIXINGS & POWER TOOLS LTD,No
Http://opendatacommunities.org/id/metropolitan-district-council/leeds,Leeds City Council,30/06/2023,Strategy and Resources,Leeds Building Services,Supplies and Services,Operational Furniture And Equipment,203,14/06/2023,2306-00541,0.00,359.16,R,AJM FIXINGS & POWER TOOLS LTD,No
Http://opendatacommunities.org/id/metropolitan-district-council/leeds,Leeds City Council,30/06/2023,Strategy and Resources,Leeds Building Services,Supplies and Services,Operational Furniture And Equipment,203,20/06/2023,2306-00542,0.00,359.19,R,AJM FIXINGS & POWER TOOLS LTD,No
Http://opendatacommunities.org/id/metropolitan-district-council/leeds,Leeds City Council,30/06/2023,Strategy and Resources,Leeds Building Services,Supplies and Services,Operational Furniture And Equipment,203,20/06/2023,2306-00543,0.00,359.19,R,AJM FIXINGS & POWER TOOLS LTD,No
Http://opendatacommunities.org/id/metropolitan-district-council/leeds,Leeds City Council,30/06/2023,Strategy and Resources,Leeds Building Services,Supplies and Services,Operational Furniture And Equipment,203,20/06/2023,2306-00544,0.00,176.88,R,AJM FIXINGS & POWER TOOLS LTD,No
Http://opendatacommunities.org/id/metropolitan-district-council/leeds,Leeds City Council,30/06/2023,Strategy and Resources,Leeds Building Services,Supplies and Services,Operational Furniture And Equipment,203,20/06/2023,2306-00545,0.00,1154.48,R,AJM FIXINGS & POWER TOOLS LTD,No
Http://opendatacommunities.org/id/metropolitan-district-council/leeds,Leeds City Council,30/06/2023,Strategy and Resources,Leeds Building Services,Premises,Cleaning Maintenance & Toiletries,127,20/06/2023,2306-00546,0.00,446.98,R,AJM FIXINGS & POWER TOOLS LTD,No
Http://opendatacommunities.org/id/metropolitan-district-council/leeds,Leeds City Council,30/06/2023,Strategy and Resources,Leeds Building Services,Supplies and Services,Operational Furniture And Equipment,203,20/06/2023,2306-00547,0.00,55.18,R,AJM FIXINGS & POWER TOOLS LTD,No
Http://opendatacommunities.org/id/metropolitan-district-council/leeds,Leeds City Council,30/06/2023,Strategy and Resources,Leeds Building Services,Supplies and Services,Operational Furniture And Equipment,203,20/06/2023,2306-00548,0.00,359.19,R,AJM FIXINGS & POWER TOOLS LTD,No
Http://opendatacommunities.org/id/metropolitan-district-council/leeds,Leeds City Council,30/06/2023,Strategy and Resources,Leeds Building Services,Supplies and Services,Operational Furniture And Equipment,203,20/06/2023,2306-00549,0.00,67.00,R,AJM FIXINGS & POWER TOOLS LTD,No
Http://opendatacommunities.org/id/metropolitan-district-council/leeds,Leeds City Council,30/06/2023,Strategy and Resources,Leeds Building Services,Supplies and Services,Operational Materials,205,20/06/2023,2306-00550,0.00,65.12,R,AJM FIXINGS & POWER TOOLS LTD,No
Http://opendatacommunities.org/id/metropolitan-district-council/leeds,Leeds City Council,30/06/2023,Strategy and Resources,Leeds Building Services,Supplies and Services,Operational Furniture And Equipment,203,20/06/2023,2306-00551,0.00,59.98,R,AJM FIXINGS & POWER TOOLS LTD,No
Http://opendatacommunities.org/id/metropolitan-district-council/leeds,Leeds City Council,30/06/2023,Strategy and Resources,Leeds Building Services,Supplies and Services,Operational Furniture And Equipment,203,20/06/2023,2306-00552,0.00,192.50,R,AJM FIXINGS & POWER TOOLS LTD,No
Http://opendatacommunities.org/id/metropolitan-district-council/leeds,Leeds City Council,30/06/2023,Strategy and Resources,Leeds Building Services,Supplies and Services,Operational Furniture And Equipment,203,20/06/2023,2306-00553,0.00,203.12,R,AJM FIXINGS & POWER TOOLS LTD,No
Http://opendatacommunities.org/id/metropolitan-district-council/leeds,Leeds City Council,30/06/2023,Strategy and Resources,Leeds Building Services,Supplies and Services,Operational Furniture And Equipment,203,20/06/2023,2306-00554,0.00,618.19,R,AJM FIXINGS & POWER TOOLS LTD,No
Http://opendatacommunities.org/id/metropolitan-district-council/leeds,Leeds City Council,30/06/2023,Strategy and Resources,Leeds Building Services,Premises,Cleaning Maintenance & Toiletries,127,20/06/2023,2306-00555,0.00,204.20,R,AJM FIXINGS & POWER TOOLS LTD,No
Http://opendatacommunities.org/id/metropolitan-district-council/leeds,Leeds City Council,30/06/2023,Strategy and Resources,Leeds Building Services,Supplies and Services,Operational Furniture And Equipment,203,20/06/2023,2306-00556,0.00,878.19,R,AJM FIXINGS & POWER TOOLS LTD,No
Http://opendatacommunities.org/id/metropolitan-district-council/leeds,Leeds City Council,30/06/2023,Strategy and Resources,Leeds Building Services,Premises,Cleaning Maintenance & Toiletries,127,20/06/2023,2306-00557,0.00,268.80,R,AJM FIXINGS & POWER TOOLS LTD,No
Http://opendatacommunities.org/id/metropolitan-district-council/leeds,Leeds City Council,30/06/2023,Strategy and Resources,Leeds Building Services,Supplies and Services,Operational Furniture And Equipment,203,20/06/2023,2306-00558,0.00,84.99,R,AJM FIXINGS & POWER TOOLS LTD,No
Http://opendatacommunities.org/id/metropolitan-district-council/leeds,Leeds City Council,30/06/2023,Strategy and Resources,Leeds Building Services,Premises,Cleaning Maintenance & Toiletries,127,20/06/2023,2306-00559,0.00,79.87,R,AJM FIXINGS & POWER TOOLS LTD,No
Http://opendatacommunities.org/id/metropolitan-district-council/leeds,Leeds City Council,30/06/2023,Strategy and Resources,Leeds Building Services,Premises,Cleaning Maintenance & Toiletries,127,20/06/2023,2306-00560,0.00,105.00,R,AJM FIXINGS & POWER TOOLS LTD,No
Http://opendatacommunities.org/id/metropolitan-district-council/leeds,Leeds City Council,30/06/2023,Strategy and Resources,Leeds Building Services,Supplies and Services,Operational Furniture And Equipment,203,20/06/2023,2306-00561,0.00,39.99,R,AJM FIXINGS & POWER TOOLS LTD,No
Http://opendatacommunities.org/id/metropolitan-district-council/leeds,Leeds City Council,30/06/2023,Strategy and Resources,Leeds Building Services,Supplies and Services,Operational Furniture And Equipment,203,22/06/2023,2306-00562,0.00,760.51,R,AJM FIXINGS & POWER TOOLS LTD,No
Http://opendatacommunities.org/id/metropolitan-district-council/leeds,Leeds City Council,30/06/2023,Strategy and Resources,Leeds Building Services,Premises,Cleaning Maintenance & Toiletries,127,22/06/2023,2306-00563,0.00,634.79,R,AJM FIXINGS & POWER TOOLS LTD,No
Http://opendatacommunities.org/id/metropolitan-district-council/leeds,Leeds City Council,30/06/2023,Strategy and Resources,Leeds Building Services,Supplies and Services,Operational Furniture And Equipment,203,23/06/2023,2306-00564,0.00,43.00,R,AJM FIXINGS & POWER TOOLS LTD,No
Http://opendatacommunities.org/id/metropolitan-district-council/leeds,Leeds City Council,30/06/2023,Strategy and Resources,Leeds Building Services,Premises,Cleaning Maintenance & Toiletries,127,23/06/2023,2306-00565,0.00,39.09,R,AJM FIXINGS & POWER TOOLS LTD,No
Http://opendatacommunities.org/id/metropolitan-district-council/leeds,Leeds City Council,30/06/2023,Strategy and Resources,Leeds Building Services,Supplies and Services,Operational Furniture And Equipment,203,23/06/2023,2306-00566,0.00,311.28,R,AJM FIXINGS & POWER TOOLS LTD,No
Http://opendatacommunities.org/id/metropolitan-district-council/leeds,Leeds City Council,30/06/2023,Strategy and Resources,Leeds Building Services,Premises,Cleaning Maintenance & Toiletries,127,23/06/2023,2306-00567,0.00,171.32,R,AJM FIXINGS & POWER TOOLS LTD,No
Http://opendatacommunities.org/id/metropolitan-district-council/leeds,Leeds City Council,30/06/2023,Strategy and Resources,Leeds Building Services,Supplies and Services,Operational Furniture And Equipment,203,23/06/2023,2306-00568,0.00,85.66,R,AJM FIXINGS & POWER TOOLS LTD,No
Http://opendatacommunities.org/id/metropolitan-district-council/leeds,Leeds City Council,30/06/2023,Strategy and Resources,Leeds Building Services,Supplies and Services,Operational Furniture And Equipment,203,23/06/2023,2306-00569,0.00,431.19,R,AJM FIXINGS & POWER TOOLS LTD,No
Http://opendatacommunities.org/id/metropolitan-district-council/leeds,Leeds City Council,30/06/2023,Strategy and Resources,Leeds Building Services,Supplies and Services,Operational Furniture And Equipment,203,23/06/2023,2306-00570,0.00,258.29,R,AJM FIXINGS & POWER TOOLS LTD,No
Http://opendatacommunities.org/id/metropolitan-district-council/leeds,Leeds City Council,30/06/2023,Strategy and Resources,Leeds Building Services,Supplies and Services,Operational Furniture And Equipment,203,29/06/2023,2306-00571,0.00,18.53,R,AJM FIXINGS & POWER TOOLS LTD,No
Http://opendatacommunities.org/id/metropolitan-district-council/leeds,Leeds City Council,30/06/2023,Strategy and Resources,Leeds Building Services,Supplies and Services,Operational Furniture And Equipment,203,29/06/2023,2306-00572,0.00,24.85,R,AJM FIXINGS & POWER TOOLS LTD,No
Http://opendatacommunities.org/id/metropolitan-district-council/leeds,Leeds City Council,30/06/2023,Strategy and Resources,Leeds Building Services,Supplies and Services,Operational Furniture And Equipment,203,29/06/2023,2306-00573,0.00,640.00,R,AJM FIXINGS & POWER TOOLS LTD,No
Http://opendatacommunities.org/id/metropolitan-district-council/leeds,Leeds City Council,30/06/2023,Strategy and Resources,Leeds Building Services,Supplies and Services,Operational Furniture And Equipment,203,29/06/2023,2306-00574,0.00,359.19,R,AJM FIXINGS & POWER TOOLS LTD,No
Http://opendatacommunities.org/id/metropolitan-district-council/leeds,Leeds City Council,30/06/2023,Strategy and Resources,Leeds Building Services,Supplies and Services,Operational Furniture And Equipment,203,29/06/2023,2306-00575,0.00,43.00,R,AJM FIXINGS & POWER TOOLS LTD,No
Http://opendatacommunities.org/id/metropolitan-district-council/leeds,Leeds City Council,30/06/2023,Strategy and Resources,Leeds Building Services,Supplies and Services,Operational Furniture And Equipment,203,29/06/2023,2306-00576,0.00,618.19,R,AJM FIXINGS & POWER TOOLS LTD,No
Http://opendatacommunities.org/id/metropolitan-district-council/leeds,Leeds City Council,30/06/2023,Strategy and Resources,Leeds Building Services,Premises,Cleaning Maintenance & Toiletries,127,30/06/2023,2306-00577,0.00,175.00,R,AJM FIXINGS & POWER TOOLS LTD,No
Http://opendatacommunities.org/id/metropolitan-district-council/leeds,Leeds City Council,30/06/2023,Children and Families,Social Care,Supplies and Services,General Amenity For Clients/Residents,285,21/06/2023,2306-00578,0.00,4.80,R,REDACTED PERSONAL DATA,No
Http://opendatacommunities.org/id/metropolitan-district-council/leeds,Leeds City Council,30/06/2023,Children and Families,Social Care,Transport,Public Transport Expenses,310,21/06/2023,2306-00579,0.00,12.80,R,REDACTED PERSONAL DATA,No
Http://opendatacommunities.org/id/metropolitan-district-council/leeds,Leeds City Council,30/06/2023,Communities Housing and Environment,Strategic Housing Partnership & Support,Capital,CONSTRUCTION,3,30/06/2023,2306-00580,0.00,6000.15,C,AKR Construction Ltd,No
Http://opendatacommunities.org/id/metropolitan-district-council/leeds,Leeds City Council,30/06/2023,Adults and Health,Services For Older People - 65 And Over,Agency Payments,Payments To Voluntary Organisations,561,30/06/2023,2306-00581,0.00,2700.00,R,Al Khidmat Centre,No
Http://opendatacommunities.org/id/metropolitan-district-council/leeds,Leeds City Council,30/06/2023,City Development,Libraries Arts & Heritage,Supplies and Services,Bought In Professional Services,277,29/06/2023,2306-00582,0.00,83.70,R,ALAA Enterprises,No
Http://opendatacommunities.org/id/metropolitan-district-council/leeds,Leeds City Council,30/06/2023,Resources,Democratic Services  ,Appropriations,Civic Allowances,651,19/05/2023,2306-00583,0.00,180.00,R,Alan Brown Flowers,Yes
Http://opendatacommunities.org/id/metropolitan-district-council/leeds,Leeds City Council,30/06/2023,Children and Families,Social Care,Agency Payments,Services Rendered By Other Organisations,511,02/06/2023,2306-00584,0.00,959.40,R,REDACTED PERSONAL DATA,No
Http://opendatacommunities.org/id/metropolitan-district-council/leeds,Leeds City Council,30/06/2023,Children and Families,Social Care,Supplies and Services,Operational Furniture And Equipment,203,02/06/2023,2306-00585,0.00,545.27,R,Alarm Radio Monitoring Ltd,No
Http://opendatacommunities.org/id/metropolitan-district-council/leeds,Leeds City Council,30/06/2023,Children and Families,Social Care,Supplies and Services,Operational Furniture And Equipment,203,23/06/2023,2306-00586,0.00,370.57,R,Alarm Radio Monitoring Ltd,No
Http://opendatacommunities.org/id/metropolitan-district-council/leeds,Leeds City Council,30/06/2023,City Development,Economic Development,Supplies and Services,Grants To Businesses,243,09/06/2023,2306-00587,0.00,9974.00,R,Alchemy Media Limited,No
Http://opendatacommunities.org/id/metropolitan-district-council/leeds,Leeds City Council,30/06/2023,Communities Housing and Environment,Communities,Supplies and Services,Computer Software & Equipment,214,16/06/2023,2306-00588,0.00,1228.33,R,Alcium Software Ltd,No
Http://opendatacommunities.org/id/metropolitan-district-council/leeds,Leeds City Council,30/06/2023,Communities Housing and Environment,Communities,Supplies and Services,Computer Software & Equipment,214,16/06/2023,2306-00589,0.00,125.00,R,Alcium Software Ltd,No
Http://opendatacommunities.org/id/metropolitan-district-council/leeds,Leeds City Council,30/06/2023,Children and Families,Social Care,Employees,Training & Development,70,23/06/2023,2306-00590,0.00,696.66,R,Alcohol Focus Scotland,No
Http://opendatacommunities.org/id/metropolitan-district-council/leeds,Leeds City Council,30/06/2023,Children and Families,Social Care,Agency Payments,Allowances,546,06/06/2023,2306-00591,0.00,150.00,R,REDACTED PERSONAL DATA,No
Http://opendatacommunities.org/id/metropolitan-district-council/leeds,Leeds City Council,30/06/2023,Communities Housing and Environment,Communities  ,Supplies and Services,'Well Being' Large Grants Projects,230,23/05/2023,2306-00592,0.00,4.83,R,Aldi 103 780,Yes
Http://opendatacommunities.org/id/metropolitan-district-council/leeds,Leeds City Council,30/06/2023,Children and Families,Social Care  ,Supplies and Services,Food & Drink,231,02/05/2023,2306-00593,0.00,18.95,R,Aldi 40 780,Yes
Http://opendatacommunities.org/id/metropolitan-district-council/leeds,Leeds City Council,30/06/2023,Children and Families,Social Care  ,Supplies and Services,Food & Drink,231,04/05/2023,2306-00594,0.00,14.48,R,Aldi 40 780,Yes
Http://opendatacommunities.org/id/metropolitan-district-council/leeds,Leeds City Council,30/06/2023,Communities Housing and Environment,Communities  ,Supplies and Services,Operational Materials,205,08/05/2023,2306-00595,0.00,3.25,R,Aldi 40 780,Yes
Http://opendatacommunities.org/id/metropolitan-district-council/leeds,Leeds City Council,30/06/2023,Children and Families,Social Care  ,Supplies and Services,Food & Drink,231,10/05/2023,2306-00596,0.00,2.61,R,Aldi 40 780,Yes
Http://opendatacommunities.org/id/metropolitan-district-council/leeds,Leeds City Council,30/06/2023,Children and Families,Social Care  ,Supplies and Services,Food & Drink,231,15/05/2023,2306-00597,0.00,4.03,R,Aldi 40 780,Yes
Http://opendatacommunities.org/id/metropolitan-district-council/leeds,Leeds City Council,30/06/2023,Children and Families,Social Care  ,Supplies and Services,Food & Drink,231,16/05/2023,2306-00598,0.00,94.39,R,Aldi 40 780,Yes
Http://opendatacommunities.org/id/metropolitan-district-council/leeds,Leeds City Council,30/06/2023,Children and Families,Social Care  ,Supplies and Services,Food & Drink,231,23/05/2023,2306-00599,0.00,71.39,R,Aldi 40 780,Yes
Http://opendatacommunities.org/id/metropolitan-district-council/leeds,Leeds City Council,30/06/2023,Communities Housing and Environment,Communities  ,Supplies and Services,Operational Materials,205,23/05/2023,2306-00600,0.00,4.30,R,Aldi 40 780,Yes
Http://opendatacommunities.org/id/metropolitan-district-council/leeds,Leeds City Council,30/06/2023,Communities Housing and Environment,Communities  ,Supplies and Services,Operational Materials,205,30/05/2023,2306-00601,0.00,9.73,R,Aldi 40 780,Yes
Http://opendatacommunities.org/id/metropolitan-district-council/leeds,Leeds City Council,30/06/2023,Children and Families,Social Care  ,Supplies and Services,Food & Drink,231,03/05/2023,2306-00602,0.00,23.08,R,Aldi 49 780,Yes
Http://opendatacommunities.org/id/metropolitan-district-council/leeds,Leeds City Council,30/06/2023,Adults and Health,Services For Older People - 65 And Over  ,Supplies and Services,Food & Drink,231,04/05/2023,2306-00603,0.00,38.65,R,Aldi 49 780,Yes
Http://opendatacommunities.org/id/metropolitan-district-council/leeds,Leeds City Council,30/06/2023,Children and Families,Social Care  ,Supplies and Services,Food & Drink,231,05/05/2023,2306-00604,0.00,15.00,R,Aldi 49 780,Yes
Http://opendatacommunities.org/id/metropolitan-district-council/leeds,Leeds City Council,30/06/2023,Children and Families,Social Care  ,Agency Payments,Section 17,551,28/04/2023,2306-00605,0.00,67.94,R,Aldi 71 780,Yes
Http://opendatacommunities.org/id/metropolitan-district-council/leeds,Leeds City Council,30/06/2023,Children and Families,Social Care  ,Agency Payments,Section 17,551,19/05/2023,2306-00606,0.00,8.77,R,Aldi 71 780,Yes
Http://opendatacommunities.org/id/metropolitan-district-council/leeds,Leeds City Council,30/06/2023,Children and Families,Social Care  ,Supplies and Services,Food & Drink,231,25/05/2023,2306-00607,0.00,20.02,R,Aldi 71 780,Yes
Http://opendatacommunities.org/id/metropolitan-district-council/leeds,Leeds City Council,30/06/2023,Children and Families,Social Care  ,Supplies and Services,Food & Drink,231,08/05/2023,2306-00608,0.00,16.51,R,Aldi 779118,Yes
Http://opendatacommunities.org/id/metropolitan-district-council/leeds,Leeds City Council,30/06/2023,Adults and Health,Services For Older People - 65 And Over  ,Supplies and Services,General Amenity For Clients/Residents,285,22/05/2023,2306-00609,0.00,22.38,R,Aldi 779-91,Yes
Http://opendatacommunities.org/id/metropolitan-district-council/leeds,Leeds City Council,30/06/2023,Children and Families,Social Care  ,Supplies and Services,Food & Drink,231,10/05/2023,2306-00610,0.00,9.85,R,Aldi 85 780,Yes
Http://opendatacommunities.org/id/metropolitan-district-council/leeds,Leeds City Council,30/06/2023,Children and Families,Social Care  ,Supplies and Services,Food & Drink,231,23/05/2023,2306-00611,0.00,47.73,R,Aldi 85 780,Yes
Http://opendatacommunities.org/id/metropolitan-district-council/leeds,Leeds City Council,30/06/2023,Children and Families,Social Care  ,Supplies and Services,Food & Drink,231,15/05/2023,2306-00612,0.00,11.00,R,Aldi 88 780,Yes
Http://opendatacommunities.org/id/metropolitan-district-council/leeds,Leeds City Council,30/06/2023,Children and Families,Social Care  ,Supplies and Services,Food & Drink,231,17/05/2023,2306-00613,0.00,2.17,R,Aldi 88 780,Yes
Http://opendatacommunities.org/id/metropolitan-district-council/leeds,Leeds City Council,30/06/2023,Children and Families,Social Care  ,Supplies and Services,Food & Drink,231,01/05/2023,2306-00614,0.00,28.22,R,Aldi 89 780,Yes
Http://opendatacommunities.org/id/metropolitan-district-council/leeds,Leeds City Council,30/06/2023,Children and Families,Social Care  ,Supplies and Services,Food & Drink,231,09/05/2023,2306-00615,0.00,34.08,R,Aldi 89 780,Yes
Http://opendatacommunities.org/id/metropolitan-district-council/leeds,Leeds City Council,30/06/2023,Communities Housing and Environment,Waste Management  ,Supplies and Services,Office Consumables,210,09/05/2023,2306-00616,0.00,0.29,R,Aldi 89 780,Yes
Http://opendatacommunities.org/id/metropolitan-district-council/leeds,Leeds City Council,30/06/2023,Children and Families,Social Care  ,Supplies and Services,Food & Drink,231,18/05/2023,2306-00617,0.00,19.26,R,Aldi 89 780,Yes
Http://opendatacommunities.org/id/metropolitan-district-council/leeds,Leeds City Council,30/06/2023,Children and Families,Social Care  ,Supplies and Services,Food & Drink,231,22/05/2023,2306-00618,0.00,67.40,R,Aldi 89 780,Yes
Http://opendatacommunities.org/id/metropolitan-district-council/leeds,Leeds City Council,30/06/2023,Children and Families,Social Care  ,Supplies and Services,Food & Drink,231,22/05/2023,2306-00619,0.00,154.78,R,Aldi 89 780,Yes
Http://opendatacommunities.org/id/metropolitan-district-council/leeds,Leeds City Council,30/06/2023,Children and Families,Social Care  ,Supplies and Services,Food & Drink,231,30/05/2023,2306-00620,0.00,20.08,R,Aldi 89 780,Yes
Http://opendatacommunities.org/id/metropolitan-district-council/leeds,Leeds City Council,30/06/2023,Children and Families,Social Care  ,Appropriations,Leaving Care Allowances,634,02/05/2023,2306-00621,0.00,14.09,R,Aldi Stores,Yes
Http://opendatacommunities.org/id/metropolitan-district-council/leeds,Leeds City Council,30/06/2023,Children and Families,Social Care  ,Supplies and Services,Food & Drink,231,04/05/2023,2306-00622,0.00,6.18,R,Aldi Stores,Yes
Http://opendatacommunities.org/id/metropolitan-district-council/leeds,Leeds City Council,30/06/2023,Children and Families,Social Care  ,Appropriations,Leaving Care Allowances,634,05/05/2023,2306-00623,0.00,5.23,R,Aldi Stores,Yes
Http://opendatacommunities.org/id/metropolitan-district-council/leeds,Leeds City Council,30/06/2023,Children and Families,Social Care  ,Supplies and Services,Food & Drink,231,12/05/2023,2306-00624,0.00,36.65,R,Aldi Stores,Yes
Http://opendatacommunities.org/id/metropolitan-district-council/leeds,Leeds City Council,30/06/2023,Children and Families,Social Care  ,Supplies and Services,Food & Drink,231,17/05/2023,2306-00625,0.00,44.63,R,Aldi Stores,Yes
Http://opendatacommunities.org/id/metropolitan-district-council/leeds,Leeds City Council,30/06/2023,Adults and Health,Assessment And Care Management  ,Supplies and Services,Subsistence,256,18/05/2023,2306-00626,0.00,10.50,R,Aldi Stores,Yes
Http://opendatacommunities.org/id/metropolitan-district-council/leeds,Leeds City Council,30/06/2023,Children and Families,Social Care  ,Appropriations,Leaving Care Allowances,634,19/05/2023,2306-00627,0.00,10.93,R,Aldi Stores,Yes
Http://opendatacommunities.org/id/metropolitan-district-council/leeds,Leeds City Council,30/06/2023,Children and Families,Social Care  ,Supplies and Services,Food & Drink,231,20/05/2023,2306-00628,0.00,19.34,R,Aldi Stores,Yes
Http://opendatacommunities.org/id/metropolitan-district-council/leeds,Leeds City Council,30/06/2023,Children and Families,Social Care  ,Supplies and Services,Food & Drink,231,21/05/2023,2306-00629,0.00,7.44,R,Aldi Stores,Yes
Http://opendatacommunities.org/id/metropolitan-district-council/leeds,Leeds City Council,30/06/2023,Children and Families,Social Care  ,Appropriations,Leaving Care Allowances,634,26/05/2023,2306-00630,0.00,21.65,R,Aldi Stores,Yes
Http://opendatacommunities.org/id/metropolitan-district-council/leeds,Leeds City Council,30/06/2023,Children and Families,Social Care  ,Supplies and Services,Food & Drink,231,26/05/2023,2306-00631,0.00,10.54,R,Aldi Stores,Yes
Http://opendatacommunities.org/id/metropolitan-district-council/leeds,Leeds City Council,30/06/2023,Children and Families,Social Care  ,Supplies and Services,Food & Drink,231,30/05/2023,2306-00632,0.00,17.30,R,Aldi Stores,Yes
Http://opendatacommunities.org/id/metropolitan-district-council/leeds,Leeds City Council,30/06/2023,Communities Housing and Environment,Customer Access,Transport,Public Transport Expenses,310,27/06/2023,2306-00633,0.00,4.00,R,REDACTED PERSONAL DATA,No
Http://opendatacommunities.org/id/metropolitan-district-council/leeds,Leeds City Council,30/06/2023,Children and Families,Social Care,Internal Recharges,Legal Disbursements,411,08/06/2023,2306-00634,0.00,685.00,R,Alex Taylor,No
Http://opendatacommunities.org/id/metropolitan-district-council/leeds,Leeds City Council,30/06/2023,Children and Families,Social Care,Internal Recharges,Legal Disbursements,411,14/06/2023,2306-00635,0.00,595.00,R,Alex Taylor,No
Http://opendatacommunities.org/id/metropolitan-district-council/leeds,Leeds City Council,30/06/2023,Children and Families,Social Care,Internal Recharges,Legal Disbursements,411,16/06/2023,2306-00636,0.00,541.00,R,Alex Taylor,No
Http://opendatacommunities.org/id/metropolitan-district-council/leeds,Leeds City Council,30/06/2023,Children and Families,Social Care,Internal Recharges,Legal Disbursements,411,30/06/2023,2306-00637,0.00,3646.00,R,Alex Taylor,No
Http://opendatacommunities.org/id/metropolitan-district-council/leeds,Leeds City Council,30/06/2023,Strategy and Resources,Commercial Services,Supplies and Services,Other Hired And Contracted Services,265,02/06/2023,2306-00638,0.00,225.00,R,ALEX WAGG,No
Http://opendatacommunities.org/id/metropolitan-district-council/leeds,Leeds City Council,30/06/2023,Strategy and Resources,Commercial Services,Supplies and Services,Other Hired And Contracted Services,265,12/06/2023,2306-00639,0.00,200.00,R,ALEX WAGG,No
Http://opendatacommunities.org/id/metropolitan-district-council/leeds,Leeds City Council,30/06/2023,Strategy and Resources,Commercial Services,Supplies and Services,Other Hired And Contracted Services,265,12/06/2023,2306-00640,0.00,952.50,R,ALEX WAGG,No
Http://opendatacommunities.org/id/metropolitan-district-council/leeds,Leeds City Council,30/06/2023,Strategy and Resources,Commercial Services,Supplies and Services,Other Hired And Contracted Services,265,12/06/2023,2306-00641,0.00,525.00,R,ALEX WAGG,No
Http://opendatacommunities.org/id/metropolitan-district-council/leeds,Leeds City Council,30/06/2023,Strategy and Resources,Commercial Services,Supplies and Services,Other Hired And Contracted Services,265,15/06/2023,2306-00642,0.00,100.00,R,ALEX WAGG,No
Http://opendatacommunities.org/id/metropolitan-district-council/leeds,Leeds City Council,30/06/2023,Strategy and Resources,Commercial Services,Supplies and Services,Other Hired And Contracted Services,265,15/06/2023,2306-00643,0.00,225.00,R,ALEX WAGG,No
Http://opendatacommunities.org/id/metropolitan-district-council/leeds,Leeds City Council,30/06/2023,Strategy and Resources,Commercial Services,Supplies and Services,Other Hired And Contracted Services,265,27/06/2023,2306-00644,0.00,655.00,R,ALEX WAGG,No
Http://opendatacommunities.org/id/metropolitan-district-council/leeds,Leeds City Council,30/06/2023,Communities Housing and Environment,Customer Access,Supplies and Services,Other Hired And Contracted Services,265,01/06/2023,2306-00645,0.00,200.00,R,Alexander Falase-Koya,No
Http://opendatacommunities.org/id/metropolitan-district-council/leeds,Leeds City Council,30/06/2023,Adults and Health,Services For Older People - 65 And Over,Agency Payments,Residential Care Dementia,571,21/06/2023,2306-00646,0.00,13376.40,R,ALEXANDER RESIDENTIAL HOME,No
Http://opendatacommunities.org/id/metropolitan-district-council/leeds,Leeds City Council,30/06/2023,Adults and Health,Services For Older People - 65 And Over,Agency Payments,Residential,580,21/06/2023,2306-00647,0.00,25429.16,R,ALEXANDER RESIDENTIAL HOME,No
Http://opendatacommunities.org/id/metropolitan-district-council/leeds,Leeds City Council as Accountable Body ,30/06/2023,Social Services Pooled Budgets,Jcs For People With Learning Disabilitie,Agency Payments,Residential,580,21/06/2023,2306-00648,0.00,3096.00,R,ALEXANDER RESIDENTIAL HOME,No
Http://opendatacommunities.org/id/metropolitan-district-council/leeds,Leeds City Council,30/06/2023,Children and Families,Social Care,Agency Payments,Contact,548,05/06/2023,2306-00649,0.00,52.50,R,REDACTED PERSONAL DATA,No
Http://opendatacommunities.org/id/metropolitan-district-council/leeds,Leeds City Council,30/06/2023,Children and Families,Social Care,Supplies and Services,Food & Drink,231,21/06/2023,2306-00650,0.00,153.75,R,REDACTED PERSONAL DATA,No
Http://opendatacommunities.org/id/metropolitan-district-council/leeds,Leeds City Council,30/06/2023,Adults and Health,Services For Older People - 65 And Over,Agency Payments,Residential Care Dementia,571,21/06/2023,2306-00651,0.00,5318.78,R,ALEXANDRA COURT,No
Http://opendatacommunities.org/id/metropolitan-district-council/leeds,Leeds City Council,30/06/2023,Adults and Health,Services For Older People - 65 And Over,Agency Payments,Residential,580,21/06/2023,2306-00652,0.00,5744.12,R,ALEXANDRA COURT,No
Http://opendatacommunities.org/id/metropolitan-district-council/leeds,Leeds City Council,30/06/2023,Children and Families,Social Care,Agency Payments,Services Rendered By Other Organisations,511,02/06/2023,2306-00653,0.00,319.80,R,REDACTED PERSONAL DATA,No
Http://opendatacommunities.org/id/metropolitan-district-council/leeds,Leeds City Council,30/06/2023,Strategy and Resources,Leeds Building Services,Supplies and Services,Other Hired And Contracted Services,265,02/06/2023,2306-00654,0.00,1650.00,R,Alfred Bagnall & Sons (Leeds) Ltd,No
Http://opendatacommunities.org/id/metropolitan-district-council/leeds,Leeds City Council,30/06/2023,Strategy and Resources,Leeds Building Services,Supplies and Services,Other Hired And Contracted Services,265,09/06/2023,2306-00655,0.00,1427.00,R,Alfred Bagnall & Sons (Leeds) Ltd,No
Http://opendatacommunities.org/id/metropolitan-district-council/leeds,Leeds City Council,30/06/2023,Strategy and Resources,Leeds Building Services,Supplies and Services,Other Hired And Contracted Services,265,14/06/2023,2306-00656,0.00,2560.00,R,Alfred Bagnall & Sons (Leeds) Ltd,No
Http://opendatacommunities.org/id/metropolitan-district-council/leeds,Leeds City Council,30/06/2023,Strategy and Resources,Leeds Building Services,Supplies and Services,Other Hired And Contracted Services,265,14/06/2023,2306-00657,0.00,1360.00,R,Alfred Bagnall & Sons (Leeds) Ltd,No
Http://opendatacommunities.org/id/metropolitan-district-council/leeds,Leeds City Council,30/06/2023,Strategy and Resources,Leeds Building Services,Supplies and Services,Other Hired And Contracted Services,265,14/06/2023,2306-00658,0.00,690.00,R,Alfred Bagnall & Sons (Leeds) Ltd,No
Http://opendatacommunities.org/id/metropolitan-district-council/leeds,Leeds City Council,30/06/2023,Strategy and Resources,Leeds Building Services,Supplies and Services,Other Hired And Contracted Services,265,14/06/2023,2306-00659,0.00,3570.00,R,Alfred Bagnall & Sons (Leeds) Ltd,No
Http://opendatacommunities.org/id/metropolitan-district-council/leeds,Leeds City Council,30/06/2023,Strategy and Resources,Leeds Building Services,Supplies and Services,Other Hired And Contracted Services,265,14/06/2023,2306-00660,0.00,778.00,R,Alfred Bagnall & Sons (Leeds) Ltd,No
Http://opendatacommunities.org/id/metropolitan-district-council/leeds,Leeds City Council,30/06/2023,City Development,Markets & City Centre Management,Supplies and Services,City Centre Enhancement,295,14/06/2023,2306-00661,0.00,340.00,R,Alfred Bagnall & Sons (Leeds) Ltd,No
Http://opendatacommunities.org/id/metropolitan-district-council/leeds,Leeds City Council,30/06/2023,Strategy and Resources,Leeds Building Services,Supplies and Services,Other Hired And Contracted Services,265,22/06/2023,2306-00662,0.00,870.00,R,Alfred Bagnall & Sons (Leeds) Ltd,No
Http://opendatacommunities.org/id/metropolitan-district-council/leeds,Leeds City Council,30/06/2023,Strategy and Resources,Leeds Building Services,Supplies and Services,Other Hired And Contracted Services,265,22/06/2023,2306-00663,0.00,50.00,R,Alfred Bagnall & Sons (Leeds) Ltd,No
Http://opendatacommunities.org/id/metropolitan-district-council/leeds,Leeds City Council,30/06/2023,Strategy and Resources,Leeds Building Services,Supplies and Services,Other Hired And Contracted Services,265,23/06/2023,2306-00664,0.00,2260.00,R,Alfred Bagnall & Sons (Leeds) Ltd,No
Http://opendatacommunities.org/id/metropolitan-district-council/leeds,Leeds City Council,30/06/2023,Strategy and Resources,Leeds Building Services,Supplies and Services,Other Hired And Contracted Services,265,23/06/2023,2306-00665,0.00,598.00,R,Alfred Bagnall & Sons (Leeds) Ltd,No
Http://opendatacommunities.org/id/metropolitan-district-council/leeds,Leeds City Council,30/06/2023,Strategy and Resources,Leeds Building Services,Supplies and Services,Other Hired And Contracted Services,265,23/06/2023,2306-00666,0.00,1870.00,R,Alfred Bagnall & Sons (Leeds) Ltd,No
Http://opendatacommunities.org/id/metropolitan-district-council/leeds,Leeds City Council,30/06/2023,Strategy and Resources,Leeds Building Services,Supplies and Services,Other Hired And Contracted Services,265,23/06/2023,2306-00667,0.00,9450.00,R,Alfred Bagnall & Sons (Leeds) Ltd,No
Http://opendatacommunities.org/id/metropolitan-district-council/leeds,Leeds City Council,30/06/2023,Strategy and Resources,Leeds Building Services,Supplies and Services,Other Hired And Contracted Services,265,30/06/2023,2306-00668,0.00,300.00,R,Alfred Bagnall & Sons (Leeds) Ltd,No
Http://opendatacommunities.org/id/metropolitan-district-council/leeds,Leeds City Council,30/06/2023,Communities Housing and Environment,Climate Energy & Greenspaces,Transport,Hire Of Movable Plant & Machinery,315,30/06/2023,2306-00669,0.00,143.92,R,ALGECO UK LIMITED,No
Http://opendatacommunities.org/id/metropolitan-district-council/leeds,Leeds City Council,30/06/2023,Communities Housing and Environment,Customer Access,Supplies and Services,Bought In Professional Services,277,02/06/2023,2306-00670,0.00,31.50,R,Ali Pourakaberian,No
Http://opendatacommunities.org/id/metropolitan-district-council/leeds,Leeds City Council,30/06/2023,Communities Housing and Environment,Customer Access,Supplies and Services,Bought In Professional Services,277,02/06/2023,2306-00671,0.00,31.50,R,Ali Pourakaberian,No
Http://opendatacommunities.org/id/metropolitan-district-council/leeds,Leeds City Council,30/06/2023,Communities Housing and Environment,Customer Access,Supplies and Services,Bought In Professional Services,277,02/06/2023,2306-00672,0.00,31.50,R,Ali Pourakaberian,No
Http://opendatacommunities.org/id/metropolitan-district-council/leeds,Leeds City Council,30/06/2023,Communities Housing and Environment,Customer Access,Supplies and Services,Bought In Professional Services,277,02/06/2023,2306-00673,0.00,18.00,R,Ali Pourakaberian,No
Http://opendatacommunities.org/id/metropolitan-district-council/leeds,Leeds City Council,30/06/2023,Communities Housing and Environment,Customer Access,Supplies and Services,Bought In Professional Services,277,02/06/2023,2306-00674,0.00,31.50,R,Ali Pourakaberian,No
Http://opendatacommunities.org/id/metropolitan-district-council/leeds,Leeds City Council,30/06/2023,Communities Housing and Environment,Customer Access,Supplies and Services,Bought In Professional Services,277,07/06/2023,2306-00675,0.00,22.50,R,Ali Pourakaberian,No
Http://opendatacommunities.org/id/metropolitan-district-council/leeds,Leeds City Council,30/06/2023,Communities Housing and Environment,Customer Access,Supplies and Services,Bought In Professional Services,277,07/06/2023,2306-00676,0.00,31.50,R,Ali Pourakaberian,No
Http://opendatacommunities.org/id/metropolitan-district-council/leeds,Leeds City Council,30/06/2023,Communities Housing and Environment,Customer Access,Supplies and Services,Bought In Professional Services,277,07/06/2023,2306-00677,0.00,18.00,R,Ali Pourakaberian,No
Http://opendatacommunities.org/id/metropolitan-district-council/leeds,Leeds City Council,30/06/2023,Communities Housing and Environment,Customer Access,Supplies and Services,Bought In Professional Services,277,07/06/2023,2306-00678,0.00,35.40,R,Ali Pourakaberian,No
Http://opendatacommunities.org/id/metropolitan-district-council/leeds,Leeds City Council,30/06/2023,Communities Housing and Environment,Customer Access,Supplies and Services,Bought In Professional Services,277,07/06/2023,2306-00679,0.00,18.00,R,Ali Pourakaberian,No
Http://opendatacommunities.org/id/metropolitan-district-council/leeds,Leeds City Council,30/06/2023,Communities Housing and Environment,Customer Access,Supplies and Services,Bought In Professional Services,277,14/06/2023,2306-00680,0.00,31.50,R,Ali Pourakaberian,No
Http://opendatacommunities.org/id/metropolitan-district-council/leeds,Leeds City Council,30/06/2023,Communities Housing and Environment,Customer Access,Supplies and Services,Bought In Professional Services,277,14/06/2023,2306-00681,0.00,31.50,R,Ali Pourakaberian,No
Http://opendatacommunities.org/id/metropolitan-district-council/leeds,Leeds City Council,30/06/2023,Communities Housing and Environment,Customer Access,Supplies and Services,Bought In Professional Services,277,21/06/2023,2306-00682,0.00,21.90,R,Ali Pourakaberian,No
Http://opendatacommunities.org/id/metropolitan-district-council/leeds,Leeds City Council,30/06/2023,Communities Housing and Environment,Customer Access,Supplies and Services,Bought In Professional Services,277,21/06/2023,2306-00683,0.00,31.50,R,Ali Pourakaberian,No
Http://opendatacommunities.org/id/metropolitan-district-council/leeds,Leeds City Council,30/06/2023,Communities Housing and Environment,Customer Access,Supplies and Services,Bought In Professional Services,277,21/06/2023,2306-00684,0.00,18.00,R,Ali Pourakaberian,No
Http://opendatacommunities.org/id/metropolitan-district-council/leeds,Leeds City Council,30/06/2023,Communities Housing and Environment,Customer Access,Supplies and Services,Bought In Professional Services,277,21/06/2023,2306-00685,0.00,31.50,R,Ali Pourakaberian,No
Http://opendatacommunities.org/id/metropolitan-district-council/leeds,Leeds City Council,30/06/2023,Children and Families,Social Care,Agency Payments,Contact,548,26/06/2023,2306-00686,0.00,80.00,R,Ali Pourakaberian,No
Http://opendatacommunities.org/id/metropolitan-district-council/leeds,Leeds City Council,30/06/2023,Communities Housing and Environment,Customer Access,Supplies and Services,Bought In Professional Services,277,28/06/2023,2306-00687,0.00,31.50,R,Ali Pourakaberian,No
Http://opendatacommunities.org/id/metropolitan-district-council/leeds,Leeds City Council,30/06/2023,Communities Housing and Environment,Customer Access,Supplies and Services,Bought In Professional Services,277,28/06/2023,2306-00688,0.00,31.50,R,Ali Pourakaberian,No
Http://opendatacommunities.org/id/metropolitan-district-council/leeds,Leeds City Council,30/06/2023,Children and Families,Social Care,Agency Payments,Contact,548,30/06/2023,2306-00689,0.00,80.00,R,Ali Pourakaberian,No
Http://opendatacommunities.org/id/metropolitan-district-council/leeds,Leeds City Council,30/06/2023,City Development,Recreation,Supplies and Services,Bought In Professional Services,277,30/06/2023,2306-00690,0.00,60.00,R,Alice M Richardson,No
Http://opendatacommunities.org/id/metropolitan-district-council/leeds,Leeds City Council,30/06/2023,City Development,Recreation,Supplies and Services,Bought In Professional Services,277,30/06/2023,2306-00691,0.00,40.00,R,Alice M Richardson,No
Http://opendatacommunities.org/id/metropolitan-district-council/leeds,Leeds City Council,30/06/2023,City Development,Recreation,Supplies and Services,Bought In Professional Services,277,30/06/2023,2306-00692,0.00,60.00,R,Alice M Richardson,No
Http://opendatacommunities.org/id/metropolitan-district-council/leeds,Leeds City Council,30/06/2023,City Development,Recreation,Supplies and Services,Bought In Professional Services,277,30/06/2023,2306-00693,0.00,20.00,R,Alice M Richardson,No
Http://opendatacommunities.org/id/metropolitan-district-council/leeds,Leeds City Council,30/06/2023,City Development,Economic Development,Capital,CONSTRUCTION,3,30/06/2023,2306-00694,0.00,700.00,C,Alice Rose Needham,No
Http://opendatacommunities.org/id/metropolitan-district-council/leeds,Leeds City Council,30/06/2023,Children and Families,Social Care,Agency Payments,Allowances,546,13/06/2023,2306-00695,0.00,63.69,R,REDACTED PERSONAL DATA,No
Http://opendatacommunities.org/id/metropolitan-district-council/leeds,Leeds City Council,30/06/2023,Children and Families,Social Care,Agency Payments,Contact,548,02/06/2023,2306-00696,0.00,10.40,R,REDACTED PERSONAL DATA,No
Http://opendatacommunities.org/id/metropolitan-district-council/leeds,Leeds City Council,30/06/2023,Children and Families,Social Care,Agency Payments,Contact,548,09/06/2023,2306-00697,0.00,10.40,R,REDACTED PERSONAL DATA,No
Http://opendatacommunities.org/id/metropolitan-district-council/leeds,Leeds City Council,30/06/2023,Children and Families,Social Care,Agency Payments,Placement Support,550,09/06/2023,2306-00698,0.00,100.00,R,REDACTED PERSONAL DATA,No
Http://opendatacommunities.org/id/metropolitan-district-council/leeds,Leeds City Council,30/06/2023,Children and Families,Social Care,Agency Payments,Allowances,546,15/06/2023,2306-00699,0.00,100.00,R,REDACTED PERSONAL DATA,No
Http://opendatacommunities.org/id/metropolitan-district-council/leeds,Leeds City Council,30/06/2023,Children and Families,Social Care,Agency Payments,Placement Support,550,15/06/2023,2306-00700,0.00,216.76,R,REDACTED PERSONAL DATA,No
Http://opendatacommunities.org/id/metropolitan-district-council/leeds,Leeds City Council,30/06/2023,Children and Families,Social Care,Agency Payments,Contact,548,16/06/2023,2306-00701,0.00,10.40,R,REDACTED PERSONAL DATA,No
Http://opendatacommunities.org/id/metropolitan-district-council/leeds,Leeds City Council,30/06/2023,Children and Families,Social Care,Agency Payments,Placement Support,550,22/06/2023,2306-00702,0.00,216.76,R,REDACTED PERSONAL DATA,No
Http://opendatacommunities.org/id/metropolitan-district-council/leeds,Leeds City Council,30/06/2023,Children and Families,Social Care,Agency Payments,Contact,548,23/06/2023,2306-00703,0.00,10.40,R,REDACTED PERSONAL DATA,No
Http://opendatacommunities.org/id/metropolitan-district-council/leeds,Leeds City Council,30/06/2023,Children and Families,Social Care,Agency Payments,Placement Support,550,29/06/2023,2306-00704,0.00,216.76,R,REDACTED PERSONAL DATA,No
Http://opendatacommunities.org/id/metropolitan-district-council/leeds,Leeds City Council,30/06/2023,Children and Families,Social Care,Agency Payments,Contact,548,30/06/2023,2306-00705,0.00,10.40,R,REDACTED PERSONAL DATA,No
Http://opendatacommunities.org/id/metropolitan-district-council/leeds,Leeds City Council,30/06/2023,Children and Families,Social Care,Agency Payments,Services Rendered By Other Organisations,511,02/06/2023,2306-00706,0.00,959.40,R,REDACTED PERSONAL DATA,No
Http://opendatacommunities.org/id/metropolitan-district-council/leeds,Leeds City Council,30/06/2023,Children and Families,Social Care,Internal Recharges,Legal Disbursements,411,08/06/2023,2306-00707,0.00,495.00,R,Alison Davenport,No
Http://opendatacommunities.org/id/metropolitan-district-council/leeds,Leeds City Council,30/06/2023,Children and Families,Social Care,Internal Recharges,Legal Disbursements,411,08/06/2023,2306-00708,0.00,700.00,R,Alison Davenport,No
Http://opendatacommunities.org/id/metropolitan-district-council/leeds,Leeds City Council,30/06/2023,Children and Families,Social Care,Internal Recharges,Legal Disbursements,411,16/06/2023,2306-00709,0.00,450.00,R,Alison Davenport,No
Http://opendatacommunities.org/id/metropolitan-district-council/leeds,Leeds City Council,30/06/2023,Children and Families,Social Care,Internal Recharges,Legal Disbursements,411,29/06/2023,2306-00710,0.00,540.00,R,Alison Davenport,No
Http://opendatacommunities.org/id/metropolitan-district-council/leeds,Leeds City Council,30/06/2023,Children and Families,Social Care,Internal Recharges,Legal Disbursements,411,30/06/2023,2306-00711,0.00,450.00,R,Alison Davenport,No
Http://opendatacommunities.org/id/metropolitan-district-council/leeds,Leeds City Council,30/06/2023,Strategy and Resources,Commercial Services,Supplies and Services,Other Hired And Contracted Services,265,19/06/2023,2306-00712,0.00,352.80,R,REDACTED PERSONAL DATA,No
Http://opendatacommunities.org/id/metropolitan-district-council/leeds,Leeds City Council,30/06/2023,City Development,Economic Development,Supplies and Services,Grants To Businesses,243,02/06/2023,2306-00713,0.00,8749.00,R,All Rounder Cricket Ltd,No
Http://opendatacommunities.org/id/metropolitan-district-council/leeds,Leeds City Council,30/06/2023,Children and Families,Social Care,Agency Payments,Services Rendered By Other Organisations,511,02/06/2023,2306-00714,0.00,9146.28,R,All Stars Childcare,No
Http://opendatacommunities.org/id/metropolitan-district-council/leeds,Leeds City Council,30/06/2023,Children and Families,Social Care,Agency Payments,Services Rendered By Other Organisations,511,07/06/2023,2306-00715,0.00,1373.58,R,All Stars Childcare,No
Http://opendatacommunities.org/id/metropolitan-district-council/leeds,Leeds City Council,30/06/2023,Children and Families,Social Care,Supplies and Services,Operational Furniture And Equipment,203,09/06/2023,2306-00716,0.00,2500.00,R,All Terrain Cycles Limited,No
Http://opendatacommunities.org/id/metropolitan-district-council/leeds,Leeds City Council as Accountable Body ,30/06/2023,Social Services Pooled Budgets,Jcs For People With Learning Disabilitie,Agency Payments,Sheltered Accommodation,569,21/06/2023,2306-00717,0.00,30058.74,R,Allerton Avenue,No
Http://opendatacommunities.org/id/metropolitan-district-council/leeds,Leeds City Council,30/06/2023,Communities Housing and Environment,Climate Energy & Greenspaces,Supplies and Services,Non-Recurring Grants,227,01/06/2023,2306-00718,0.00,1100.00,R,ALLERTON BYWATER PARISH COUNCIL,No
Http://opendatacommunities.org/id/metropolitan-district-council/leeds,Leeds City Council,30/06/2023,Strategy and Resources,Human Resources,Employees,Occupational Health,85,12/06/2023,2306-00719,0.00,40.00,R,Allerton Medical Centre,No
Http://opendatacommunities.org/id/metropolitan-district-council/leeds,Leeds City Council,30/06/2023,Adults and Health,Services For Older People - 65 And Over,Agency Payments,Nursing Care Dementia,574,21/06/2023,2306-00720,0.00,4890.88,R,ALLERTON PARK N H,No
Http://opendatacommunities.org/id/metropolitan-district-council/leeds,Leeds City Council,30/06/2023,Strategy and Resources,Finance,Supplies and Services,Bank Charges,263,07/06/2023,2306-00721,0.00,178.25,R,ALLIANCE & LEICESTER COMMERCIAL BANK,No
Http://opendatacommunities.org/id/metropolitan-district-council/leeds,Leeds City Council,30/06/2023,Strategy and Resources,Finance,Supplies and Services,Bank Charges,263,07/06/2023,2306-00722,0.00,100.00,R,ALLIANCE & LEICESTER COMMERCIAL BANK,No
Http://opendatacommunities.org/id/metropolitan-district-council/leeds,Leeds City Council,30/06/2023,Strategy and Resources,Commercial Services,Transport,Vehicle Spares,345,01/06/2023,2306-00723,0.00,277.11,R,Alliance Automotive UK CV LTD,No
Http://opendatacommunities.org/id/metropolitan-district-council/leeds,Leeds City Council,30/06/2023,Strategy and Resources,Commercial Services,Transport,Vehicle Spares,345,01/06/2023,2306-00724,0.00,1366.20,R,Alliance Automotive UK CV LTD,No
Http://opendatacommunities.org/id/metropolitan-district-council/leeds,Leeds City Council,30/06/2023,Strategy and Resources,Commercial Services,Transport,Vehicle Spares,345,01/06/2023,2306-00725,0.00,45.22,R,Alliance Automotive UK CV LTD,No
Http://opendatacommunities.org/id/metropolitan-district-council/leeds,Leeds City Council,30/06/2023,Strategy and Resources,Commercial Services,Transport,Vehicle Spares,345,01/06/2023,2306-00726,0.00,78.55,R,Alliance Automotive UK CV LTD,No
Http://opendatacommunities.org/id/metropolitan-district-council/leeds,Leeds City Council,30/06/2023,Strategy and Resources,Commercial Services,Transport,Vehicle Spares,345,01/06/2023,2306-00727,0.00,34.16,R,Alliance Automotive UK CV LTD,No
Http://opendatacommunities.org/id/metropolitan-district-council/leeds,Leeds City Council,30/06/2023,Strategy and Resources,Commercial Services,Transport,Vehicle Spares,345,01/06/2023,2306-00728,0.00,683.10,R,Alliance Automotive UK CV LTD,No
Http://opendatacommunities.org/id/metropolitan-district-council/leeds,Leeds City Council,30/06/2023,Strategy and Resources,Commercial Services,Transport,Vehicle Spares,345,01/06/2023,2306-00729,0.00,163.79,R,Alliance Automotive UK CV LTD,No
Http://opendatacommunities.org/id/metropolitan-district-council/leeds,Leeds City Council,30/06/2023,Strategy and Resources,Commercial Services,Transport,Vehicle Spares,345,01/06/2023,2306-00730,0.00,27.23,R,Alliance Automotive UK CV LTD,No
Http://opendatacommunities.org/id/metropolitan-district-council/leeds,Leeds City Council,30/06/2023,Strategy and Resources,Commercial Services,Transport,Vehicle Spares,345,02/06/2023,2306-00731,0.00,989.85,R,Alliance Automotive UK CV LTD,No
Http://opendatacommunities.org/id/metropolitan-district-council/leeds,Leeds City Council,30/06/2023,Strategy and Resources,Commercial Services,Transport,Vehicle Spares,345,02/06/2023,2306-00732,0.00,18.91,R,Alliance Automotive UK CV LTD,No
Http://opendatacommunities.org/id/metropolitan-district-council/leeds,Leeds City Council,30/06/2023,Strategy and Resources,Commercial Services,Transport,Vehicle Spares,345,02/06/2023,2306-00733,0.00,29.23,R,Alliance Automotive UK CV LTD,No
Http://opendatacommunities.org/id/metropolitan-district-council/leeds,Leeds City Council,30/06/2023,Strategy and Resources,Commercial Services,Transport,Vehicle Spares,345,02/06/2023,2306-00734,0.00,456.86,R,Alliance Automotive UK CV LTD,No
Http://opendatacommunities.org/id/metropolitan-district-council/leeds,Leeds City Council,30/06/2023,Strategy and Resources,Commercial Services,Transport,Vehicle Spares,345,02/06/2023,2306-00735,0.00,114.00,R,Alliance Automotive UK CV LTD,No
Http://opendatacommunities.org/id/metropolitan-district-council/leeds,Leeds City Council,30/06/2023,Strategy and Resources,Commercial Services,Transport,Vehicle Spares,345,02/06/2023,2306-00736,0.00,420.75,R,Alliance Automotive UK CV LTD,No
Http://opendatacommunities.org/id/metropolitan-district-council/leeds,Leeds City Council,30/06/2023,Strategy and Resources,Commercial Services,Transport,Vehicle Spares,345,02/06/2023,2306-00737,0.00,1073.29,R,Alliance Automotive UK CV LTD,No
Http://opendatacommunities.org/id/metropolitan-district-council/leeds,Leeds City Council,30/06/2023,Strategy and Resources,Commercial Services,Transport,Vehicle Spares,345,02/06/2023,2306-00738,0.00,138.29,R,Alliance Automotive UK CV LTD,No
Http://opendatacommunities.org/id/metropolitan-district-council/leeds,Leeds City Council,30/06/2023,Strategy and Resources,Commercial Services,Transport,Vehicle Spares,345,02/06/2023,2306-00739,0.00,4.66,R,Alliance Automotive UK CV LTD,No
Http://opendatacommunities.org/id/metropolitan-district-council/leeds,Leeds City Council,30/06/2023,Strategy and Resources,Commercial Services,Transport,Vehicle Spares,345,05/06/2023,2306-00740,0.00,257.40,R,Alliance Automotive UK CV LTD,No
Http://opendatacommunities.org/id/metropolitan-district-council/leeds,Leeds City Council,30/06/2023,Strategy and Resources,Commercial Services,Transport,Vehicle Spares,345,05/06/2023,2306-00741,0.00,113.85,R,Alliance Automotive UK CV LTD,No
Http://opendatacommunities.org/id/metropolitan-district-council/leeds,Leeds City Council,30/06/2023,Strategy and Resources,Commercial Services,Transport,Vehicle Spares,345,05/06/2023,2306-00742,0.00,8.87,R,Alliance Automotive UK CV LTD,No
Http://opendatacommunities.org/id/metropolitan-district-council/leeds,Leeds City Council,30/06/2023,Strategy and Resources,Commercial Services,Transport,Vehicle Spares,345,05/06/2023,2306-00743,0.00,98.91,R,Alliance Automotive UK CV LTD,No
Http://opendatacommunities.org/id/metropolitan-district-council/leeds,Leeds City Council,30/06/2023,Strategy and Resources,Commercial Services,Transport,Vehicle Spares,345,09/06/2023,2306-00744,0.00,621.71,R,Alliance Automotive UK CV LTD,No
Http://opendatacommunities.org/id/metropolitan-district-council/leeds,Leeds City Council,30/06/2023,Strategy and Resources,Commercial Services,Transport,Vehicle Spares,345,09/06/2023,2306-00745,0.00,102.73,R,Alliance Automotive UK CV LTD,No
Http://opendatacommunities.org/id/metropolitan-district-council/leeds,Leeds City Council,30/06/2023,Strategy and Resources,Commercial Services,Transport,Vehicle Spares,345,09/06/2023,2306-00746,0.00,562.54,R,Alliance Automotive UK CV LTD,No
Http://opendatacommunities.org/id/metropolitan-district-council/leeds,Leeds City Council,30/06/2023,Strategy and Resources,Commercial Services,Transport,Vehicle Spares,345,09/06/2023,2306-00747,0.00,213.84,R,Alliance Automotive UK CV LTD,No
Http://opendatacommunities.org/id/metropolitan-district-council/leeds,Leeds City Council,30/06/2023,Strategy and Resources,Commercial Services,Transport,Vehicle Spares,345,09/06/2023,2306-00748,0.00,35.45,R,Alliance Automotive UK CV LTD,No
Http://opendatacommunities.org/id/metropolitan-district-council/leeds,Leeds City Council,30/06/2023,Strategy and Resources,Commercial Services,Transport,Vehicle Spares,345,09/06/2023,2306-00749,0.00,262.05,R,Alliance Automotive UK CV LTD,No
Http://opendatacommunities.org/id/metropolitan-district-council/leeds,Leeds City Council,30/06/2023,Strategy and Resources,Commercial Services,Transport,Vehicle Spares,345,09/06/2023,2306-00750,0.00,270.58,R,Alliance Automotive UK CV LTD,No
Http://opendatacommunities.org/id/metropolitan-district-council/leeds,Leeds City Council,30/06/2023,Strategy and Resources,Commercial Services,Transport,Vehicle Spares,345,09/06/2023,2306-00751,0.00,392.04,R,Alliance Automotive UK CV LTD,No
Http://opendatacommunities.org/id/metropolitan-district-council/leeds,Leeds City Council,30/06/2023,Strategy and Resources,Commercial Services,Transport,Vehicle Spares,345,09/06/2023,2306-00752,0.00,83.52,R,Alliance Automotive UK CV LTD,No
Http://opendatacommunities.org/id/metropolitan-district-council/leeds,Leeds City Council,30/06/2023,Strategy and Resources,Commercial Services,Transport,Vehicle Spares,345,09/06/2023,2306-00753,0.00,375.71,R,Alliance Automotive UK CV LTD,No
Http://opendatacommunities.org/id/metropolitan-district-council/leeds,Leeds City Council,30/06/2023,Strategy and Resources,Commercial Services,Transport,Vehicle Spares,345,09/06/2023,2306-00754,0.00,1.84,R,Alliance Automotive UK CV LTD,No
Http://opendatacommunities.org/id/metropolitan-district-council/leeds,Leeds City Council,30/06/2023,Strategy and Resources,Commercial Services,Transport,Vehicle Spares,345,09/06/2023,2306-00755,0.00,8.80,R,Alliance Automotive UK CV LTD,No
Http://opendatacommunities.org/id/metropolitan-district-council/leeds,Leeds City Council,30/06/2023,Strategy and Resources,Commercial Services,Transport,Vehicle Spares,345,09/06/2023,2306-00756,0.00,116.19,R,Alliance Automotive UK CV LTD,No
Http://opendatacommunities.org/id/metropolitan-district-council/leeds,Leeds City Council,30/06/2023,Strategy and Resources,Commercial Services,Transport,Vehicle Spares,345,09/06/2023,2306-00757,0.00,131.51,R,Alliance Automotive UK CV LTD,No
Http://opendatacommunities.org/id/metropolitan-district-council/leeds,Leeds City Council,30/06/2023,Strategy and Resources,Commercial Services,Transport,Vehicle Spares,345,09/06/2023,2306-00758,0.00,124.05,R,Alliance Automotive UK CV LTD,No
Http://opendatacommunities.org/id/metropolitan-district-council/leeds,Leeds City Council,30/06/2023,Strategy and Resources,Commercial Services,Transport,Vehicle Spares,345,09/06/2023,2306-00759,0.00,116.10,R,Alliance Automotive UK CV LTD,No
Http://opendatacommunities.org/id/metropolitan-district-council/leeds,Leeds City Council,30/06/2023,Strategy and Resources,Commercial Services,Transport,Vehicle Spares,345,09/06/2023,2306-00760,0.00,14.85,R,Alliance Automotive UK CV LTD,No
Http://opendatacommunities.org/id/metropolitan-district-council/leeds,Leeds City Council,30/06/2023,Strategy and Resources,Commercial Services,Transport,Vehicle Spares,345,09/06/2023,2306-00761,0.00,51.19,R,Alliance Automotive UK CV LTD,No
Http://opendatacommunities.org/id/metropolitan-district-council/leeds,Leeds City Council,30/06/2023,Strategy and Resources,Commercial Services,Transport,Vehicle Spares,345,09/06/2023,2306-00762,0.00,6.54,R,Alliance Automotive UK CV LTD,No
Http://opendatacommunities.org/id/metropolitan-district-council/leeds,Leeds City Council,30/06/2023,Strategy and Resources,Commercial Services,Transport,Vehicle Spares,345,09/06/2023,2306-00763,0.00,449.54,R,Alliance Automotive UK CV LTD,No
Http://opendatacommunities.org/id/metropolitan-district-council/leeds,Leeds City Council,30/06/2023,Strategy and Resources,Commercial Services,Transport,Vehicle Spares,345,09/06/2023,2306-00764,0.00,24.09,R,Alliance Automotive UK CV LTD,No
Http://opendatacommunities.org/id/metropolitan-district-council/leeds,Leeds City Council,30/06/2023,Strategy and Resources,Commercial Services,Transport,Vehicle Spares,345,09/06/2023,2306-00765,0.00,63.13,R,Alliance Automotive UK CV LTD,No
Http://opendatacommunities.org/id/metropolitan-district-council/leeds,Leeds City Council,30/06/2023,Strategy and Resources,Commercial Services,Transport,Vehicle Spares,345,09/06/2023,2306-00766,0.00,518.76,R,Alliance Automotive UK CV LTD,No
Http://opendatacommunities.org/id/metropolitan-district-council/leeds,Leeds City Council,30/06/2023,Strategy and Resources,Commercial Services,Transport,Vehicle Spares,345,09/06/2023,2306-00767,0.00,275.13,R,Alliance Automotive UK CV LTD,No
Http://opendatacommunities.org/id/metropolitan-district-council/leeds,Leeds City Council,30/06/2023,Strategy and Resources,Commercial Services,Transport,Vehicle Spares,345,09/06/2023,2306-00768,0.00,7.40,R,Alliance Automotive UK CV LTD,No
Http://opendatacommunities.org/id/metropolitan-district-council/leeds,Leeds City Council,30/06/2023,Strategy and Resources,Commercial Services,Transport,Vehicle Spares,345,09/06/2023,2306-00769,0.00,91.78,R,Alliance Automotive UK CV LTD,No
Http://opendatacommunities.org/id/metropolitan-district-council/leeds,Leeds City Council,30/06/2023,Strategy and Resources,Commercial Services,Transport,Vehicle Spares,345,09/06/2023,2306-00770,0.00,103.46,R,Alliance Automotive UK CV LTD,No
Http://opendatacommunities.org/id/metropolitan-district-council/leeds,Leeds City Council,30/06/2023,Strategy and Resources,Commercial Services,Transport,Vehicle Spares,345,09/06/2023,2306-00771,0.00,513.81,R,Alliance Automotive UK CV LTD,No
Http://opendatacommunities.org/id/metropolitan-district-council/leeds,Leeds City Council,30/06/2023,Strategy and Resources,Commercial Services,Transport,Vehicle Spares,345,09/06/2023,2306-00772,0.00,399.80,R,Alliance Automotive UK CV LTD,No
Http://opendatacommunities.org/id/metropolitan-district-council/leeds,Leeds City Council,30/06/2023,Strategy and Resources,Commercial Services,Transport,Vehicle Spares,345,09/06/2023,2306-00773,0.00,24.95,R,Alliance Automotive UK CV LTD,No
Http://opendatacommunities.org/id/metropolitan-district-council/leeds,Leeds City Council,30/06/2023,Strategy and Resources,Commercial Services,Transport,Vehicle Spares,345,09/06/2023,2306-00774,0.00,60.59,R,Alliance Automotive UK CV LTD,No
Http://opendatacommunities.org/id/metropolitan-district-council/leeds,Leeds City Council,30/06/2023,Strategy and Resources,Commercial Services,Transport,Vehicle Spares,345,09/06/2023,2306-00775,0.00,85.15,R,Alliance Automotive UK CV LTD,No
Http://opendatacommunities.org/id/metropolitan-district-council/leeds,Leeds City Council,30/06/2023,Strategy and Resources,Commercial Services,Transport,Vehicle Spares,345,09/06/2023,2306-00776,0.00,125.24,R,Alliance Automotive UK CV LTD,No
Http://opendatacommunities.org/id/metropolitan-district-council/leeds,Leeds City Council,30/06/2023,Strategy and Resources,Commercial Services,Transport,Vehicle Spares,345,09/06/2023,2306-00777,0.00,117.28,R,Alliance Automotive UK CV LTD,No
Http://opendatacommunities.org/id/metropolitan-district-council/leeds,Leeds City Council,30/06/2023,Strategy and Resources,Commercial Services,Transport,Vehicle Spares,345,09/06/2023,2306-00778,0.00,506.34,R,Alliance Automotive UK CV LTD,No
Http://opendatacommunities.org/id/metropolitan-district-council/leeds,Leeds City Council,30/06/2023,Strategy and Resources,Commercial Services,Transport,Vehicle Spares,345,09/06/2023,2306-00779,0.00,522.41,R,Alliance Automotive UK CV LTD,No
Http://opendatacommunities.org/id/metropolitan-district-council/leeds,Leeds City Council,30/06/2023,Strategy and Resources,Commercial Services,Transport,Vehicle Spares,345,09/06/2023,2306-00780,0.00,244.99,R,Alliance Automotive UK CV LTD,No
